Workbook

Sheet НАЧАЛО
B1: ОБ ЭТОМ ШАБЛОНЕ
B2: Используйте эту книгу бюджета расходов компании для сравнения запланированных и фактических расходов и отслеживания отклонений.
B3: Введите название компании и добавьте логотип.
B4: Введите сведения в таблицы на листах «Запланированные расходы» и «Фактические расходы».
B5: На листе «Отклонения по расходам» автоматически обновятся таблицы, а на листе «Анализ расходов» — диаграммы.
B6: Примечание.
B7: В столбце A каждого листа содержатся дополнительные инструкции. Их текст намерено скрыт. Чтобы удалить этот текст, выделите столбец A и нажмите клавишу DELETE. Чтобы отобразить текст, выделите столбец A и измените цвет шрифта.
B8: Чтобы получить дополнительные сведения о таблице, щелкните в ней ячейку, затем нажмите клавиши SHIFT+F10, выберите "Таблица", а затем — "Замещающий текст".

Sheet ЗАПЛАНИРОВАННЫЕ РАСХОДЫ
B2: Название компании | K2: Подробные оценочные показатели расходов
K3: Затененные ячейки содержат вычисления.
B4: ЗАПЛАНИРОВАННЫЕ РАСХОДЫ | C4: ЯНВ | D4: ФЕВ | E4: МАР | F4: АПР | G4: МАЙ | H4: ИЮН | I4: ИЮЛ | J4: АВГ | K4: СЕН | L4: ОКТ | M4: НОЯ | N4: ДЕК | O4: ГОД
B5: Расходы на сотрудников | C5: Янв | D5: Фев | E5: Мар | F5: Апр | G5: Май | H5: Июн | I5: Июл | J5: Авг | K5: Сен | L5: Окт | M5: Ноя | N5: Дек | O5: ГОД
B6: Зарплата | C6: 85,000.00 ₽ | D6: 85,000.00 ₽ | E6: 85,000.00 ₽ | F6: 87,500.00 ₽ | G6: 87,500.00 ₽ | H6: 87,500.00 ₽ | I6: 87,500.00 ₽ | J6: 92,400.00 ₽ | K6: 92,400.00 ₽ | L6: 92,400.00 ₽ | M6: 92,400.00 ₽ | N6: 92,400.00 ₽ | O6: =SUM(C6:N6) -> 1,067,000.00 ₽
B7: Премия | C7: =C6*0.27 -> 22,950.00 ₽ | D7: 22,950.00 ₽ | E7: 22,950.00 ₽ | F7: 23,625.00 ₽ | G7: 23,625.00 ₽ | H7: 23,625.00 ₽ | I7: 23,625.00 ₽ | J7: 24,948.00 ₽ | K7: 24,948.00 ₽ | L7: 24,948.00 ₽ | M7: 24,948.00 ₽ | N7: 24,948.00 ₽ | O7: =SUM(C7:N7) -> 288,090.00 ₽
B8: Промежуточный итог | C8: =SUBTOTAL(109,СотрудникиПлан[Янв]) -> 107,950.00 ₽ | D8: =SUBTOTAL(109,СотрудникиПлан[Фев]) -> 107,950.00 ₽ | E8: =SUBTOTAL(109,СотрудникиПлан[Мар]) -> 107,950.00 ₽ | F8: =SUBTOTAL(109,СотрудникиПлан[Апр]) -> 111,125.00 ₽ | G8: =SUBTOTAL(109,СотрудникиПлан[Май]) -> 111,125.00 ₽ | H8: =SUBTOTAL(109,СотрудникиПлан[Июн]) -> 111,125.00 ₽ | I8: =SUBTOTAL(109,СотрудникиПлан[Июл]) -> 111,125.00 ₽ | J8: =SUBTOTAL(109,СотрудникиПлан[Авг]) -> 117,348.00 ₽ | K8: =SUBTOTAL(109,СотрудникиПлан[Сен]) -> 117,348.00 ₽ | L8: =SUBTOTAL(109,СотрудникиПлан[Окт]) -> 117,348.00 ₽ | M8: =SUBTOTAL(109,СотрудникиПлан[Ноя]) -> 117,348.00 ₽ | N8: =SUBTOTAL(109,СотрудникиПлан[Дек]) -> 117,348.00 ₽ | O8: =SUBTOTAL(109,СотрудникиПлан[ГОД]) -> 1,355,090.00 ₽
B10: Расходы на содержание офиса | C10: Янв | D10: Фев | E10: Мар | F10: Апр | G10: Май | H10: Июн | I10: Июл | J10: Авг | K10: Сен | L10: Окт | M10: Ноя | N10: Дек | O10: ГОД
B11: Аренда офисных помещений | C11: 9,800.00 ₽ | D11: 9,800.00 ₽ | E11: 9,800.00 ₽ | F11: 9,800.00 ₽ | G11: 9,800.00 ₽ | H11: 9,800.00 ₽ | I11: 9,800.00 ₽ | J11: 9,800.00 ₽ | K11: 9,800.00 ₽ | L11: 9,800.00 ₽ | M11: 9,800.00 ₽ | N11: 9,800.00 ₽ | O11: =SUM(C11:N11) -> 117,600.00 ₽
B12: Газ | D12: 400.00 ₽ | E12: 400.00 ₽ | F12: 100.00 ₽ | G12: 100.00 ₽ | H12: 100.00 ₽ | I12: 100.00 ₽ | J12: 100.00 ₽ | K12: 100.00 ₽ | L12: 100.00 ₽ | M12: 400.00 ₽ | N12: 400.00 ₽ | O12: 2,300.00 ₽
B13: Электричество | C13: 300.00 ₽ | D13: 300.00 ₽ | E13: 300.00 ₽ | F13: 300.00 ₽ | G13: 300.00 ₽ | H13: 300.00 ₽ | I13: 300.00 ₽ | J13: 300.00 ₽ | K13: 300.00 ₽ | L13: 300.00 ₽ | M13: 300.00 ₽ | N13: 300.00 ₽ | O13: 3,600.00 ₽
B14: Вода | C14: 40.00 ₽ | D14: 40.00 ₽ | E14: 40.00 ₽ | F14: 40.00 ₽ | G14: 40.00 ₽ | H14: 40.00 ₽ | I14: 40.00 ₽ | J14: 40.00 ₽ | K14: 40.00 ₽ | L14: 40.00 ₽ | M14: 40.00 ₽ | N14: 40.00 ₽ | O14: 480.00 ₽
B15: Телефон | C15: 250.00 ₽ | D15: 250.00 ₽ | E15: 250.00 ₽ | F15: 250.00 ₽ | G15: 250.00 ₽ | H15: 250.00 ₽ | I15: 250.00 ₽ | J15: 250.00 ₽ | K15: 250.00 ₽ | L15: 250.00 ₽ | M15: 250.00 ₽ | N15: 250.00 ₽ | O15: 3,000.00 ₽
B16: Доступ в Интернет | C16: 180.00 ₽ | D16: 180.00 ₽ | E16: 180.00 ₽ | F16: 180.00 ₽ | G16: 180.00 ₽ | H16: 180.00 ₽ | I16: 180.00 ₽ | J16: 180.00 ₽ | K16: 180.00 ₽ | L16: 180.00 ₽ | M16: 180.00 ₽ | N16: 180.00 ₽ | O16: 2,160.00 ₽
B17: Канцтовары | C17: 200.00 ₽ | D17: 200.00 ₽ | E17: 200.00 ₽ | F17: 200.00 ₽ | G17: 200.00 ₽ | H17: 200.00 ₽ | I17: 200.00 ₽ | J17: 200.00 ₽ | K17: 200.00 ₽ | L17: 200.00 ₽ | M17: 200.00 ₽ | N17: 200.00 ₽ | O17: 2,400.00 ₽
B18: Безопасность | C18: 600.00 ₽ | D18: 600.00 ₽ | E18: 600.00 ₽ | F18: 600.00 ₽ | G18: 600.00 ₽ | H18: 600.00 ₽ | I18: 600.00 ₽ | J18: 600.00 ₽ | K18: 600.00 ₽ | L18: 600.00 ₽ | M18: 600.00 ₽ | N18: 600.00 ₽ | O18: 7,200.00 ₽
B19: Промежуточный итог | C19: =SUBTOTAL(109,ОфисПлан[Янв]) -> 11,370.00 ₽ | D19: =SUBTOTAL(109,ОфисПлан[Фев]) -> 11,770.00 ₽ | E19: =SUBTOTAL(109,ОфисПлан[Мар]) -> 11,770.00 ₽ | F19: =SUBTOTAL(109,ОфисПлан[Апр]) -> 11,470.00 ₽ | G19: =SUBTOTAL(109,ОфисПлан[Май]) -> 11,470.00 ₽ | H19: =SUBTOTAL(109,ОфисПлан[Июн]) -> 11,470.00 ₽ | I19: =SUBTOTAL(109,ОфисПлан[Июл]) -> 11,470.00 ₽ | J19: =SUBTOTAL(109,ОфисПлан[Авг]) -> 11,470.00 ₽ | K19: =SUBTOTAL(109,ОфисПлан[Сен]) -> 11,470.00 ₽ | L19: =SUBTOTAL(109,ОфисПлан[Окт]) -> 11,470.00 ₽ | M19: =SUBTOTAL(109,ОфисПлан[Ноя]) -> 11,770.00 ₽ | N19: =SUBTOTAL(109,ОфисПлан[Дек]) -> 11,770.00 ₽ | O19: =SUBTOTAL(109,ОфисПлан[ГОД]) -> 138,740.00 ₽
B21: Расходы на маркетинг | C21: Янв | D21: Фев | E21: Мар | F21: Апр | G21: Май | H21: Июн | I21: Июл | J21: Авг | K21: Сен | L21: Окт | M21: Ноя | N21: Дек | O21: ГОД
B22: Размещение веб-сайта | C22: 500.00 ₽ | D22: 500.00 ₽ | E22: 500.00 ₽ | F22: 500.00 ₽ | G22: 500.00 ₽ | H22: 500.00 ₽ | I22: 500.00 ₽ | J22: 500.00 ₽ | K22: 500.00 ₽ | L22: 500.00 ₽ | M22: 500.00 ₽ | N22: 500.00 ₽ | O22: =SUM(C22:N22) -> 6,000.00 ₽
B23: Обновление веб-сайта | C23: 200.00 ₽ | D23: 200.00 ₽ | E23: 200.00 ₽ | F23: 200.00 ₽ | G23: 200.00 ₽ | H23: 1,000.00 ₽ | I23: 200.00 ₽ | J23: 200.00 ₽ | K23: 200.00 ₽ | L23: 200.00 ₽ | M23: 200.00 ₽ | N23: 1,000.00 ₽ | O23: 4,000.00 ₽
B24: Подготовка рекламных материалов | C24: 5,000.00 ₽ | D24: 0.00 ₽ | E24: 0.00 ₽ | F24: 5,000.00 ₽ | G24: 0.00 ₽ | H24: 0.00 ₽ | I24: 5,000.00 ₽ | J24: 0.00 ₽ | K24: 0.00 ₽ | L24: 5,000.00 ₽ | M24: 0.00 ₽ | N24: 0.00 ₽ | O24: 20,000.00 ₽
B25: Печать рекламных материалов | C25: 200.00 ₽ | D25: 200.00 ₽ | E25: 200.00 ₽ | F25: 200.00 ₽ | G25: 200.00 ₽ | H25: 200.00 ₽ | I25: 200.00 ₽ | J25: 200.00 ₽ | K25: 200.00 ₽ | L25: 200.00 ₽ | M25: 200.00 ₽ | N25: 200.00 ₽ | O25: 2,400.00 ₽
B26: Маркетинговые мероприятия | C26: 2,000.00 ₽ | D26: 2,000.00 ₽ | E26: 2,000.00 ₽ | F26: 5,000.00 ₽ | G26: 2,000.00 ₽ | H26: 2,000.00 ₽ | I26: 2,000.00 ₽ | J26: 5,000.00 ₽ | K26: 2,000.00 ₽ | L26: 2,000.00 ₽ | M26: 2,000.00 ₽ | N26: 5,000.00 ₽ | O26: 33,000.00 ₽
B27: Прочие расходы | C27: 200.00 ₽ | D27: 200.00 ₽ | E27: 200.00 ₽ | F27: 200.00 ₽ | G27: 200.00 ₽ | H27: 200.00 ₽ | I27: 200.00 ₽ | J27: 200.00 ₽ | K27: 200.00 ₽ | L27: 200.00 ₽ | M27: 200.00 ₽ | N27: 200.00 ₽ | O27: 2,400.00 ₽
B28: Промежуточный итог | C28: =SUBTOTAL(109,МаркетингПлан[Янв]) -> 8,100.00 ₽ | D28: =SUBTOTAL(109,МаркетингПлан[Фев]) -> 3,100.00 ₽ | E28: =SUBTOTAL(109,МаркетингПлан[Мар]) -> 3,100.00 ₽ | F28: =SUBTOTAL(109,МаркетингПлан[Апр]) -> 11,100.00 ₽ | G28: =SUBTOTAL(109,МаркетингПлан[Май]) -> 3,100.00 ₽ | H28: =SUBTOTAL(109,МаркетингПлан[Июн]) -> 3,900.00 ₽ | I28: =SUBTOTAL(109,МаркетингПлан[Июл]) -> 8,100.00 ₽ | J28: =SUBTOTAL(109,МаркетингПлан[Авг]) -> 6,100.00 ₽ | K28: =SUBTOTAL(109,МаркетингПлан[Сен]) -> 3,100.00 ₽ | L28: =SUBTOTAL(109,МаркетингПлан[Окт]) -> 8,100.00 ₽ | M28: =SUBTOTAL(109,МаркетингПлан[Ноя]) -> 3,100.00 ₽ | N28: =SUBTOTAL(109,МаркетингПлан[Дек]) -> 6,900.00 ₽ | O28: =SUBTOTAL(109,МаркетингПлан[ГОД]) -> 67,800.00 ₽
B30: Обучение/командировки | C30: Янв | D30: Фев | E30: Мар | F30: Апр | G30: Май | H30: Июн | I30: Июл | J30: Авг | K30: Сен | L30: Окт | M30: Ноя | N30: Дек | O30: ГОД
B31: Учебные занятия | C31: 2,000.00 ₽ | D31: 2,000.00 ₽ | E31: 2,000.00 ₽ | F31: 2,000.00 ₽ | G31: 2,000.00 ₽ | H31: 2,000.00 ₽ | I31: 2,000.00 ₽ | J31: 2,000.00 ₽ | K31: 2,000.00 ₽ | L31: 2,000.00 ₽ | M31: 2,000.00 ₽ | N31: 2,000.00 ₽ | O31: =SUM(C31:N31) -> 24,000.00 ₽
B32: Командировочные расходы, связанные с обучением | C32: 2,000.00 ₽ | D32: 2,000.00 ₽ | E32: 2,000.00 ₽ | F32: 2,000.00 ₽ | G32: 2,000.00 ₽ | H32: 2,000.00 ₽ | I32: 2,000.00 ₽ | J32: 2,000.00 ₽ | K32: 2,000.00 ₽ | L32: 2,000.00 ₽ | M32: 2,000.00 ₽ | N32: 2,000.00 ₽ | O32: =SUM(C32:N32) -> 24,000.00 ₽
B33: Промежуточный итог | C33: =SUBTOTAL(109,ОбучениеИКомандировкиПлан[Янв]) -> 4,000.00 ₽ | D33: =SUBTOTAL(109,ОбучениеИКомандировкиПлан[Фев]) -> 4,000.00 ₽ | E33: =SUBTOTAL(109,ОбучениеИКомандировкиПлан[Мар]) -> 4,000.00 ₽ | F33: =SUBTOTAL(109,ОбучениеИКомандировкиПлан[Апр]) -> 4,000.00 ₽ | G33: =SUBTOTAL(109,ОбучениеИКомандировкиПлан[Май]) -> 4,000.00 ₽ | H33: =SUBTOTAL(109,ОбучениеИКомандировкиПлан[Июн]) -> 4,000.00 ₽ | I33: =SUBTOTAL(109,ОбучениеИКомандировкиПлан[Июл]) -> 4,000.00 ₽ | J33: =SUBTOTAL(109,ОбучениеИКомандировкиПлан[Авг]) -> 4,000.00 ₽ | K33: =SUBTOTAL(109,ОбучениеИКомандировкиПлан[Сен]) -> 4,000.00 ₽ | L33: =SUBTOTAL(109,ОбучениеИКомандировкиПлан[Окт]) -> 4,000.00 ₽ | M33: =SUBTOTAL(109,ОбучениеИКомандировкиПлан[Ноя]) -> 4,000.00 ₽ | N33: =SUBTOTAL(109,ОбучениеИКомандировкиПлан[Дек]) -> 4,000.00 ₽ | O33: =SUBTOTAL(109,ОбучениеИКомандировкиПлан[ГОД]) -> 48,000.00 ₽
B35: ИТОГИ | C35: Янв | D35: Фев | E35: Мар | F35: Апр | G35: Май | H35: Июн | I35: Июл | J35: Авг | K35: Сен | L35: Окт | M35: Ноя | N35: Дек | O35: Год
B36: Запланированные расходы за месяц | C36: =ОбучениеИКомандировкиПлан[[#Totals],[Янв]]+МаркетингПлан[[#Totals],[Янв]]+ОфисПлан[[#Totals],[Янв]]+СотрудникиПлан[[#Totals],[Янв]] -> 131,420.00 ₽ | D36: =ОбучениеИКомандировкиПлан[[#Totals],[Фев]]+МаркетингПлан[[#Totals],[Фев]]+ОфисПлан[[#Totals],[Фев]]+СотрудникиПлан[[#Totals],[Фев]] -> 126,820.00 ₽ | E36: =ОбучениеИКомандировкиПлан[[#Totals],[Мар]]+МаркетингПлан[[#Totals],[Мар]]+ОфисПлан[[#Totals],[Мар]]+СотрудникиПлан[[#Totals],[Мар]] -> 126,820.00 ₽ | F36: =ОбучениеИКомандировкиПлан[[#Totals],[Апр]]+МаркетингПлан[[#Totals],[Апр]]+ОфисПлан[[#Totals],[Апр]]+СотрудникиПлан[[#Totals],[Апр]] -> 137,695.00 ₽ | G36: =ОбучениеИКомандировкиПлан[[#Totals],[Май]]+МаркетингПлан[[#Totals],[Май]]+ОфисПлан[[#Totals],[Май]]+СотрудникиПлан[[#Totals],[Май]] -> 129,695.00 ₽ | H36: =ОбучениеИКомандировкиПлан[[#Totals],[Июн]]+МаркетингПлан[[#Totals],[Июн]]+ОфисПлан[[#Totals],[Июн]]+СотрудникиПлан[[#Totals],[Июн]] -> 130,495.00 ₽ | I36: =ОбучениеИКомандировкиПлан[[#Totals],[Июл]]+МаркетингПлан[[#Totals],[Июл]]+ОфисПлан[[#Totals],[Июл]]+СотрудникиПлан[[#Totals],[Июл]] -> 134,695.00 ₽ | J36: =ОбучениеИКомандировкиПлан[[#Totals],[Авг]]+МаркетингПлан[[#Totals],[Авг]]+ОфисПлан[[#Totals],[Авг]]+СотрудникиПлан[[#Totals],[Авг]] -> 138,918.00 ₽ | K36: =ОбучениеИКомандировкиПлан[[#Totals],[Сен]]+МаркетингПлан[[#Totals],[Сен]]+ОфисПлан[[#Totals],[Сен]]+СотрудникиПлан[[#Totals],[Сен]] -> 135,918.00 ₽ | L36: =ОбучениеИКомандировкиПлан[[#Totals],[Окт]]+МаркетингПлан[[#Totals],[Окт]]+ОфисПлан[[#Totals],[Окт]]+СотрудникиПлан[[#Totals],[Окт]] -> 140,918.00 ₽ | M36: =ОбучениеИКомандировкиПлан[[#Totals],[Ноя]]+МаркетингПлан[[#Totals],[Ноя]]+ОфисПлан[[#Totals],[Ноя]]+СотрудникиПлан[[#Totals],[Ноя]] -> 136,218.00 ₽ | N36: =ОбучениеИКомандировкиПлан[[#Totals],[Дек]]+МаркетингПлан[[#Totals],[Дек]]+ОфисПлан[[#Totals],[Дек]]+СотрудникиПлан[[#Totals],[Дек]] -> 140,018.00 ₽ | O36: =ОбучениеИКомандировкиПлан[[#Totals],[ГОД]]+МаркетингПлан[[#Totals],[ГОД]]+ОфисПлан[[#Totals],[ГОД]]+СотрудникиПлан[[#Totals],[ГОД]] -> 1,609,630.00 ₽
B37: ОБЩИЕ запланированные расходы | C37: =SUM($C$36:C36) -> 131,420.00 ₽ | D37: =SUM($C$36:D36) -> 258,240.00 ₽ | E37: =SUM($C$36:E36) -> 385,060.00 ₽ | F37: =SUM($C$36:F36) -> 522,755.00 ₽ | G37: =SUM($C$36:G36) -> 652,450.00 ₽ | H37: =SUM($C$36:H36) -> 782,945.00 ₽ | I37: =SUM($C$36:I36) -> 917,640.00 ₽ | J37: =SUM($C$36:J36) -> 1,056,558.00 ₽ | K37: =SUM($C$36:K36) -> 1,192,476.00 ₽ | L37: =SUM($C$36:L36) -> 1,333,394.00 ₽ | M37: =SUM($C$36:M36) -> 1,469,612.00 ₽ | N37: =SUM($C$36:N36) -> 1,609,630.00 ₽

Sheet ФАКТИЧЕСКИЕ РАСХОДЫ
B2: ='ЗАПЛАНИРОВАННЫЕ РАСХОДЫ'!B2:D3 -> Название компании | K2: =заголовок_листа -> Подробные оценочные показатели расходов
K3: Затененные ячейки содержат вычисления.
B4: ФАКТИЧЕСКИЕ РАСХОДЫ | C4: ЯНВ | D4: ФЕВ | E4: МАР | F4: АПР | G4: МАЙ | H4: ИЮН | I4: ИЮЛ | J4: АВГ | K4: СЕН | L4: ОКТ | M4: НОЯ | N4: ДЕК | O4: ГОД
B5: Расходы на сотрудников | C5: Янв | D5: Фев | E5: Мар | F5: Апр | G5: Май | H5: Июн | I5: Июл | J5: Авг | K5: Сен | L5: Окт | M5: Ноя | N5: Дек | O5: ГОД
B6: Зарплата | C6: 85,000.00 ₽ | D6: 85,000.00 ₽ | E6: 85,000.00 ₽ | F6: 88,000.00 ₽ | G6: 88,000.00 ₽ | H6: 88,000.00 ₽ | O6: =SUM(C6:N6) -> 519,000.00 ₽
B7: Премия | C7: =C6*0.27 -> 22,950.00 ₽ | D7: 22,950.00 ₽ | E7: 22,950.00 ₽ | F7: 23,760.00 ₽ | G7: 23,760.00 ₽ | H7: 23,760.00 ₽ | I7: 0.00 ₽ | J7: 0.00 ₽ | K7: 0.00 ₽ | L7: 0.00 ₽ | M7: 0.00 ₽ | N7: 0.00 ₽ | O7: =SUM(C7:N7) -> 140,130.00 ₽
B8: Промежуточный итог | C8: =SUBTOTAL(109,СотрудникиФактические[Янв]) -> 107,950.00 ₽ | D8: =SUBTOTAL(109,СотрудникиФактические[Фев]) -> 107,950.00 ₽ | E8: =SUBTOTAL(109,СотрудникиФактические[Мар]) -> 107,950.00 ₽ | F8: =SUBTOTAL(109,СотрудникиФактические[Апр]) -> 111,760.00 ₽ | G8: =SUBTOTAL(109,СотрудникиФактические[Май]) -> 111,760.00 ₽ | H8: =SUBTOTAL(109,СотрудникиФактические[Июн]) -> 111,760.00 ₽ | I8: =SUBTOTAL(109,СотрудникиФактические[Июл]) -> 0.00 ₽ | J8: =SUBTOTAL(109,СотрудникиФактические[Авг]) -> 0.00 ₽ | K8: =SUBTOTAL(109,СотрудникиФактические[Сен]) -> 0.00 ₽ | L8: =SUBTOTAL(109,СотрудникиФактические[Окт]) -> 0.00 ₽ | M8: =SUBTOTAL(109,СотрудникиФактические[Ноя]) -> 0.00 ₽ | N8: =SUBTOTAL(109,СотрудникиФактические[Дек]) -> 0.00 ₽ | O8: =SUBTOTAL(109,СотрудникиФактические[ГОД]) -> 659,130.00 ₽
B10: Расходы на содержание офиса | C10: Янв | D10: Фев | E10: Мар | F10: Апр | G10: Май | H10: Июн | I10: Июл | J10: Авг | K10: Сен | L10: Окт | M10: Ноя | N10: Дек | O10: ГОД
B11: Аренда офисных помещений | C11: 9,800.00 ₽ | D11: 9,800.00 ₽ | E11: 9,800.00 ₽ | F11: 9,800.00 ₽ | G11: 9,800.00 ₽ | H11: 9,800.00 ₽ | O11: =SUM(C11:N11) -> 58,800.00 ₽
B12: Газ | C12: 4.00 ₽ | D12: 430.00 ₽ | E12: 385.00 ₽ | F12: 230.00 ₽ | G12: 87.00 ₽ | H12: 88.00 ₽ | O12: 1,224.00 ₽
B13: Электричество | C13: 288.00 ₽ | D13: 278.00 ₽ | E13: 268.00 ₽ | F13: 299.00 ₽ | G13: 306.00 ₽ | H13: 290.00 ₽ | O13: 1,729.00 ₽
B14: Вода | C14: 35.00 ₽ | D14: 33.00 ₽ | E14: 34.00 ₽ | F14: 36.00 ₽ | G14: 34.00 ₽ | H14: 36.00 ₽ | O14: 208.00 ₽
B15: Телефон | C15: 224.00 ₽ | D15: 235.00 ₽ | E15: 265.00 ₽ | F15: 245.00 ₽ | G15: 245.00 ₽ | H15: 220.00 ₽ | O15: 1,434.00 ₽
B16: Доступ в Интернет | C16: 180.00 ₽ | D16: 180.00 ₽ | E16: 180.00 ₽ | F16: 180.00 ₽ | G16: 180.00 ₽ | H16: 180.00 ₽ | O16: 1,080.00 ₽
B17: Канцтовары | C17: 256.00 ₽ | D17: 142.00 ₽ | E17: 160.00 ₽ | F17: 221.00 ₽ | G17: 256.00 ₽ | H17: 240.00 ₽ | O17: 1,275.00 ₽
B18: Безопасность | C18: 600.00 ₽ | D18: 600.00 ₽ | E18: 600.00 ₽ | F18: 600.00 ₽ | G18: 600.00 ₽ | H18: 600.00 ₽ | O18: 3,600.00 ₽
B19: Промежуточный итог | C19: =SUBTOTAL(109,ОфисФактические[Янв]) -> 11,387.00 ₽ | D19: =SUBTOTAL(109,ОфисФактические[Фев]) -> 11,698.00 ₽ | E19: =SUBTOTAL(109,ОфисФактические[Мар]) -> 11,692.00 ₽ | F19: =SUBTOTAL(109,ОфисФактические[Апр]) -> 11,611.00 ₽ | G19: =SUBTOTAL(109,ОфисФактические[Май]) -> 11,508.00 ₽ | H19: =SUBTOTAL(109,ОфисФактические[Июн]) -> 11,454.00 ₽ | I19: =SUBTOTAL(109,ОфисФактические[Июл]) -> 0.00 ₽ | J19: =SUBTOTAL(109,ОфисФактические[Авг]) -> 0.00 ₽ | K19: =SUBTOTAL(109,ОфисФактические[Сен]) -> 0.00 ₽ | L19: =SUBTOTAL(109,ОфисФактические[Окт]) -> 0.00 ₽ | M19: =SUBTOTAL(109,ОфисФактические[Ноя]) -> 0.00 ₽ | N19: =SUBTOTAL(109,ОфисФактические[Дек]) -> 0.00 ₽ | O19: =SUBTOTAL(109,ОфисФактические[ГОД]) -> 69,350.00 ₽
B21: Расходы на маркетинг | C21: Янв | D21: Фев | E21: Мар | F21: Апр | G21: Май | H21: Июн | I21: Июл | J21: Авг | K21: Сен | L21: Окт | M21: Ноя | N21: Дек | O21: ГОД
B22: Размещение веб-сайта | C22: 500.00 ₽ | D22: 500.00 ₽ | E22: 500.00 ₽ | F22: 500.00 ₽ | G22: 500.00 ₽ | H22: 500.00 ₽ | O22: =SUM(C22:N22) -> 3,000.00 ₽
B23: Обновление веб-сайта | C23: 200.00 ₽ | D23: 200.00 ₽ | E23: 200.00 ₽ | F23: 200.00 ₽ | G23: 200.00 ₽ | H23: 1,500.00 ₽ | O23: 2,500.00 ₽
B24: Подготовка рекламных материалов | C24: 4,800.00 ₽ | D24: 0.00 ₽ | E24: 0.00 ₽ | F24: 5,500.00 ₽ | G24: 0.00 ₽ | H24: 0.00 ₽ | O24: 10,300.00 ₽
B25: Печать рекламных материалов | C25: 100.00 ₽ | D25: 500.00 ₽ | E25: 100.00 ₽ | F25: 100.00 ₽ | G25: 600.00 ₽ | H25: 180.00 ₽ | O25: 1,580.00 ₽
B26: Маркетинговые мероприятия | C26: 1,800.00 ₽ | D26: 2,200.00 ₽ | E26: 2,200.00 ₽ | F26: 4,700.00 ₽ | G26: 1,500.00 ₽ | H26: 2,300.00 ₽ | O26: 14,700.00 ₽
B27: Прочие расходы | C27: 145.00 ₽ | D27: 156.00 ₽ | E27: 123.00 ₽ | F27: 223.00 ₽ | G27: 187.00 ₽ | H27: 245.00 ₽ | O27: 1,079.00 ₽
B28: Промежуточный итог | C28: =SUBTOTAL(109,МаркетингФактические[Янв]) -> 7,545.00 ₽ | D28: =SUBTOTAL(109,МаркетингФактические[Фев]) -> 3,556.00 ₽ | E28: =SUBTOTAL(109,МаркетингФактические[Мар]) -> 3,123.00 ₽ | F28: =SUBTOTAL(109,МаркетингФактические[Апр]) -> 11,223.00 ₽ | G28: =SUBTOTAL(109,МаркетингФактические[Май]) -> 2,987.00 ₽ | H28: =SUBTOTAL(109,МаркетингФактические[Июн]) -> 4,725.00 ₽ | I28: =SUBTOTAL(109,МаркетингФактические[Июл]) -> 0.00 ₽ | J28: =SUBTOTAL(109,МаркетингФактические[Авг]) -> 0.00 ₽ | K28: =SUBTOTAL(109,МаркетингФактические[Сен]) -> 0.00 ₽ | L28: =SUBTOTAL(109,МаркетингФактические[Окт]) -> 0.00 ₽ | M28: =SUBTOTAL(109,МаркетингФактические[Ноя]) -> 0.00 ₽ | N28: =SUBTOTAL(109,МаркетингФактические[Дек]) -> 0.00 ₽ | O28: =SUBTOTAL(109,МаркетингФактические[ГОД]) -> 33,159.00 ₽
B30: Обучение/командировки | C30: Янв | D30: Фев | E30: Мар | F30: Апр | G30: Май | H30: Июн | I30: Июл | J30: Авг | K30: Сен | L30: Окт | M30: Ноя | N30: Дек | O30: ГОД
B31: Учебные занятия | C31: 1,600.00 ₽ | D31: 2,400.00 ₽ | E31: 1,400.00 ₽ | F31: 1,600.00 ₽ | G31: 1,200.00 ₽ | H31: 2,800.00 ₽ | O31: =SUM(C31:N31) -> 11,000.00 ₽
B32: Командировочные расходы, связанные с обучением | C32: 1,200.00 ₽ | D32: 2,200.00 ₽ | E32: 1,400.00 ₽ | F32: 1,200.00 ₽ | G32: 800.00 ₽ | H32: 3,500.00 ₽ | O32: =SUM(C32:N32) -> 10,300.00 ₽
B33: Промежуточный итог | C33: =SUBTOTAL(109,ОбучениеИКомандировкиФактические[Янв]) -> 2,800.00 ₽ | D33: =SUBTOTAL(109,ОбучениеИКомандировкиФактические[Фев]) -> 4,600.00 ₽ | E33: =SUBTOTAL(109,ОбучениеИКомандировкиФактические[Мар]) -> 2,800.00 ₽ | F33: =SUBTOTAL(109,ОбучениеИКомандировкиФактические[Апр]) -> 2,800.00 ₽ | G33: =SUBTOTAL(109,ОбучениеИКомандировкиФактические[Май]) -> 2,000.00 ₽ | H33: =SUBTOTAL(109,ОбучениеИКомандировкиФактические[Июн]) -> 6,300.00 ₽ | I33: =SUBTOTAL(109,ОбучениеИКомандировкиФактические[Июл]) -> 0.00 ₽ | J33: =SUBTOTAL(109,ОбучениеИКомандировкиФактические[Авг]) -> 0.00 ₽ | K33: =SUBTOTAL(109,ОбучениеИКомандировкиФактические[Сен]) -> 0.00 ₽ | L33: =SUBTOTAL(109,ОбучениеИКомандировкиФактические[Окт]) -> 0.00 ₽ | M33: =SUBTOTAL(109,ОбучениеИКомандировкиФактические[Ноя]) -> 0.00 ₽ | N33: =SUBTOTAL(109,ОбучениеИКомандировкиФактические[Дек]) -> 0.00 ₽ | O33: =SUBTOTAL(109,ОбучениеИКомандировкиФактические[ГОД]) -> 21,300.00 ₽
B35: ОБЩИЕ запланированные расходы | C35: Янв | D35: Фев | E35: Мар | F35: Апр | G35: Май | H35: Июн | I35: Июл | J35: Авг | K35: Сен | L35: Окт | M35: Ноя | N35: Дек | O35: Год
B36: Фактические расходы за месяц | C36: =ОбучениеИКомандировкиФактические[[#Totals],[Янв]]+МаркетингФактические[[#Totals],[Янв]]+ОфисФактические[[#Totals],[Янв]]+СотрудникиФактические[[#Totals],[Янв]] -> 129,682.00 ₽ | D36: =ОбучениеИКомандировкиФактические[[#Totals],[Фев]]+МаркетингФактические[[#Totals],[Фев]]+ОфисФактические[[#Totals],[Фев]]+СотрудникиФактические[[#Totals],[Фев]] -> 127,804.00 ₽ | E36: =ОбучениеИКомандировкиФактические[[#Totals],[Мар]]+МаркетингФактические[[#Totals],[Мар]]+ОфисФактические[[#Totals],[Мар]]+СотрудникиФактические[[#Totals],[Мар]] -> 125,565.00 ₽ | F36: =ОбучениеИКомандировкиФактические[[#Totals],[Апр]]+МаркетингФактические[[#Totals],[Апр]]+ОфисФактические[[#Totals],[Апр]]+СотрудникиФактические[[#Totals],[Апр]] -> 137,394.00 ₽ | G36: =ОбучениеИКомандировкиФактические[[#Totals],[Май]]+МаркетингФактические[[#Totals],[Май]]+ОфисФактические[[#Totals],[Май]]+СотрудникиФактические[[#Totals],[Май]] -> 128,255.00 ₽ | H36: =ОбучениеИКомандировкиФактические[[#Totals],[Июн]]+МаркетингФактические[[#Totals],[Июн]]+ОфисФактические[[#Totals],[Июн]]+СотрудникиФактические[[#Totals],[Июн]] -> 134,239.00 ₽ | I36: =ОбучениеИКомандировкиФактические[[#Totals],[Июл]]+МаркетингФактические[[#Totals],[Июл]]+ОфисФактические[[#Totals],[Июл]]+СотрудникиФактические[[#Totals],[Июл]] -> 0.00 ₽ | J36: =ОбучениеИКомандировкиФактические[[#Totals],[Авг]]+МаркетингФактические[[#Totals],[Авг]]+ОфисФактические[[#Totals],[Авг]]+СотрудникиФактические[[#Totals],[Авг]] -> 0.00 ₽ | K36: =ОбучениеИКомандировкиФактические[[#Totals],[Сен]]+МаркетингФактические[[#Totals],[Сен]]+ОфисФактические[[#Totals],[Сен]]+СотрудникиФактические[[#Totals],[Сен]] -> 0.00 ₽ | L36: =ОбучениеИКомандировкиФактические[[#Totals],[Окт]]+МаркетингФактические[[#Totals],[Окт]]+ОфисФактические[[#Totals],[Окт]]+СотрудникиФактические[[#Totals],[Окт]] -> 0.00 ₽ | M36: =ОбучениеИКомандировкиФактические[[#Totals],[Ноя]]+МаркетингФактические[[#Totals],[Ноя]]+ОфисФактические[[#Totals],[Ноя]]+СотрудникиФактические[[#Totals],[Ноя]] -> 0.00 ₽ | N36: =ОбучениеИКомандировкиФактические[[#Totals],[Дек]]+МаркетингФактические[[#Totals],[Дек]]+ОфисФактические[[#Totals],[Дек]]+СотрудникиФактические[[#Totals],[Дек]] -> 0.00 ₽ | O36: =ОбучениеИКомандировкиФактические[[#Totals],[ГОД]]+МаркетингФактические[[#Totals],[ГОД]]+ОфисФактические[[#Totals],[ГОД]]+СотрудникиФактические[[#Totals],[ГОД]] -> 782,939.00 ₽
B37: ОБЩИЕ фактические расходы | C37: =SUM($C$36:C36) -> 129,682.00 ₽ | D37: =SUM($C$36:D36) -> 257,486.00 ₽ | E37: =SUM($C$36:E36) -> 383,051.00 ₽ | F37: =SUM($C$36:F36) -> 520,445.00 ₽ | G37: =SUM($C$36:G36) -> 648,700.00 ₽ | H37: =SUM($C$36:H36) -> 782,939.00 ₽ | I37: =SUM($C$36:I36) -> 782,939.00 ₽ | J37: =SUM($C$36:J36) -> 782,939.00 ₽ | K37: =SUM($C$36:K36) -> 782,939.00 ₽ | L37: =SUM($C$36:L36) -> 782,939.00 ₽ | M37: =SUM($C$36:M36) -> 782,939.00 ₽ | N37: =SUM($C$36:N36) -> 782,939.00 ₽

Sheet ОТКЛОНЕНИЯ ПО РАСХОДАМ
B2: ='ЗАПЛАНИРОВАННЫЕ РАСХОДЫ'!B2:D3 -> Название компании | K2: =заголовок_листа -> Подробные оценочные показатели расходов
K3: Затененные ячейки содержат вычисления.
B4: ОТКЛОНЕНИЯ ПО РАСХОДАМ | C4: ЯНВ | D4: ФЕВ | E4: МАР | F4: АПР | G4: МАЙ | H4: ИЮН | I4: ИЮЛ | J4: АВГ | K4: СЕН | L4: ОКТ | M4: НОЯ | N4: ДЕК | O4: ГОД
B5: Расходы на сотрудников | C5: Янв | D5: Фев | E5: Мар | F5: Апр | G5: Май | H5: Июн | I5: Июл | J5: Авг | K5: Сен | L5: Окт | M5: Ноя | N5: Дек | O5: ГОД
B6: Зарплата | C6: =INDEX(СотрудникиПлан[],MATCH(INDEX(СотрудникиОтклонение[],ROW()-ROW(СотрудникиОтклонение[[#Headers],[Янв]]),1),INDEX(СотрудникиПлан[],,1),0),MATCH(СотрудникиОтклонение[[#Headers],[Янв]],СотрудникиПлан[#Headers],0))-INDEX(СотрудникиФактические[],MATCH(INDEX(СотрудникиОтклонение[],ROW()-ROW(СотрудникиОтклонение[[#Headers],[Янв]]),1),INDEX(СотрудникиПлан[],,1),0),MATCH(СотрудникиОтклонение[[#Headers],[Янв]],СотрудникиФактические[#Headers],0)) -> 0.00 ₽ | D6: =INDEX(СотрудникиПлан[],MATCH(INDEX(СотрудникиОтклонение[],ROW()-ROW(СотрудникиОтклонение[[#Headers],[Фев]]),1),INDEX(СотрудникиПлан[],,1),0),MATCH(СотрудникиОтклонение[[#Headers],[Фев]],СотрудникиПлан[#Headers],0))-INDEX(СотрудникиФактические[],MATCH(INDEX(СотрудникиОтклонение[],ROW()-ROW(СотрудникиОтклонение[[#Headers],[Фев]]),1),INDEX(СотрудникиПлан[],,1),0),MATCH(СотрудникиОтклонение[[#Headers],[Фев]],СотрудникиФактические[#Headers],0)) -> 0.00 ₽ | E6: =INDEX(СотрудникиПлан[],MATCH(INDEX(СотрудникиОтклонение[],ROW()-ROW(СотрудникиОтклонение[[#Headers],[Мар]]),1),INDEX(СотрудникиПлан[],,1),0),MATCH(СотрудникиОтклонение[[#Headers],[Мар]],СотрудникиПлан[#Headers],0))-INDEX(СотрудникиФактические[],MATCH(INDEX(СотрудникиОтклонение[],ROW()-ROW(СотрудникиОтклонение[[#Headers],[Мар]]),1),INDEX(СотрудникиПлан[],,1),0),MATCH(СотрудникиОтклонение[[#Headers],[Мар]],СотрудникиФактические[#Headers],0)) -> 0.00 ₽ | F6: =INDEX(СотрудникиПлан[],MATCH(INDEX(СотрудникиОтклонение[],ROW()-ROW(СотрудникиОтклонение[[#Headers],[Апр]]),1),INDEX(СотрудникиПлан[],,1),0),MATCH(СотрудникиОтклонение[[#Headers],[Апр]],СотрудникиПлан[#Headers],0))-INDEX(СотрудникиФактические[],MATCH(INDEX(СотрудникиОтклонение[],ROW()-ROW(СотрудникиОтклонение[[#Headers],[Апр]]),1),INDEX(СотрудникиПлан[],,1),0),MATCH(СотрудникиОтклонение[[#Headers],[Апр]],СотрудникиФактические[#Headers],0)) -> -500.00 ₽ | G6: =INDEX(СотрудникиПлан[],MATCH(INDEX(СотрудникиОтклонение[],ROW()-ROW(СотрудникиОтклонение[[#Headers],[Май]]),1),INDEX(СотрудникиПлан[],,1),0),MATCH(СотрудникиОтклонение[[#Headers],[Май]],СотрудникиПлан[#Headers],0))-INDEX(СотрудникиФактические[],MATCH(INDEX(СотрудникиОтклонение[],ROW()-ROW(СотрудникиОтклонение[[#Headers],[Май]]),1),INDEX(СотрудникиПлан[],,1),0),MATCH(СотрудникиОтклонение[[#Headers],[Май]],СотрудникиФактические[#Headers],0)) -> -500.00 ₽ | H6: =INDEX(СотрудникиПлан[],MATCH(INDEX(СотрудникиОтклонение[],ROW()-ROW(СотрудникиОтклонение[[#Headers],[Июн]]),1),INDEX(СотрудникиПлан[],,1),0),MATCH(СотрудникиОтклонение[[#Headers],[Июн]],СотрудникиПлан[#Headers],0))-INDEX(СотрудникиФактические[],MATCH(INDEX(СотрудникиОтклонение[],ROW()-ROW(СотрудникиОтклонение[[#Headers],[Июн]]),1),INDEX(СотрудникиПлан[],,1),0),MATCH(СотрудникиОтклонение[[#Headers],[Июн]],СотрудникиФактические[#Headers],0)) -> -500.00 ₽ | I6: =INDEX(СотрудникиПлан[],MATCH(INDEX(СотрудникиОтклонение[],ROW()-ROW(СотрудникиОтклонение[[#Headers],[Июл]]),1),INDEX(СотрудникиПлан[],,1),0),MATCH(СотрудникиОтклонение[[#Headers],[Июл]],СотрудникиПлан[#Headers],0))-INDEX(СотрудникиФактические[],MATCH(INDEX(СотрудникиОтклонение[],ROW()-ROW(СотрудникиОтклонение[[#Headers],[Июл]]),1),INDEX(СотрудникиПлан[],,1),0),MATCH(СотрудникиОтклонение[[#Headers],[Июл]],СотрудникиФактические[#Headers],0)) -> 87,500.00 ₽ | J6: =INDEX(СотрудникиПлан[],MATCH(INDEX(СотрудникиОтклонение[],ROW()-ROW(СотрудникиОтклонение[[#Headers],[Авг]]),1),INDEX(СотрудникиПлан[],,1),0),MATCH(СотрудникиОтклонение[[#Headers],[Авг]],СотрудникиПлан[#Headers],0))-INDEX(СотрудникиФактические[],MATCH(INDEX(СотрудникиОтклонение[],ROW()-ROW(СотрудникиОтклонение[[#Headers],[Авг]]),1),INDEX(СотрудникиПлан[],,1),0),MATCH(СотрудникиОтклонение[[#Headers],[Авг]],СотрудникиФактические[#Headers],0)) -> 92,400.00 ₽ | K6: =INDEX(СотрудникиПлан[],MATCH(INDEX(СотрудникиОтклонение[],ROW()-ROW(СотрудникиОтклонение[[#Headers],[Сен]]),1),INDEX(СотрудникиПлан[],,1),0),MATCH(СотрудникиОтклонение[[#Headers],[Сен]],СотрудникиПлан[#Headers],0))-INDEX(СотрудникиФактические[],MATCH(INDEX(СотрудникиОтклонение[],ROW()-ROW(СотрудникиОтклонение[[#Headers],[Сен]]),1),INDEX(СотрудникиПлан[],,1),0),MATCH(СотрудникиОтклонение[[#Headers],[Сен]],СотрудникиФактические[#Headers],0)) -> 92,400.00 ₽ | L6: =INDEX(СотрудникиПлан[],MATCH(INDEX(СотрудникиОтклонение[],ROW()-ROW(СотрудникиОтклонение[[#Headers],[Окт]]),1),INDEX(СотрудникиПлан[],,1),0),MATCH(СотрудникиОтклонение[[#Headers],[Окт]],СотрудникиПлан[#Headers],0))-INDEX(СотрудникиФактические[],MATCH(INDEX(СотрудникиОтклонение[],ROW()-ROW(СотрудникиОтклонение[[#Headers],[Окт]]),1),INDEX(СотрудникиПлан[],,1),0),MATCH(СотрудникиОтклонение[[#Headers],[Окт]],СотрудникиФактические[#Headers],0)) -> 92,400.00 ₽ | M6: =INDEX(СотрудникиПлан[],MATCH(INDEX(СотрудникиОтклонение[],ROW()-ROW(СотрудникиОтклонение[[#Headers],[Ноя]]),1),INDEX(СотрудникиПлан[],,1),0),MATCH(СотрудникиОтклонение[[#Headers],[Ноя]],СотрудникиПлан[#Headers],0))-INDEX(СотрудникиФактические[],MATCH(INDEX(СотрудникиОтклонение[],ROW()-ROW(СотрудникиОтклонение[[#Headers],[Ноя]]),1),INDEX(СотрудникиПлан[],,1),0),MATCH(СотрудникиОтклонение[[#Headers],[Ноя]],СотрудникиФактические[#Headers],0)) -> 92,400.00 ₽ | N6: =INDEX(СотрудникиПлан[],MATCH(INDEX(СотрудникиОтклонение[],ROW()-ROW(СотрудникиОтклонение[[#Headers],[Дек]]),1),INDEX(СотрудникиПлан[],,1),0),MATCH(СотрудникиОтклонение[[#Headers],[Дек]],СотрудникиПлан[#Headers],0))-INDEX(СотрудникиФактические[],MATCH(INDEX(СотрудникиОтклонение[],ROW()-ROW(СотрудникиОтклонение[[#Headers],[Дек]]),1),INDEX(СотрудникиПлан[],,1),0),MATCH(СотрудникиОтклонение[[#Headers],[Дек]],СотрудникиФактические[#Headers],0)) -> 92,400.00 ₽ | O6: =SUM(СотрудникиОтклонение[[#This Row],[Янв]:[Дек]]) -> 548,000.00 ₽
B7: Премия | C7: =INDEX(СотрудникиПлан[],MATCH(INDEX(СотрудникиОтклонение[],ROW()-ROW(СотрудникиОтклонение[[#Headers],[Янв]]),1),INDEX(СотрудникиПлан[],,1),0),MATCH(СотрудникиОтклонение[[#Headers],[Янв]],СотрудникиПлан[#Headers],0))-INDEX(СотрудникиФактические[],MATCH(INDEX(СотрудникиОтклонение[],ROW()-ROW(СотрудникиОтклонение[[#Headers],[Янв]]),1),INDEX(СотрудникиПлан[],,1),0),MATCH(СотрудникиОтклонение[[#Headers],[Янв]],СотрудникиФактические[#Headers],0)) -> 0.00 ₽ | D7: =INDEX(СотрудникиПлан[],MATCH(INDEX(СотрудникиОтклонение[],ROW()-ROW(СотрудникиОтклонение[[#Headers],[Фев]]),1),INDEX(СотрудникиПлан[],,1),0),MATCH(СотрудникиОтклонение[[#Headers],[Фев]],СотрудникиПлан[#Headers],0))-INDEX(СотрудникиФактические[],MATCH(INDEX(СотрудникиОтклонение[],ROW()-ROW(СотрудникиОтклонение[[#Headers],[Фев]]),1),INDEX(СотрудникиПлан[],,1),0),MATCH(СотрудникиОтклонение[[#Headers],[Фев]],СотрудникиФактические[#Headers],0)) -> 0.00 ₽ | E7: =INDEX(СотрудникиПлан[],MATCH(INDEX(СотрудникиОтклонение[],ROW()-ROW(СотрудникиОтклонение[[#Headers],[Мар]]),1),INDEX(СотрудникиПлан[],,1),0),MATCH(СотрудникиОтклонение[[#Headers],[Мар]],СотрудникиПлан[#Headers],0))-INDEX(СотрудникиФактические[],MATCH(INDEX(СотрудникиОтклонение[],ROW()-ROW(СотрудникиОтклонение[[#Headers],[Мар]]),1),INDEX(СотрудникиПлан[],,1),0),MATCH(СотрудникиОтклонение[[#Headers],[Мар]],СотрудникиФактические[#Headers],0)) -> 0.00 ₽ | F7: =INDEX(СотрудникиПлан[],MATCH(INDEX(СотрудникиОтклонение[],ROW()-ROW(СотрудникиОтклонение[[#Headers],[Апр]]),1),INDEX(СотрудникиПлан[],,1),0),MATCH(СотрудникиОтклонение[[#Headers],[Апр]],СотрудникиПлан[#Headers],0))-INDEX(СотрудникиФактические[],MATCH(INDEX(СотрудникиОтклонение[],ROW()-ROW(СотрудникиОтклонение[[#Headers],[Апр]]),1),INDEX(СотрудникиПлан[],,1),0),MATCH(СотрудникиОтклонение[[#Headers],[Апр]],СотрудникиФактические[#Headers],0)) -> -135.00 ₽ | G7: =INDEX(СотрудникиПлан[],MATCH(INDEX(СотрудникиОтклонение[],ROW()-ROW(СотрудникиОтклонение[[#Headers],[Май]]),1),INDEX(СотрудникиПлан[],,1),0),MATCH(СотрудникиОтклонение[[#Headers],[Май]],СотрудникиПлан[#Headers],0))-INDEX(СотрудникиФактические[],MATCH(INDEX(СотрудникиОтклонение[],ROW()-ROW(СотрудникиОтклонение[[#Headers],[Май]]),1),INDEX(СотрудникиПлан[],,1),0),MATCH(СотрудникиОтклонение[[#Headers],[Май]],СотрудникиФактические[#Headers],0)) -> -135.00 ₽ | H7: =INDEX(СотрудникиПлан[],MATCH(INDEX(СотрудникиОтклонение[],ROW()-ROW(СотрудникиОтклонение[[#Headers],[Июн]]),1),INDEX(СотрудникиПлан[],,1),0),MATCH(СотрудникиОтклонение[[#Headers],[Июн]],СотрудникиПлан[#Headers],0))-INDEX(СотрудникиФактические[],MATCH(INDEX(СотрудникиОтклонение[],ROW()-ROW(СотрудникиОтклонение[[#Headers],[Июн]]),1),INDEX(СотрудникиПлан[],,1),0),MATCH(СотрудникиОтклонение[[#Headers],[Июн]],СотрудникиФактические[#Headers],0)) -> -135.00 ₽ | I7: =INDEX(СотрудникиПлан[],MATCH(INDEX(СотрудникиОтклонение[],ROW()-ROW(СотрудникиОтклонение[[#Headers],[Июл]]),1),INDEX(СотрудникиПлан[],,1),0),MATCH(СотрудникиОтклонение[[#Headers],[Июл]],СотрудникиПлан[#Headers],0))-INDEX(СотрудникиФактические[],MATCH(INDEX(СотрудникиОтклонение[],ROW()-ROW(СотрудникиОтклонение[[#Headers],[Июл]]),1),INDEX(СотрудникиПлан[],,1),0),MATCH(СотрудникиОтклонение[[#Headers],[Июл]],СотрудникиФактические[#Headers],0)) -> 23,625.00 ₽ | J7: =INDEX(СотрудникиПлан[],MATCH(INDEX(СотрудникиОтклонение[],ROW()-ROW(СотрудникиОтклонение[[#Headers],[Авг]]),1),INDEX(СотрудникиПлан[],,1),0),MATCH(СотрудникиОтклонение[[#Headers],[Авг]],СотрудникиПлан[#Headers],0))-INDEX(СотрудникиФактические[],MATCH(INDEX(СотрудникиОтклонение[],ROW()-ROW(СотрудникиОтклонение[[#Headers],[Авг]]),1),INDEX(СотрудникиПлан[],,1),0),MATCH(СотрудникиОтклонение[[#Headers],[Авг]],СотрудникиФактические[#Headers],0)) -> 24,948.00 ₽ | K7: =INDEX(СотрудникиПлан[],MATCH(INDEX(СотрудникиОтклонение[],ROW()-ROW(СотрудникиОтклонение[[#Headers],[Сен]]),1),INDEX(СотрудникиПлан[],,1),0),MATCH(СотрудникиОтклонение[[#Headers],[Сен]],СотрудникиПлан[#Headers],0))-INDEX(СотрудникиФактические[],MATCH(INDEX(СотрудникиОтклонение[],ROW()-ROW(СотрудникиОтклонение[[#Headers],[Сен]]),1),INDEX(СотрудникиПлан[],,1),0),MATCH(СотрудникиОтклонение[[#Headers],[Сен]],СотрудникиФактические[#Headers],0)) -> 24,948.00 ₽ | L7: =INDEX(СотрудникиПлан[],MATCH(INDEX(СотрудникиОтклонение[],ROW()-ROW(СотрудникиОтклонение[[#Headers],[Окт]]),1),INDEX(СотрудникиПлан[],,1),0),MATCH(СотрудникиОтклонение[[#Headers],[Окт]],СотрудникиПлан[#Headers],0))-INDEX(СотрудникиФактические[],MATCH(INDEX(СотрудникиОтклонение[],ROW()-ROW(СотрудникиОтклонение[[#Headers],[Окт]]),1),INDEX(СотрудникиПлан[],,1),0),MATCH(СотрудникиОтклонение[[#Headers],[Окт]],СотрудникиФактические[#Headers],0)) -> 24,948.00 ₽ | M7: =INDEX(СотрудникиПлан[],MATCH(INDEX(СотрудникиОтклонение[],ROW()-ROW(СотрудникиОтклонение[[#Headers],[Ноя]]),1),INDEX(СотрудникиПлан[],,1),0),MATCH(СотрудникиОтклонение[[#Headers],[Ноя]],СотрудникиПлан[#Headers],0))-INDEX(СотрудникиФактические[],MATCH(INDEX(СотрудникиОтклонение[],ROW()-ROW(СотрудникиОтклонение[[#Headers],[Ноя]]),1),INDEX(СотрудникиПлан[],,1),0),MATCH(СотрудникиОтклонение[[#Headers],[Ноя]],СотрудникиФактические[#Headers],0)) -> 24,948.00 ₽ | N7: =INDEX(СотрудникиПлан[],MATCH(INDEX(СотрудникиОтклонение[],ROW()-ROW(СотрудникиОтклонение[[#Headers],[Дек]]),1),INDEX(СотрудникиПлан[],,1),0),MATCH(СотрудникиОтклонение[[#Headers],[Дек]],СотрудникиПлан[#Headers],0))-INDEX(СотрудникиФактические[],MATCH(INDEX(СотрудникиОтклонение[],ROW()-ROW(СотрудникиОтклонение[[#Headers],[Дек]]),1),INDEX(СотрудникиПлан[],,1),0),MATCH(СотрудникиОтклонение[[#Headers],[Дек]],СотрудникиФактические[#Headers],0)) -> 24,948.00 ₽ | O7: =SUM(СотрудникиОтклонение[[#This Row],[Янв]:[Дек]]) -> 147,960.00 ₽
B8: Промежуточный итог | C8: =SUBTOTAL(109,СотрудникиОтклонение[Янв]) -> 0.00 ₽ | D8: =SUBTOTAL(109,СотрудникиОтклонение[Фев]) -> 0.00 ₽ | E8: =SUBTOTAL(109,СотрудникиОтклонение[Мар]) -> 0.00 ₽ | F8: =SUBTOTAL(109,СотрудникиОтклонение[Апр]) -> -635.00 ₽ | G8: =SUBTOTAL(109,СотрудникиОтклонение[Май]) -> -635.00 ₽ | H8: =SUBTOTAL(109,СотрудникиОтклонение[Июн]) -> -635.00 ₽ | I8: =SUBTOTAL(109,СотрудникиОтклонение[Июл]) -> 111,125.00 ₽ | J8: =SUBTOTAL(109,СотрудникиОтклонение[Авг]) -> 117,348.00 ₽ | K8: =SUBTOTAL(109,СотрудникиОтклонение[Сен]) -> 117,348.00 ₽ | L8: =SUBTOTAL(109,СотрудникиОтклонение[Окт]) -> 117,348.00 ₽ | M8: =SUBTOTAL(109,СотрудникиОтклонение[Ноя]) -> 117,348.00 ₽ | N8: =SUBTOTAL(109,СотрудникиОтклонение[Дек]) -> 117,348.00 ₽ | O8: =SUBTOTAL(109,СотрудникиОтклонение[ГОД]) -> 695,960.00 ₽
B10: Расходы на содержание офиса | C10: Янв | D10: Фев | E10: Мар | F10: Апр | G10: Май | H10: Июн | I10: Июл | J10: Авг | K10: Сен | L10: Окт | M10: Ноя | N10: Дек | O10: ГОД
B11: Аренда офисных помещений | C11: =INDEX(ОфисПлан[],MATCH(INDEX(ОфисОтклонение[],ROW()-ROW(ОфисОтклонение[[#Headers],[Янв]]),1),INDEX(ОфисПлан[],,1),0),MATCH(ОфисОтклонение[[#Headers],[Янв]],ОфисПлан[#Headers],0))-INDEX(ОфисФактические[],MATCH(INDEX(ОфисОтклонение[],ROW()-ROW(ОфисОтклонение[[#Headers],[Янв]]),1),INDEX(ОфисПлан[],,1),0),MATCH(ОфисОтклонение[[#Headers],[Янв]],ОфисФактические[#Headers],0)) -> 0.00 ₽ | D11: =INDEX(ОфисПлан[],MATCH(INDEX(ОфисОтклонение[],ROW()-ROW(ОфисОтклонение[[#Headers],[Фев]]),1),INDEX(ОфисПлан[],,1),0),MATCH(ОфисОтклонение[[#Headers],[Фев]],ОфисПлан[#Headers],0))-INDEX(ОфисФактические[],MATCH(INDEX(ОфисОтклонение[],ROW()-ROW(ОфисОтклонение[[#Headers],[Фев]]),1),INDEX(ОфисПлан[],,1),0),MATCH(ОфисОтклонение[[#Headers],[Фев]],ОфисФактические[#Headers],0)) -> 0.00 ₽ | E11: =INDEX(ОфисПлан[],MATCH(INDEX(ОфисОтклонение[],ROW()-ROW(ОфисОтклонение[[#Headers],[Мар]]),1),INDEX(ОфисПлан[],,1),0),MATCH(ОфисОтклонение[[#Headers],[Мар]],ОфисПлан[#Headers],0))-INDEX(ОфисФактические[],MATCH(INDEX(ОфисОтклонение[],ROW()-ROW(ОфисОтклонение[[#Headers],[Мар]]),1),INDEX(ОфисПлан[],,1),0),MATCH(ОфисОтклонение[[#Headers],[Мар]],ОфисФактические[#Headers],0)) -> 0.00 ₽ | F11: =INDEX(ОфисПлан[],MATCH(INDEX(ОфисОтклонение[],ROW()-ROW(ОфисОтклонение[[#Headers],[Апр]]),1),INDEX(ОфисПлан[],,1),0),MATCH(ОфисОтклонение[[#Headers],[Апр]],ОфисПлан[#Headers],0))-INDEX(ОфисФактические[],MATCH(INDEX(ОфисОтклонение[],ROW()-ROW(ОфисОтклонение[[#Headers],[Апр]]),1),INDEX(ОфисПлан[],,1),0),MATCH(ОфисОтклонение[[#Headers],[Апр]],ОфисФактические[#Headers],0)) -> 0.00 ₽ | G11: =INDEX(ОфисПлан[],MATCH(INDEX(ОфисОтклонение[],ROW()-ROW(ОфисОтклонение[[#Headers],[Май]]),1),INDEX(ОфисПлан[],,1),0),MATCH(ОфисОтклонение[[#Headers],[Май]],ОфисПлан[#Headers],0))-INDEX(ОфисФактические[],MATCH(INDEX(ОфисОтклонение[],ROW()-ROW(ОфисОтклонение[[#Headers],[Май]]),1),INDEX(ОфисПлан[],,1),0),MATCH(ОфисОтклонение[[#Headers],[Май]],ОфисФактические[#Headers],0)) -> 0.00 ₽ | H11: =INDEX(ОфисПлан[],MATCH(INDEX(ОфисОтклонение[],ROW()-ROW(ОфисОтклонение[[#Headers],[Июн]]),1),INDEX(ОфисПлан[],,1),0),MATCH(ОфисОтклонение[[#Headers],[Июн]],ОфисПлан[#Headers],0))-INDEX(ОфисФактические[],MATCH(INDEX(ОфисОтклонение[],ROW()-ROW(ОфисОтклонение[[#Headers],[Июн]]),1),INDEX(ОфисПлан[],,1),0),MATCH(ОфисОтклонение[[#Headers],[Июн]],ОфисФактические[#Headers],0)) -> 0.00 ₽ | I11: =INDEX(ОфисПлан[],MATCH(INDEX(ОфисОтклонение[],ROW()-ROW(ОфисОтклонение[[#Headers],[Июл]]),1),INDEX(ОфисПлан[],,1),0),MATCH(ОфисОтклонение[[#Headers],[Июл]],ОфисПлан[#Headers],0))-INDEX(ОфисФактические[],MATCH(INDEX(ОфисОтклонение[],ROW()-ROW(ОфисОтклонение[[#Headers],[Июл]]),1),INDEX(ОфисПлан[],,1),0),MATCH(ОфисОтклонение[[#Headers],[Июл]],ОфисФактические[#Headers],0)) -> 9,800.00 ₽ | J11: =INDEX(ОфисПлан[],MATCH(INDEX(ОфисОтклонение[],ROW()-ROW(ОфисОтклонение[[#Headers],[Авг]]),1),INDEX(ОфисПлан[],,1),0),MATCH(ОфисОтклонение[[#Headers],[Авг]],ОфисПлан[#Headers],0))-INDEX(ОфисФактические[],MATCH(INDEX(ОфисОтклонение[],ROW()-ROW(ОфисОтклонение[[#Headers],[Авг]]),1),INDEX(ОфисПлан[],,1),0),MATCH(ОфисОтклонение[[#Headers],[Авг]],ОфисФактические[#Headers],0)) -> 9,800.00 ₽ | K11: =INDEX(ОфисПлан[],MATCH(INDEX(ОфисОтклонение[],ROW()-ROW(ОфисОтклонение[[#Headers],[Сен]]),1),INDEX(ОфисПлан[],,1),0),MATCH(ОфисОтклонение[[#Headers],[Сен]],ОфисПлан[#Headers],0))-INDEX(ОфисФактические[],MATCH(INDEX(ОфисОтклонение[],ROW()-ROW(ОфисОтклонение[[#Headers],[Сен]]),1),INDEX(ОфисПлан[],,1),0),MATCH(ОфисОтклонение[[#Headers],[Сен]],ОфисФактические[#Headers],0)) -> 9,800.00 ₽ | L11: =INDEX(ОфисПлан[],MATCH(INDEX(ОфисОтклонение[],ROW()-ROW(ОфисОтклонение[[#Headers],[Окт]]),1),INDEX(ОфисПлан[],,1),0),MATCH(ОфисОтклонение[[#Headers],[Окт]],ОфисПлан[#Headers],0))-INDEX(ОфисФактические[],MATCH(INDEX(ОфисОтклонение[],ROW()-ROW(ОфисОтклонение[[#Headers],[Окт]]),1),INDEX(ОфисПлан[],,1),0),MATCH(ОфисОтклонение[[#Headers],[Окт]],ОфисФактические[#Headers],0)) -> 9,800.00 ₽ | M11: =INDEX(ОфисПлан[],MATCH(INDEX(ОфисОтклонение[],ROW()-ROW(ОфисОтклонение[[#Headers],[Ноя]]),1),INDEX(ОфисПлан[],,1),0),MATCH(ОфисОтклонение[[#Headers],[Ноя]],ОфисПлан[#Headers],0))-INDEX(ОфисФактические[],MATCH(INDEX(ОфисОтклонение[],ROW()-ROW(ОфисОтклонение[[#Headers],[Ноя]]),1),INDEX(ОфисПлан[],,1),0),MATCH(ОфисОтклонение[[#Headers],[Ноя]],ОфисФактические[#Headers],0)) -> 9,800.00 ₽ | N11: =INDEX(ОфисПлан[],MATCH(INDEX(ОфисОтклонение[],ROW()-ROW(ОфисОтклонение[[#Headers],[Дек]]),1),INDEX(ОфисПлан[],,1),0),MATCH(ОфисОтклонение[[#Headers],[Дек]],ОфисПлан[#Headers],0))-INDEX(ОфисФактические[],MATCH(INDEX(ОфисОтклонение[],ROW()-ROW(ОфисОтклонение[[#Headers],[Дек]]),1),INDEX(ОфисПлан[],,1),0),MATCH(ОфисОтклонение[[#Headers],[Дек]],ОфисФактические[#Headers],0)) -> 9,800.00 ₽ | O11: =SUM(ОфисОтклонение[[#This Row],[Янв]:[Дек]]) -> 58,800.00 ₽
B12: Газ | C12: =INDEX(ОфисПлан[],MATCH(INDEX(ОфисОтклонение[],ROW()-ROW(ОфисОтклонение[[#Headers],[Янв]]),1),INDEX(ОфисПлан[],,1),0),MATCH(ОфисОтклонение[[#Headers],[Янв]],ОфисПлан[#Headers],0))-INDEX(ОфисФактические[],MATCH(INDEX(ОфисОтклонение[],ROW()-ROW(ОфисОтклонение[[#Headers],[Янв]]),1),INDEX(ОфисПлан[],,1),0),MATCH(ОфисОтклонение[[#Headers],[Янв]],ОфисФактические[#Headers],0)) -> -4.00 ₽ | D12: =INDEX(ОфисПлан[],MATCH(INDEX(ОфисОтклонение[],ROW()-ROW(ОфисОтклонение[[#Headers],[Фев]]),1),INDEX(ОфисПлан[],,1),0),MATCH(ОфисОтклонение[[#Headers],[Фев]],ОфисПлан[#Headers],0))-INDEX(ОфисФактические[],MATCH(INDEX(ОфисОтклонение[],ROW()-ROW(ОфисОтклонение[[#Headers],[Фев]]),1),INDEX(ОфисПлан[],,1),0),MATCH(ОфисОтклонение[[#Headers],[Фев]],ОфисФактические[#Headers],0)) -> -30.00 ₽ | E12: =INDEX(ОфисПлан[],MATCH(INDEX(ОфисОтклонение[],ROW()-ROW(ОфисОтклонение[[#Headers],[Мар]]),1),INDEX(ОфисПлан[],,1),0),MATCH(ОфисОтклонение[[#Headers],[Мар]],ОфисПлан[#Headers],0))-INDEX(ОфисФактические[],MATCH(INDEX(ОфисОтклонение[],ROW()-ROW(ОфисОтклонение[[#Headers],[Мар]]),1),INDEX(ОфисПлан[],,1),0),MATCH(ОфисОтклонение[[#Headers],[Мар]],ОфисФактические[#Headers],0)) -> 15.00 ₽ | F12: =INDEX(ОфисПлан[],MATCH(INDEX(ОфисОтклонение[],ROW()-ROW(ОфисОтклонение[[#Headers],[Апр]]),1),INDEX(ОфисПлан[],,1),0),MATCH(ОфисОтклонение[[#Headers],[Апр]],ОфисПлан[#Headers],0))-INDEX(ОфисФактические[],MATCH(INDEX(ОфисОтклонение[],ROW()-ROW(ОфисОтклонение[[#Headers],[Апр]]),1),INDEX(ОфисПлан[],,1),0),MATCH(ОфисОтклонение[[#Headers],[Апр]],ОфисФактические[#Headers],0)) -> -130.00 ₽ | G12: =INDEX(ОфисПлан[],MATCH(INDEX(ОфисОтклонение[],ROW()-ROW(ОфисОтклонение[[#Headers],[Май]]),1),INDEX(ОфисПлан[],,1),0),MATCH(ОфисОтклонение[[#Headers],[Май]],ОфисПлан[#Headers],0))-INDEX(ОфисФактические[],MATCH(INDEX(ОфисОтклонение[],ROW()-ROW(ОфисОтклонение[[#Headers],[Май]]),1),INDEX(ОфисПлан[],,1),0),MATCH(ОфисОтклонение[[#Headers],[Май]],ОфисФактические[#Headers],0)) -> 13.00 ₽ | H12: =INDEX(ОфисПлан[],MATCH(INDEX(ОфисОтклонение[],ROW()-ROW(ОфисОтклонение[[#Headers],[Июн]]),1),INDEX(ОфисПлан[],,1),0),MATCH(ОфисОтклонение[[#Headers],[Июн]],ОфисПлан[#Headers],0))-INDEX(ОфисФактические[],MATCH(INDEX(ОфисОтклонение[],ROW()-ROW(ОфисОтклонение[[#Headers],[Июн]]),1),INDEX(ОфисПлан[],,1),0),MATCH(ОфисОтклонение[[#Headers],[Июн]],ОфисФактические[#Headers],0)) -> 12.00 ₽ | I12: =INDEX(ОфисПлан[],MATCH(INDEX(ОфисОтклонение[],ROW()-ROW(ОфисОтклонение[[#Headers],[Июл]]),1),INDEX(ОфисПлан[],,1),0),MATCH(ОфисОтклонение[[#Headers],[Июл]],ОфисПлан[#Headers],0))-INDEX(ОфисФактические[],MATCH(INDEX(ОфисОтклонение[],ROW()-ROW(ОфисОтклонение[[#Headers],[Июл]]),1),INDEX(ОфисПлан[],,1),0),MATCH(ОфисОтклонение[[#Headers],[Июл]],ОфисФактические[#Headers],0)) -> 100.00 ₽ | J12: =INDEX(ОфисПлан[],MATCH(INDEX(ОфисОтклонение[],ROW()-ROW(ОфисОтклонение[[#Headers],[Авг]]),1),INDEX(ОфисПлан[],,1),0),MATCH(ОфисОтклонение[[#Headers],[Авг]],ОфисПлан[#Headers],0))-INDEX(ОфисФактические[],MATCH(INDEX(ОфисОтклонение[],ROW()-ROW(ОфисОтклонение[[#Headers],[Авг]]),1),INDEX(ОфисПлан[],,1),0),MATCH(ОфисОтклонение[[#Headers],[Авг]],ОфисФактические[#Headers],0)) -> 100.00 ₽ | K12: =INDEX(ОфисПлан[],MATCH(INDEX(ОфисОтклонение[],ROW()-ROW(ОфисОтклонение[[#Headers],[Сен]]),1),INDEX(ОфисПлан[],,1),0),MATCH(ОфисОтклонение[[#Headers],[Сен]],ОфисПлан[#Headers],0))-INDEX(ОфисФактические[],MATCH(INDEX(ОфисОтклонение[],ROW()-ROW(ОфисОтклонение[[#Headers],[Сен]]),1),INDEX(ОфисПлан[],,1),0),MATCH(ОфисОтклонение[[#Headers],[Сен]],ОфисФактические[#Headers],0)) -> 100.00 ₽ | L12: =INDEX(ОфисПлан[],MATCH(INDEX(ОфисОтклонение[],ROW()-ROW(ОфисОтклонение[[#Headers],[Окт]]),1),INDEX(ОфисПлан[],,1),0),MATCH(ОфисОтклонение[[#Headers],[Окт]],ОфисПлан[#Headers],0))-INDEX(ОфисФактические[],MATCH(INDEX(ОфисОтклонение[],ROW()-ROW(ОфисОтклонение[[#Headers],[Окт]]),1),INDEX(ОфисПлан[],,1),0),MATCH(ОфисОтклонение[[#Headers],[Окт]],ОфисФактические[#Headers],0)) -> 100.00 ₽ | M12: =INDEX(ОфисПлан[],MATCH(INDEX(ОфисОтклонение[],ROW()-ROW(ОфисОтклонение[[#Headers],[Ноя]]),1),INDEX(ОфисПлан[],,1),0),MATCH(ОфисОтклонение[[#Headers],[Ноя]],ОфисПлан[#Headers],0))-INDEX(ОфисФактические[],MATCH(INDEX(ОфисОтклонение[],ROW()-ROW(ОфисОтклонение[[#Headers],[Ноя]]),1),INDEX(ОфисПлан[],,1),0),MATCH(ОфисОтклонение[[#Headers],[Ноя]],ОфисФактические[#Headers],0)) -> 400.00 ₽ | N12: =INDEX(ОфисПлан[],MATCH(INDEX(ОфисОтклонение[],ROW()-ROW(ОфисОтклонение[[#Headers],[Дек]]),1),INDEX(ОфисПлан[],,1),0),MATCH(ОфисОтклонение[[#Headers],[Дек]],ОфисПлан[#Headers],0))-INDEX(ОфисФактические[],MATCH(INDEX(ОфисОтклонение[],ROW()-ROW(ОфисОтклонение[[#Headers],[Дек]]),1),INDEX(ОфисПлан[],,1),0),MATCH(ОфисОтклонение[[#Headers],[Дек]],ОфисФактические[#Headers],0)) -> 400.00 ₽ | O12: =SUM(ОфисОтклонение[[#This Row],[Янв]:[Дек]]) -> 1,076.00 ₽
B13: Электричество | C13: =INDEX(ОфисПлан[],MATCH(INDEX(ОфисОтклонение[],ROW()-ROW(ОфисОтклонение[[#Headers],[Янв]]),1),INDEX(ОфисПлан[],,1),0),MATCH(ОфисОтклонение[[#Headers],[Янв]],ОфисПлан[#Headers],0))-INDEX(ОфисФактические[],MATCH(INDEX(ОфисОтклонение[],ROW()-ROW(ОфисОтклонение[[#Headers],[Янв]]),1),INDEX(ОфисПлан[],,1),0),MATCH(ОфисОтклонение[[#Headers],[Янв]],ОфисФактические[#Headers],0)) -> 12.00 ₽ | D13: =INDEX(ОфисПлан[],MATCH(INDEX(ОфисОтклонение[],ROW()-ROW(ОфисОтклонение[[#Headers],[Фев]]),1),INDEX(ОфисПлан[],,1),0),MATCH(ОфисОтклонение[[#Headers],[Фев]],ОфисПлан[#Headers],0))-INDEX(ОфисФактические[],MATCH(INDEX(ОфисОтклонение[],ROW()-ROW(ОфисОтклонение[[#Headers],[Фев]]),1),INDEX(ОфисПлан[],,1),0),MATCH(ОфисОтклонение[[#Headers],[Фев]],ОфисФактические[#Headers],0)) -> 22.00 ₽ | E13: =INDEX(ОфисПлан[],MATCH(INDEX(ОфисОтклонение[],ROW()-ROW(ОфисОтклонение[[#Headers],[Мар]]),1),INDEX(ОфисПлан[],,1),0),MATCH(ОфисОтклонение[[#Headers],[Мар]],ОфисПлан[#Headers],0))-INDEX(ОфисФактические[],MATCH(INDEX(ОфисОтклонение[],ROW()-ROW(ОфисОтклонение[[#Headers],[Мар]]),1),INDEX(ОфисПлан[],,1),0),MATCH(ОфисОтклонение[[#Headers],[Мар]],ОфисФактические[#Headers],0)) -> 32.00 ₽ | F13: =INDEX(ОфисПлан[],MATCH(INDEX(ОфисОтклонение[],ROW()-ROW(ОфисОтклонение[[#Headers],[Апр]]),1),INDEX(ОфисПлан[],,1),0),MATCH(ОфисОтклонение[[#Headers],[Апр]],ОфисПлан[#Headers],0))-INDEX(ОфисФактические[],MATCH(INDEX(ОфисОтклонение[],ROW()-ROW(ОфисОтклонение[[#Headers],[Апр]]),1),INDEX(ОфисПлан[],,1),0),MATCH(ОфисОтклонение[[#Headers],[Апр]],ОфисФактические[#Headers],0)) -> 1.00 ₽ | G13: =INDEX(ОфисПлан[],MATCH(INDEX(ОфисОтклонение[],ROW()-ROW(ОфисОтклонение[[#Headers],[Май]]),1),INDEX(ОфисПлан[],,1),0),MATCH(ОфисОтклонение[[#Headers],[Май]],ОфисПлан[#Headers],0))-INDEX(ОфисФактические[],MATCH(INDEX(ОфисОтклонение[],ROW()-ROW(ОфисОтклонение[[#Headers],[Май]]),1),INDEX(ОфисПлан[],,1),0),MATCH(ОфисОтклонение[[#Headers],[Май]],ОфисФактические[#Headers],0)) -> -6.00 ₽ | H13: =INDEX(ОфисПлан[],MATCH(INDEX(ОфисОтклонение[],ROW()-ROW(ОфисОтклонение[[#Headers],[Июн]]),1),INDEX(ОфисПлан[],,1),0),MATCH(ОфисОтклонение[[#Headers],[Июн]],ОфисПлан[#Headers],0))-INDEX(ОфисФактические[],MATCH(INDEX(ОфисОтклонение[],ROW()-ROW(ОфисОтклонение[[#Headers],[Июн]]),1),INDEX(ОфисПлан[],,1),0),MATCH(ОфисОтклонение[[#Headers],[Июн]],ОфисФактические[#Headers],0)) -> 10.00 ₽ | I13: =INDEX(ОфисПлан[],MATCH(INDEX(ОфисОтклонение[],ROW()-ROW(ОфисОтклонение[[#Headers],[Июл]]),1),INDEX(ОфисПлан[],,1),0),MATCH(ОфисОтклонение[[#Headers],[Июл]],ОфисПлан[#Headers],0))-INDEX(ОфисФактические[],MATCH(INDEX(ОфисОтклонение[],ROW()-ROW(ОфисОтклонение[[#Headers],[Июл]]),1),INDEX(ОфисПлан[],,1),0),MATCH(ОфисОтклонение[[#Headers],[Июл]],ОфисФактические[#Headers],0)) -> 300.00 ₽ | J13: =INDEX(ОфисПлан[],MATCH(INDEX(ОфисОтклонение[],ROW()-ROW(ОфисОтклонение[[#Headers],[Авг]]),1),INDEX(ОфисПлан[],,1),0),MATCH(ОфисОтклонение[[#Headers],[Авг]],ОфисПлан[#Headers],0))-INDEX(ОфисФактические[],MATCH(INDEX(ОфисОтклонение[],ROW()-ROW(ОфисОтклонение[[#Headers],[Авг]]),1),INDEX(ОфисПлан[],,1),0),MATCH(ОфисОтклонение[[#Headers],[Авг]],ОфисФактические[#Headers],0)) -> 300.00 ₽ | K13: =INDEX(ОфисПлан[],MATCH(INDEX(ОфисОтклонение[],ROW()-ROW(ОфисОтклонение[[#Headers],[Сен]]),1),INDEX(ОфисПлан[],,1),0),MATCH(ОфисОтклонение[[#Headers],[Сен]],ОфисПлан[#Headers],0))-INDEX(ОфисФактические[],MATCH(INDEX(ОфисОтклонение[],ROW()-ROW(ОфисОтклонение[[#Headers],[Сен]]),1),INDEX(ОфисПлан[],,1),0),MATCH(ОфисОтклонение[[#Headers],[Сен]],ОфисФактические[#Headers],0)) -> 300.00 ₽ | L13: =INDEX(ОфисПлан[],MATCH(INDEX(ОфисОтклонение[],ROW()-ROW(ОфисОтклонение[[#Headers],[Окт]]),1),INDEX(ОфисПлан[],,1),0),MATCH(ОфисОтклонение[[#Headers],[Окт]],ОфисПлан[#Headers],0))-INDEX(ОфисФактические[],MATCH(INDEX(ОфисОтклонение[],ROW()-ROW(ОфисОтклонение[[#Headers],[Окт]]),1),INDEX(ОфисПлан[],,1),0),MATCH(ОфисОтклонение[[#Headers],[Окт]],ОфисФактические[#Headers],0)) -> 300.00 ₽ | M13: =INDEX(ОфисПлан[],MATCH(INDEX(ОфисОтклонение[],ROW()-ROW(ОфисОтклонение[[#Headers],[Ноя]]),1),INDEX(ОфисПлан[],,1),0),MATCH(ОфисОтклонение[[#Headers],[Ноя]],ОфисПлан[#Headers],0))-INDEX(ОфисФактические[],MATCH(INDEX(ОфисОтклонение[],ROW()-ROW(ОфисОтклонение[[#Headers],[Ноя]]),1),INDEX(ОфисПлан[],,1),0),MATCH(ОфисОтклонение[[#Headers],[Ноя]],ОфисФактические[#Headers],0)) -> 300.00 ₽ | N13: =INDEX(ОфисПлан[],MATCH(INDEX(ОфисОтклонение[],ROW()-ROW(ОфисОтклонение[[#Headers],[Дек]]),1),INDEX(ОфисПлан[],,1),0),MATCH(ОфисОтклонение[[#Headers],[Дек]],ОфисПлан[#Headers],0))-INDEX(ОфисФактические[],MATCH(INDEX(ОфисОтклонение[],ROW()-ROW(ОфисОтклонение[[#Headers],[Дек]]),1),INDEX(ОфисПлан[],,1),0),MATCH(ОфисОтклонение[[#Headers],[Дек]],ОфисФактические[#Headers],0)) -> 300.00 ₽ | O13: =SUM(ОфисОтклонение[[#This Row],[Янв]:[Дек]]) -> 1,871.00 ₽
B14: Вода | C14: =INDEX(ОфисПлан[],MATCH(INDEX(ОфисОтклонение[],ROW()-ROW(ОфисОтклонение[[#Headers],[Янв]]),1),INDEX(ОфисПлан[],,1),0),MATCH(ОфисОтклонение[[#Headers],[Янв]],ОфисПлан[#Headers],0))-INDEX(ОфисФактические[],MATCH(INDEX(ОфисОтклонение[],ROW()-ROW(ОфисОтклонение[[#Headers],[Янв]]),1),INDEX(ОфисПлан[],,1),0),MATCH(ОфисОтклонение[[#Headers],[Янв]],ОфисФактические[#Headers],0)) -> 5.00 ₽ | D14: =INDEX(ОфисПлан[],MATCH(INDEX(ОфисОтклонение[],ROW()-ROW(ОфисОтклонение[[#Headers],[Фев]]),1),INDEX(ОфисПлан[],,1),0),MATCH(ОфисОтклонение[[#Headers],[Фев]],ОфисПлан[#Headers],0))-INDEX(ОфисФактические[],MATCH(INDEX(ОфисОтклонение[],ROW()-ROW(ОфисОтклонение[[#Headers],[Фев]]),1),INDEX(ОфисПлан[],,1),0),MATCH(ОфисОтклонение[[#Headers],[Фев]],ОфисФактические[#Headers],0)) -> 7.00 ₽ | E14: =INDEX(ОфисПлан[],MATCH(INDEX(ОфисОтклонение[],ROW()-ROW(ОфисОтклонение[[#Headers],[Мар]]),1),INDEX(ОфисПлан[],,1),0),MATCH(ОфисОтклонение[[#Headers],[Мар]],ОфисПлан[#Headers],0))-INDEX(ОфисФактические[],MATCH(INDEX(ОфисОтклонение[],ROW()-ROW(ОфисОтклонение[[#Headers],[Мар]]),1),INDEX(ОфисПлан[],,1),0),MATCH(ОфисОтклонение[[#Headers],[Мар]],ОфисФактические[#Headers],0)) -> 6.00 ₽ | F14: =INDEX(ОфисПлан[],MATCH(INDEX(ОфисОтклонение[],ROW()-ROW(ОфисОтклонение[[#Headers],[Апр]]),1),INDEX(ОфисПлан[],,1),0),MATCH(ОфисОтклонение[[#Headers],[Апр]],ОфисПлан[#Headers],0))-INDEX(ОфисФактические[],MATCH(INDEX(ОфисОтклонение[],ROW()-ROW(ОфисОтклонение[[#Headers],[Апр]]),1),INDEX(ОфисПлан[],,1),0),MATCH(ОфисОтклонение[[#Headers],[Апр]],ОфисФактические[#Headers],0)) -> 4.00 ₽ | G14: =INDEX(ОфисПлан[],MATCH(INDEX(ОфисОтклонение[],ROW()-ROW(ОфисОтклонение[[#Headers],[Май]]),1),INDEX(ОфисПлан[],,1),0),MATCH(ОфисОтклонение[[#Headers],[Май]],ОфисПлан[#Headers],0))-INDEX(ОфисФактические[],MATCH(INDEX(ОфисОтклонение[],ROW()-ROW(ОфисОтклонение[[#Headers],[Май]]),1),INDEX(ОфисПлан[],,1),0),MATCH(ОфисОтклонение[[#Headers],[Май]],ОфисФактические[#Headers],0)) -> 6.00 ₽ | H14: =INDEX(ОфисПлан[],MATCH(INDEX(ОфисОтклонение[],ROW()-ROW(ОфисОтклонение[[#Headers],[Июн]]),1),INDEX(ОфисПлан[],,1),0),MATCH(ОфисОтклонение[[#Headers],[Июн]],ОфисПлан[#Headers],0))-INDEX(ОфисФактические[],MATCH(INDEX(ОфисОтклонение[],ROW()-ROW(ОфисОтклонение[[#Headers],[Июн]]),1),INDEX(ОфисПлан[],,1),0),MATCH(ОфисОтклонение[[#Headers],[Июн]],ОфисФактические[#Headers],0)) -> 4.00 ₽ | I14: =INDEX(ОфисПлан[],MATCH(INDEX(ОфисОтклонение[],ROW()-ROW(ОфисОтклонение[[#Headers],[Июл]]),1),INDEX(ОфисПлан[],,1),0),MATCH(ОфисОтклонение[[#Headers],[Июл]],ОфисПлан[#Headers],0))-INDEX(ОфисФактические[],MATCH(INDEX(ОфисОтклонение[],ROW()-ROW(ОфисОтклонение[[#Headers],[Июл]]),1),INDEX(ОфисПлан[],,1),0),MATCH(ОфисОтклонение[[#Headers],[Июл]],ОфисФактические[#Headers],0)) -> 40.00 ₽ | J14: =INDEX(ОфисПлан[],MATCH(INDEX(ОфисОтклонение[],ROW()-ROW(ОфисОтклонение[[#Headers],[Авг]]),1),INDEX(ОфисПлан[],,1),0),MATCH(ОфисОтклонение[[#Headers],[Авг]],ОфисПлан[#Headers],0))-INDEX(ОфисФактические[],MATCH(INDEX(ОфисОтклонение[],ROW()-ROW(ОфисОтклонение[[#Headers],[Авг]]),1),INDEX(ОфисПлан[],,1),0),MATCH(ОфисОтклонение[[#Headers],[Авг]],ОфисФактические[#Headers],0)) -> 40.00 ₽ | K14: =INDEX(ОфисПлан[],MATCH(INDEX(ОфисОтклонение[],ROW()-ROW(ОфисОтклонение[[#Headers],[Сен]]),1),INDEX(ОфисПлан[],,1),0),MATCH(ОфисОтклонение[[#Headers],[Сен]],ОфисПлан[#Headers],0))-INDEX(ОфисФактические[],MATCH(INDEX(ОфисОтклонение[],ROW()-ROW(ОфисОтклонение[[#Headers],[Сен]]),1),INDEX(ОфисПлан[],,1),0),MATCH(ОфисОтклонение[[#Headers],[Сен]],ОфисФактические[#Headers],0)) -> 40.00 ₽ | L14: =INDEX(ОфисПлан[],MATCH(INDEX(ОфисОтклонение[],ROW()-ROW(ОфисОтклонение[[#Headers],[Окт]]),1),INDEX(ОфисПлан[],,1),0),MATCH(ОфисОтклонение[[#Headers],[Окт]],ОфисПлан[#Headers],0))-INDEX(ОфисФактические[],MATCH(INDEX(ОфисОтклонение[],ROW()-ROW(ОфисОтклонение[[#Headers],[Окт]]),1),INDEX(ОфисПлан[],,1),0),MATCH(ОфисОтклонение[[#Headers],[Окт]],ОфисФактические[#Headers],0)) -> 40.00 ₽ | M14: =INDEX(ОфисПлан[],MATCH(INDEX(ОфисОтклонение[],ROW()-ROW(ОфисОтклонение[[#Headers],[Ноя]]),1),INDEX(ОфисПлан[],,1),0),MATCH(ОфисОтклонение[[#Headers],[Ноя]],ОфисПлан[#Headers],0))-INDEX(ОфисФактические[],MATCH(INDEX(ОфисОтклонение[],ROW()-ROW(ОфисОтклонение[[#Headers],[Ноя]]),1),INDEX(ОфисПлан[],,1),0),MATCH(ОфисОтклонение[[#Headers],[Ноя]],ОфисФактические[#Headers],0)) -> 40.00 ₽ | N14: =INDEX(ОфисПлан[],MATCH(INDEX(ОфисОтклонение[],ROW()-ROW(ОфисОтклонение[[#Headers],[Дек]]),1),INDEX(ОфисПлан[],,1),0),MATCH(ОфисОтклонение[[#Headers],[Дек]],ОфисПлан[#Headers],0))-INDEX(ОфисФактические[],MATCH(INDEX(ОфисОтклонение[],ROW()-ROW(ОфисОтклонение[[#Headers],[Дек]]),1),INDEX(ОфисПлан[],,1),0),MATCH(ОфисОтклонение[[#Headers],[Дек]],ОфисФактические[#Headers],0)) -> 40.00 ₽ | O14: =SUM(ОфисОтклонение[[#This Row],[Янв]:[Дек]]) -> 272.00 ₽
B15: Телефон | C15: =INDEX(ОфисПлан[],MATCH(INDEX(ОфисОтклонение[],ROW()-ROW(ОфисОтклонение[[#Headers],[Янв]]),1),INDEX(ОфисПлан[],,1),0),MATCH(ОфисОтклонение[[#Headers],[Янв]],ОфисПлан[#Headers],0))-INDEX(ОфисФактические[],MATCH(INDEX(ОфисОтклонение[],ROW()-ROW(ОфисОтклонение[[#Headers],[Янв]]),1),INDEX(ОфисПлан[],,1),0),MATCH(ОфисОтклонение[[#Headers],[Янв]],ОфисФактические[#Headers],0)) -> 26.00 ₽ | D15: =INDEX(ОфисПлан[],MATCH(INDEX(ОфисОтклонение[],ROW()-ROW(ОфисОтклонение[[#Headers],[Фев]]),1),INDEX(ОфисПлан[],,1),0),MATCH(ОфисОтклонение[[#Headers],[Фев]],ОфисПлан[#Headers],0))-INDEX(ОфисФактические[],MATCH(INDEX(ОфисОтклонение[],ROW()-ROW(ОфисОтклонение[[#Headers],[Фев]]),1),INDEX(ОфисПлан[],,1),0),MATCH(ОфисОтклонение[[#Headers],[Фев]],ОфисФактические[#Headers],0)) -> 15.00 ₽ | E15: =INDEX(ОфисПлан[],MATCH(INDEX(ОфисОтклонение[],ROW()-ROW(ОфисОтклонение[[#Headers],[Мар]]),1),INDEX(ОфисПлан[],,1),0),MATCH(ОфисОтклонение[[#Headers],[Мар]],ОфисПлан[#Headers],0))-INDEX(ОфисФактические[],MATCH(INDEX(ОфисОтклонение[],ROW()-ROW(ОфисОтклонение[[#Headers],[Мар]]),1),INDEX(ОфисПлан[],,1),0),MATCH(ОфисОтклонение[[#Headers],[Мар]],ОфисФактические[#Headers],0)) -> -15.00 ₽ | F15: =INDEX(ОфисПлан[],MATCH(INDEX(ОфисОтклонение[],ROW()-ROW(ОфисОтклонение[[#Headers],[Апр]]),1),INDEX(ОфисПлан[],,1),0),MATCH(ОфисОтклонение[[#Headers],[Апр]],ОфисПлан[#Headers],0))-INDEX(ОфисФактические[],MATCH(INDEX(ОфисОтклонение[],ROW()-ROW(ОфисОтклонение[[#Headers],[Апр]]),1),INDEX(ОфисПлан[],,1),0),MATCH(ОфисОтклонение[[#Headers],[Апр]],ОфисФактические[#Headers],0)) -> 5.00 ₽ | G15: =INDEX(ОфисПлан[],MATCH(INDEX(ОфисОтклонение[],ROW()-ROW(ОфисОтклонение[[#Headers],[Май]]),1),INDEX(ОфисПлан[],,1),0),MATCH(ОфисОтклонение[[#Headers],[Май]],ОфисПлан[#Headers],0))-INDEX(ОфисФактические[],MATCH(INDEX(ОфисОтклонение[],ROW()-ROW(ОфисОтклонение[[#Headers],[Май]]),1),INDEX(ОфисПлан[],,1),0),MATCH(ОфисОтклонение[[#Headers],[Май]],ОфисФактические[#Headers],0)) -> 5.00 ₽ | H15: =INDEX(ОфисПлан[],MATCH(INDEX(ОфисОтклонение[],ROW()-ROW(ОфисОтклонение[[#Headers],[Июн]]),1),INDEX(ОфисПлан[],,1),0),MATCH(ОфисОтклонение[[#Headers],[Июн]],ОфисПлан[#Headers],0))-INDEX(ОфисФактические[],MATCH(INDEX(ОфисОтклонение[],ROW()-ROW(ОфисОтклонение[[#Headers],[Июн]]),1),INDEX(ОфисПлан[],,1),0),MATCH(ОфисОтклонение[[#Headers],[Июн]],ОфисФактические[#Headers],0)) -> 30.00 ₽ | I15: =INDEX(ОфисПлан[],MATCH(INDEX(ОфисОтклонение[],ROW()-ROW(ОфисОтклонение[[#Headers],[Июл]]),1),INDEX(ОфисПлан[],,1),0),MATCH(ОфисОтклонение[[#Headers],[Июл]],ОфисПлан[#Headers],0))-INDEX(ОфисФактические[],MATCH(INDEX(ОфисОтклонение[],ROW()-ROW(ОфисОтклонение[[#Headers],[Июл]]),1),INDEX(ОфисПлан[],,1),0),MATCH(ОфисОтклонение[[#Headers],[Июл]],ОфисФактические[#Headers],0)) -> 250.00 ₽ | J15: =INDEX(ОфисПлан[],MATCH(INDEX(ОфисОтклонение[],ROW()-ROW(ОфисОтклонение[[#Headers],[Авг]]),1),INDEX(ОфисПлан[],,1),0),MATCH(ОфисОтклонение[[#Headers],[Авг]],ОфисПлан[#Headers],0))-INDEX(ОфисФактические[],MATCH(INDEX(ОфисОтклонение[],ROW()-ROW(ОфисОтклонение[[#Headers],[Авг]]),1),INDEX(ОфисПлан[],,1),0),MATCH(ОфисОтклонение[[#Headers],[Авг]],ОфисФактические[#Headers],0)) -> 250.00 ₽ | K15: =INDEX(ОфисПлан[],MATCH(INDEX(ОфисОтклонение[],ROW()-ROW(ОфисОтклонение[[#Headers],[Сен]]),1),INDEX(ОфисПлан[],,1),0),MATCH(ОфисОтклонение[[#Headers],[Сен]],ОфисПлан[#Headers],0))-INDEX(ОфисФактические[],MATCH(INDEX(ОфисОтклонение[],ROW()-ROW(ОфисОтклонение[[#Headers],[Сен]]),1),INDEX(ОфисПлан[],,1),0),MATCH(ОфисОтклонение[[#Headers],[Сен]],ОфисФактические[#Headers],0)) -> 250.00 ₽ | L15: =INDEX(ОфисПлан[],MATCH(INDEX(ОфисОтклонение[],ROW()-ROW(ОфисОтклонение[[#Headers],[Окт]]),1),INDEX(ОфисПлан[],,1),0),MATCH(ОфисОтклонение[[#Headers],[Окт]],ОфисПлан[#Headers],0))-INDEX(ОфисФактические[],MATCH(INDEX(ОфисОтклонение[],ROW()-ROW(ОфисОтклонение[[#Headers],[Окт]]),1),INDEX(ОфисПлан[],,1),0),MATCH(ОфисОтклонение[[#Headers],[Окт]],ОфисФактические[#Headers],0)) -> 250.00 ₽ | M15: =INDEX(ОфисПлан[],MATCH(INDEX(ОфисОтклонение[],ROW()-ROW(ОфисОтклонение[[#Headers],[Ноя]]),1),INDEX(ОфисПлан[],,1),0),MATCH(ОфисОтклонение[[#Headers],[Ноя]],ОфисПлан[#Headers],0))-INDEX(ОфисФактические[],MATCH(INDEX(ОфисОтклонение[],ROW()-ROW(ОфисОтклонение[[#Headers],[Ноя]]),1),INDEX(ОфисПлан[],,1),0),MATCH(ОфисОтклонение[[#Headers],[Ноя]],ОфисФактические[#Headers],0)) -> 250.00 ₽ | N15: =INDEX(ОфисПлан[],MATCH(INDEX(ОфисОтклонение[],ROW()-ROW(ОфисОтклонение[[#Headers],[Дек]]),1),INDEX(ОфисПлан[],,1),0),MATCH(ОфисОтклонение[[#Headers],[Дек]],ОфисПлан[#Headers],0))-INDEX(ОфисФактические[],MATCH(INDEX(ОфисОтклонение[],ROW()-ROW(ОфисОтклонение[[#Headers],[Дек]]),1),INDEX(ОфисПлан[],,1),0),MATCH(ОфисОтклонение[[#Headers],[Дек]],ОфисФактические[#Headers],0)) -> 250.00 ₽ | O15: =SUM(ОфисОтклонение[[#This Row],[Янв]:[Дек]]) -> 1,566.00 ₽
B16: Доступ в Интернет | C16: =INDEX(ОфисПлан[],MATCH(INDEX(ОфисОтклонение[],ROW()-ROW(ОфисОтклонение[[#Headers],[Янв]]),1),INDEX(ОфисПлан[],,1),0),MATCH(ОфисОтклонение[[#Headers],[Янв]],ОфисПлан[#Headers],0))-INDEX(ОфисФактические[],MATCH(INDEX(ОфисОтклонение[],ROW()-ROW(ОфисОтклонение[[#Headers],[Янв]]),1),INDEX(ОфисПлан[],,1),0),MATCH(ОфисОтклонение[[#Headers],[Янв]],ОфисФактические[#Headers],0)) -> 0.00 ₽ | D16: =INDEX(ОфисПлан[],MATCH(INDEX(ОфисОтклонение[],ROW()-ROW(ОфисОтклонение[[#Headers],[Фев]]),1),INDEX(ОфисПлан[],,1),0),MATCH(ОфисОтклонение[[#Headers],[Фев]],ОфисПлан[#Headers],0))-INDEX(ОфисФактические[],MATCH(INDEX(ОфисОтклонение[],ROW()-ROW(ОфисОтклонение[[#Headers],[Фев]]),1),INDEX(ОфисПлан[],,1),0),MATCH(ОфисОтклонение[[#Headers],[Фев]],ОфисФактические[#Headers],0)) -> 0.00 ₽ | E16: =INDEX(ОфисПлан[],MATCH(INDEX(ОфисОтклонение[],ROW()-ROW(ОфисОтклонение[[#Headers],[Мар]]),1),INDEX(ОфисПлан[],,1),0),MATCH(ОфисОтклонение[[#Headers],[Мар]],ОфисПлан[#Headers],0))-INDEX(ОфисФактические[],MATCH(INDEX(ОфисОтклонение[],ROW()-ROW(ОфисОтклонение[[#Headers],[Мар]]),1),INDEX(ОфисПлан[],,1),0),MATCH(ОфисОтклонение[[#Headers],[Мар]],ОфисФактические[#Headers],0)) -> 0.00 ₽ | F16: =INDEX(ОфисПлан[],MATCH(INDEX(ОфисОтклонение[],ROW()-ROW(ОфисОтклонение[[#Headers],[Апр]]),1),INDEX(ОфисПлан[],,1),0),MATCH(ОфисОтклонение[[#Headers],[Апр]],ОфисПлан[#Headers],0))-INDEX(ОфисФактические[],MATCH(INDEX(ОфисОтклонение[],ROW()-ROW(ОфисОтклонение[[#Headers],[Апр]]),1),INDEX(ОфисПлан[],,1),0),MATCH(ОфисОтклонение[[#Headers],[Апр]],ОфисФактические[#Headers],0)) -> 0.00 ₽ | G16: =INDEX(ОфисПлан[],MATCH(INDEX(ОфисОтклонение[],ROW()-ROW(ОфисОтклонение[[#Headers],[Май]]),1),INDEX(ОфисПлан[],,1),0),MATCH(ОфисОтклонение[[#Headers],[Май]],ОфисПлан[#Headers],0))-INDEX(ОфисФактические[],MATCH(INDEX(ОфисОтклонение[],ROW()-ROW(ОфисОтклонение[[#Headers],[Май]]),1),INDEX(ОфисПлан[],,1),0),MATCH(ОфисОтклонение[[#Headers],[Май]],ОфисФактические[#Headers],0)) -> 0.00 ₽ | H16: =INDEX(ОфисПлан[],MATCH(INDEX(ОфисОтклонение[],ROW()-ROW(ОфисОтклонение[[#Headers],[Июн]]),1),INDEX(ОфисПлан[],,1),0),MATCH(ОфисОтклонение[[#Headers],[Июн]],ОфисПлан[#Headers],0))-INDEX(ОфисФактические[],MATCH(INDEX(ОфисОтклонение[],ROW()-ROW(ОфисОтклонение[[#Headers],[Июн]]),1),INDEX(ОфисПлан[],,1),0),MATCH(ОфисОтклонение[[#Headers],[Июн]],ОфисФактические[#Headers],0)) -> 0.00 ₽ | I16: =INDEX(ОфисПлан[],MATCH(INDEX(ОфисОтклонение[],ROW()-ROW(ОфисОтклонение[[#Headers],[Июл]]),1),INDEX(ОфисПлан[],,1),0),MATCH(ОфисОтклонение[[#Headers],[Июл]],ОфисПлан[#Headers],0))-INDEX(ОфисФактические[],MATCH(INDEX(ОфисОтклонение[],ROW()-ROW(ОфисОтклонение[[#Headers],[Июл]]),1),INDEX(ОфисПлан[],,1),0),MATCH(ОфисОтклонение[[#Headers],[Июл]],ОфисФактические[#Headers],0)) -> 180.00 ₽ | J16: =INDEX(ОфисПлан[],MATCH(INDEX(ОфисОтклонение[],ROW()-ROW(ОфисОтклонение[[#Headers],[Авг]]),1),INDEX(ОфисПлан[],,1),0),MATCH(ОфисОтклонение[[#Headers],[Авг]],ОфисПлан[#Headers],0))-INDEX(ОфисФактические[],MATCH(INDEX(ОфисОтклонение[],ROW()-ROW(ОфисОтклонение[[#Headers],[Авг]]),1),INDEX(ОфисПлан[],,1),0),MATCH(ОфисОтклонение[[#Headers],[Авг]],ОфисФактические[#Headers],0)) -> 180.00 ₽ | K16: =INDEX(ОфисПлан[],MATCH(INDEX(ОфисОтклонение[],ROW()-ROW(ОфисОтклонение[[#Headers],[Сен]]),1),INDEX(ОфисПлан[],,1),0),MATCH(ОфисОтклонение[[#Headers],[Сен]],ОфисПлан[#Headers],0))-INDEX(ОфисФактические[],MATCH(INDEX(ОфисОтклонение[],ROW()-ROW(ОфисОтклонение[[#Headers],[Сен]]),1),INDEX(ОфисПлан[],,1),0),MATCH(ОфисОтклонение[[#Headers],[Сен]],ОфисФактические[#Headers],0)) -> 180.00 ₽ | L16: =INDEX(ОфисПлан[],MATCH(INDEX(ОфисОтклонение[],ROW()-ROW(ОфисОтклонение[[#Headers],[Окт]]),1),INDEX(ОфисПлан[],,1),0),MATCH(ОфисОтклонение[[#Headers],[Окт]],ОфисПлан[#Headers],0))-INDEX(ОфисФактические[],MATCH(INDEX(ОфисОтклонение[],ROW()-ROW(ОфисОтклонение[[#Headers],[Окт]]),1),INDEX(ОфисПлан[],,1),0),MATCH(ОфисОтклонение[[#Headers],[Окт]],ОфисФактические[#Headers],0)) -> 180.00 ₽ | M16: =INDEX(ОфисПлан[],MATCH(INDEX(ОфисОтклонение[],ROW()-ROW(ОфисОтклонение[[#Headers],[Ноя]]),1),INDEX(ОфисПлан[],,1),0),MATCH(ОфисОтклонение[[#Headers],[Ноя]],ОфисПлан[#Headers],0))-INDEX(ОфисФактические[],MATCH(INDEX(ОфисОтклонение[],ROW()-ROW(ОфисОтклонение[[#Headers],[Ноя]]),1),INDEX(ОфисПлан[],,1),0),MATCH(ОфисОтклонение[[#Headers],[Ноя]],ОфисФактические[#Headers],0)) -> 180.00 ₽ | N16: =INDEX(ОфисПлан[],MATCH(INDEX(ОфисОтклонение[],ROW()-ROW(ОфисОтклонение[[#Headers],[Дек]]),1),INDEX(ОфисПлан[],,1),0),MATCH(ОфисОтклонение[[#Headers],[Дек]],ОфисПлан[#Headers],0))-INDEX(ОфисФактические[],MATCH(INDEX(ОфисОтклонение[],ROW()-ROW(ОфисОтклонение[[#Headers],[Дек]]),1),INDEX(ОфисПлан[],,1),0),MATCH(ОфисОтклонение[[#Headers],[Дек]],ОфисФактические[#Headers],0)) -> 180.00 ₽ | O16: =SUM(ОфисОтклонение[[#This Row],[Янв]:[Дек]]) -> 1,080.00 ₽
B17: Канцтовары | C17: =INDEX(ОфисПлан[],MATCH(INDEX(ОфисОтклонение[],ROW()-ROW(ОфисОтклонение[[#Headers],[Янв]]),1),INDEX(ОфисПлан[],,1),0),MATCH(ОфисОтклонение[[#Headers],[Янв]],ОфисПлан[#Headers],0))-INDEX(ОфисФактические[],MATCH(INDEX(ОфисОтклонение[],ROW()-ROW(ОфисОтклонение[[#Headers],[Янв]]),1),INDEX(ОфисПлан[],,1),0),MATCH(ОфисОтклонение[[#Headers],[Янв]],ОфисФактические[#Headers],0)) -> -56.00 ₽ | D17: =INDEX(ОфисПлан[],MATCH(INDEX(ОфисОтклонение[],ROW()-ROW(ОфисОтклонение[[#Headers],[Фев]]),1),INDEX(ОфисПлан[],,1),0),MATCH(ОфисОтклонение[[#Headers],[Фев]],ОфисПлан[#Headers],0))-INDEX(ОфисФактические[],MATCH(INDEX(ОфисОтклонение[],ROW()-ROW(ОфисОтклонение[[#Headers],[Фев]]),1),INDEX(ОфисПлан[],,1),0),MATCH(ОфисОтклонение[[#Headers],[Фев]],ОфисФактические[#Headers],0)) -> 58.00 ₽ | E17: =INDEX(ОфисПлан[],MATCH(INDEX(ОфисОтклонение[],ROW()-ROW(ОфисОтклонение[[#Headers],[Мар]]),1),INDEX(ОфисПлан[],,1),0),MATCH(ОфисОтклонение[[#Headers],[Мар]],ОфисПлан[#Headers],0))-INDEX(ОфисФактические[],MATCH(INDEX(ОфисОтклонение[],ROW()-ROW(ОфисОтклонение[[#Headers],[Мар]]),1),INDEX(ОфисПлан[],,1),0),MATCH(ОфисОтклонение[[#Headers],[Мар]],ОфисФактические[#Headers],0)) -> 40.00 ₽ | F17: =INDEX(ОфисПлан[],MATCH(INDEX(ОфисОтклонение[],ROW()-ROW(ОфисОтклонение[[#Headers],[Апр]]),1),INDEX(ОфисПлан[],,1),0),MATCH(ОфисОтклонение[[#Headers],[Апр]],ОфисПлан[#Headers],0))-INDEX(ОфисФактические[],MATCH(INDEX(ОфисОтклонение[],ROW()-ROW(ОфисОтклонение[[#Headers],[Апр]]),1),INDEX(ОфисПлан[],,1),0),MATCH(ОфисОтклонение[[#Headers],[Апр]],ОфисФактические[#Headers],0)) -> -21.00 ₽ | G17: =INDEX(ОфисПлан[],MATCH(INDEX(ОфисОтклонение[],ROW()-ROW(ОфисОтклонение[[#Headers],[Май]]),1),INDEX(ОфисПлан[],,1),0),MATCH(ОфисОтклонение[[#Headers],[Май]],ОфисПлан[#Headers],0))-INDEX(ОфисФактические[],MATCH(INDEX(ОфисОтклонение[],ROW()-ROW(ОфисОтклонение[[#Headers],[Май]]),1),INDEX(ОфисПлан[],,1),0),MATCH(ОфисОтклонение[[#Headers],[Май]],ОфисФактические[#Headers],0)) -> -56.00 ₽ | H17: =INDEX(ОфисПлан[],MATCH(INDEX(ОфисОтклонение[],ROW()-ROW(ОфисОтклонение[[#Headers],[Июн]]),1),INDEX(ОфисПлан[],,1),0),MATCH(ОфисОтклонение[[#Headers],[Июн]],ОфисПлан[#Headers],0))-INDEX(ОфисФактические[],MATCH(INDEX(ОфисОтклонение[],ROW()-ROW(ОфисОтклонение[[#Headers],[Июн]]),1),INDEX(ОфисПлан[],,1),0),MATCH(ОфисОтклонение[[#Headers],[Июн]],ОфисФактические[#Headers],0)) -> -40.00 ₽ | I17: =INDEX(ОфисПлан[],MATCH(INDEX(ОфисОтклонение[],ROW()-ROW(ОфисОтклонение[[#Headers],[Июл]]),1),INDEX(ОфисПлан[],,1),0),MATCH(ОфисОтклонение[[#Headers],[Июл]],ОфисПлан[#Headers],0))-INDEX(ОфисФактические[],MATCH(INDEX(ОфисОтклонение[],ROW()-ROW(ОфисОтклонение[[#Headers],[Июл]]),1),INDEX(ОфисПлан[],,1),0),MATCH(ОфисОтклонение[[#Headers],[Июл]],ОфисФактические[#Headers],0)) -> 200.00 ₽ | J17: =INDEX(ОфисПлан[],MATCH(INDEX(ОфисОтклонение[],ROW()-ROW(ОфисОтклонение[[#Headers],[Авг]]),1),INDEX(ОфисПлан[],,1),0),MATCH(ОфисОтклонение[[#Headers],[Авг]],ОфисПлан[#Headers],0))-INDEX(ОфисФактические[],MATCH(INDEX(ОфисОтклонение[],ROW()-ROW(ОфисОтклонение[[#Headers],[Авг]]),1),INDEX(ОфисПлан[],,1),0),MATCH(ОфисОтклонение[[#Headers],[Авг]],ОфисФактические[#Headers],0)) -> 200.00 ₽ | K17: =INDEX(ОфисПлан[],MATCH(INDEX(ОфисОтклонение[],ROW()-ROW(ОфисОтклонение[[#Headers],[Сен]]),1),INDEX(ОфисПлан[],,1),0),MATCH(ОфисОтклонение[[#Headers],[Сен]],ОфисПлан[#Headers],0))-INDEX(ОфисФактические[],MATCH(INDEX(ОфисОтклонение[],ROW()-ROW(ОфисОтклонение[[#Headers],[Сен]]),1),INDEX(ОфисПлан[],,1),0),MATCH(ОфисОтклонение[[#Headers],[Сен]],ОфисФактические[#Headers],0)) -> 200.00 ₽ | L17: =INDEX(ОфисПлан[],MATCH(INDEX(ОфисОтклонение[],ROW()-ROW(ОфисОтклонение[[#Headers],[Окт]]),1),INDEX(ОфисПлан[],,1),0),MATCH(ОфисОтклонение[[#Headers],[Окт]],ОфисПлан[#Headers],0))-INDEX(ОфисФактические[],MATCH(INDEX(ОфисОтклонение[],ROW()-ROW(ОфисОтклонение[[#Headers],[Окт]]),1),INDEX(ОфисПлан[],,1),0),MATCH(ОфисОтклонение[[#Headers],[Окт]],ОфисФактические[#Headers],0)) -> 200.00 ₽ | M17: =INDEX(ОфисПлан[],MATCH(INDEX(ОфисОтклонение[],ROW()-ROW(ОфисОтклонение[[#Headers],[Ноя]]),1),INDEX(ОфисПлан[],,1),0),MATCH(ОфисОтклонение[[#Headers],[Ноя]],ОфисПлан[#Headers],0))-INDEX(ОфисФактические[],MATCH(INDEX(ОфисОтклонение[],ROW()-ROW(ОфисОтклонение[[#Headers],[Ноя]]),1),INDEX(ОфисПлан[],,1),0),MATCH(ОфисОтклонение[[#Headers],[Ноя]],ОфисФактические[#Headers],0)) -> 200.00 ₽ | N17: =INDEX(ОфисПлан[],MATCH(INDEX(ОфисОтклонение[],ROW()-ROW(ОфисОтклонение[[#Headers],[Дек]]),1),INDEX(ОфисПлан[],,1),0),MATCH(ОфисОтклонение[[#Headers],[Дек]],ОфисПлан[#Headers],0))-INDEX(ОфисФактические[],MATCH(INDEX(ОфисОтклонение[],ROW()-ROW(ОфисОтклонение[[#Headers],[Дек]]),1),INDEX(ОфисПлан[],,1),0),MATCH(ОфисОтклонение[[#Headers],[Дек]],ОфисФактические[#Headers],0)) -> 200.00 ₽ | O17: =SUM(ОфисОтклонение[[#This Row],[Янв]:[Дек]]) -> 1,125.00 ₽
B18: Безопасность | C18: =INDEX(ОфисПлан[],MATCH(INDEX(ОфисОтклонение[],ROW()-ROW(ОфисОтклонение[[#Headers],[Янв]]),1),INDEX(ОфисПлан[],,1),0),MATCH(ОфисОтклонение[[#Headers],[Янв]],ОфисПлан[#Headers],0))-INDEX(ОфисФактические[],MATCH(INDEX(ОфисОтклонение[],ROW()-ROW(ОфисОтклонение[[#Headers],[Янв]]),1),INDEX(ОфисПлан[],,1),0),MATCH(ОфисОтклонение[[#Headers],[Янв]],ОфисФактические[#Headers],0)) -> 0.00 ₽ | D18: =INDEX(ОфисПлан[],MATCH(INDEX(ОфисОтклонение[],ROW()-ROW(ОфисОтклонение[[#Headers],[Фев]]),1),INDEX(ОфисПлан[],,1),0),MATCH(ОфисОтклонение[[#Headers],[Фев]],ОфисПлан[#Headers],0))-INDEX(ОфисФактические[],MATCH(INDEX(ОфисОтклонение[],ROW()-ROW(ОфисОтклонение[[#Headers],[Фев]]),1),INDEX(ОфисПлан[],,1),0),MATCH(ОфисОтклонение[[#Headers],[Фев]],ОфисФактические[#Headers],0)) -> 0.00 ₽ | E18: =INDEX(ОфисПлан[],MATCH(INDEX(ОфисОтклонение[],ROW()-ROW(ОфисОтклонение[[#Headers],[Мар]]),1),INDEX(ОфисПлан[],,1),0),MATCH(ОфисОтклонение[[#Headers],[Мар]],ОфисПлан[#Headers],0))-INDEX(ОфисФактические[],MATCH(INDEX(ОфисОтклонение[],ROW()-ROW(ОфисОтклонение[[#Headers],[Мар]]),1),INDEX(ОфисПлан[],,1),0),MATCH(ОфисОтклонение[[#Headers],[Мар]],ОфисФактические[#Headers],0)) -> 0.00 ₽ | F18: =INDEX(ОфисПлан[],MATCH(INDEX(ОфисОтклонение[],ROW()-ROW(ОфисОтклонение[[#Headers],[Апр]]),1),INDEX(ОфисПлан[],,1),0),MATCH(ОфисОтклонение[[#Headers],[Апр]],ОфисПлан[#Headers],0))-INDEX(ОфисФактические[],MATCH(INDEX(ОфисОтклонение[],ROW()-ROW(ОфисОтклонение[[#Headers],[Апр]]),1),INDEX(ОфисПлан[],,1),0),MATCH(ОфисОтклонение[[#Headers],[Апр]],ОфисФактические[#Headers],0)) -> 0.00 ₽ | G18: =INDEX(ОфисПлан[],MATCH(INDEX(ОфисОтклонение[],ROW()-ROW(ОфисОтклонение[[#Headers],[Май]]),1),INDEX(ОфисПлан[],,1),0),MATCH(ОфисОтклонение[[#Headers],[Май]],ОфисПлан[#Headers],0))-INDEX(ОфисФактические[],MATCH(INDEX(ОфисОтклонение[],ROW()-ROW(ОфисОтклонение[[#Headers],[Май]]),1),INDEX(ОфисПлан[],,1),0),MATCH(ОфисОтклонение[[#Headers],[Май]],ОфисФактические[#Headers],0)) -> 0.00 ₽ | H18: =INDEX(ОфисПлан[],MATCH(INDEX(ОфисОтклонение[],ROW()-ROW(ОфисОтклонение[[#Headers],[Июн]]),1),INDEX(ОфисПлан[],,1),0),MATCH(ОфисОтклонение[[#Headers],[Июн]],ОфисПлан[#Headers],0))-INDEX(ОфисФактические[],MATCH(INDEX(ОфисОтклонение[],ROW()-ROW(ОфисОтклонение[[#Headers],[Июн]]),1),INDEX(ОфисПлан[],,1),0),MATCH(ОфисОтклонение[[#Headers],[Июн]],ОфисФактические[#Headers],0)) -> 0.00 ₽ | I18: =INDEX(ОфисПлан[],MATCH(INDEX(ОфисОтклонение[],ROW()-ROW(ОфисОтклонение[[#Headers],[Июл]]),1),INDEX(ОфисПлан[],,1),0),MATCH(ОфисОтклонение[[#Headers],[Июл]],ОфисПлан[#Headers],0))-INDEX(ОфисФактические[],MATCH(INDEX(ОфисОтклонение[],ROW()-ROW(ОфисОтклонение[[#Headers],[Июл]]),1),INDEX(ОфисПлан[],,1),0),MATCH(ОфисОтклонение[[#Headers],[Июл]],ОфисФактические[#Headers],0)) -> 600.00 ₽ | J18: =INDEX(ОфисПлан[],MATCH(INDEX(ОфисОтклонение[],ROW()-ROW(ОфисОтклонение[[#Headers],[Авг]]),1),INDEX(ОфисПлан[],,1),0),MATCH(ОфисОтклонение[[#Headers],[Авг]],ОфисПлан[#Headers],0))-INDEX(ОфисФактические[],MATCH(INDEX(ОфисОтклонение[],ROW()-ROW(ОфисОтклонение[[#Headers],[Авг]]),1),INDEX(ОфисПлан[],,1),0),MATCH(ОфисОтклонение[[#Headers],[Авг]],ОфисФактические[#Headers],0)) -> 600.00 ₽ | K18: =INDEX(ОфисПлан[],MATCH(INDEX(ОфисОтклонение[],ROW()-ROW(ОфисОтклонение[[#Headers],[Сен]]),1),INDEX(ОфисПлан[],,1),0),MATCH(ОфисОтклонение[[#Headers],[Сен]],ОфисПлан[#Headers],0))-INDEX(ОфисФактические[],MATCH(INDEX(ОфисОтклонение[],ROW()-ROW(ОфисОтклонение[[#Headers],[Сен]]),1),INDEX(ОфисПлан[],,1),0),MATCH(ОфисОтклонение[[#Headers],[Сен]],ОфисФактические[#Headers],0)) -> 600.00 ₽ | L18: =INDEX(ОфисПлан[],MATCH(INDEX(ОфисОтклонение[],ROW()-ROW(ОфисОтклонение[[#Headers],[Окт]]),1),INDEX(ОфисПлан[],,1),0),MATCH(ОфисОтклонение[[#Headers],[Окт]],ОфисПлан[#Headers],0))-INDEX(ОфисФактические[],MATCH(INDEX(ОфисОтклонение[],ROW()-ROW(ОфисОтклонение[[#Headers],[Окт]]),1),INDEX(ОфисПлан[],,1),0),MATCH(ОфисОтклонение[[#Headers],[Окт]],ОфисФактические[#Headers],0)) -> 600.00 ₽ | M18: =INDEX(ОфисПлан[],MATCH(INDEX(ОфисОтклонение[],ROW()-ROW(ОфисОтклонение[[#Headers],[Ноя]]),1),INDEX(ОфисПлан[],,1),0),MATCH(ОфисОтклонение[[#Headers],[Ноя]],ОфисПлан[#Headers],0))-INDEX(ОфисФактические[],MATCH(INDEX(ОфисОтклонение[],ROW()-ROW(ОфисОтклонение[[#Headers],[Ноя]]),1),INDEX(ОфисПлан[],,1),0),MATCH(ОфисОтклонение[[#Headers],[Ноя]],ОфисФактические[#Headers],0)) -> 600.00 ₽ | N18: =INDEX(ОфисПлан[],MATCH(INDEX(ОфисОтклонение[],ROW()-ROW(ОфисОтклонение[[#Headers],[Дек]]),1),INDEX(ОфисПлан[],,1),0),MATCH(ОфисОтклонение[[#Headers],[Дек]],ОфисПлан[#Headers],0))-INDEX(ОфисФактические[],MATCH(INDEX(ОфисОтклонение[],ROW()-ROW(ОфисОтклонение[[#Headers],[Дек]]),1),INDEX(ОфисПлан[],,1),0),MATCH(ОфисОтклонение[[#Headers],[Дек]],ОфисФактические[#Headers],0)) -> 600.00 ₽ | O18: =SUM(ОфисОтклонение[[#This Row],[Янв]:[Дек]]) -> 3,600.00 ₽
B19: Промежуточный итог | C19: =SUBTOTAL(109,ОфисОтклонение[Янв]) -> -17.00 ₽ | D19: =SUBTOTAL(109,ОфисОтклонение[Фев]) -> 72.00 ₽ | E19: =SUBTOTAL(109,ОфисОтклонение[Мар]) -> 78.00 ₽ | F19: =SUBTOTAL(109,ОфисОтклонение[Апр]) -> -141.00 ₽ | G19: =SUBTOTAL(109,ОфисОтклонение[Май]) -> -38.00 ₽ | H19: =SUBTOTAL(109,ОфисОтклонение[Июн]) -> 16.00 ₽ | I19: =SUBTOTAL(109,ОфисОтклонение[Июл]) -> 11,470.00 ₽ | J19: =SUBTOTAL(109,ОфисОтклонение[Авг]) -> 11,470.00 ₽ | K19: =SUBTOTAL(109,ОфисОтклонение[Сен]) -> 11,470.00 ₽ | L19: =SUBTOTAL(109,ОфисОтклонение[Окт]) -> 11,470.00 ₽ | M19: =SUBTOTAL(109,ОфисОтклонение[Ноя]) -> 11,770.00 ₽ | N19: =SUBTOTAL(109,ОфисОтклонение[Дек]) -> 11,770.00 ₽ | O19: =SUBTOTAL(109,ОфисОтклонение[ГОД]) -> 69,390.00 ₽
B21: Расходы на маркетинг | C21: Янв | D21: Фев | E21: Мар | F21: Апр | G21: Май | H21: Июн | I21: Июл | J21: Авг | K21: Сен | L21: Окт | M21: Ноя | N21: Дек | O21: ГОД
B22: Размещение веб-сайта | C22: =INDEX(МаркетингПлан[],MATCH(INDEX(МаркетингОтклонение[],ROW()-ROW(МаркетингОтклонение[[#Headers],[Янв]]),1),INDEX(МаркетингПлан[],,1),0),MATCH(МаркетингОтклонение[[#Headers],[Янв]],МаркетингПлан[#Headers],0))-INDEX(МаркетингФактические[],MATCH(INDEX(МаркетингОтклонение[],ROW()-ROW(МаркетингОтклонение[[#Headers],[Янв]]),1),INDEX(МаркетингПлан[],,1),0),MATCH(МаркетингОтклонение[[#Headers],[Янв]],МаркетингФактические[#Headers],0)) -> 0.00 ₽ | D22: =INDEX(МаркетингПлан[],MATCH(INDEX(МаркетингОтклонение[],ROW()-ROW(МаркетингОтклонение[[#Headers],[Фев]]),1),INDEX(МаркетингПлан[],,1),0),MATCH(МаркетингОтклонение[[#Headers],[Фев]],МаркетингПлан[#Headers],0))-INDEX(МаркетингФактические[],MATCH(INDEX(МаркетингОтклонение[],ROW()-ROW(МаркетингОтклонение[[#Headers],[Фев]]),1),INDEX(МаркетингПлан[],,1),0),MATCH(МаркетингОтклонение[[#Headers],[Фев]],МаркетингФактические[#Headers],0)) -> 0.00 ₽ | E22: =INDEX(МаркетингПлан[],MATCH(INDEX(МаркетингОтклонение[],ROW()-ROW(МаркетингОтклонение[[#Headers],[Мар]]),1),INDEX(МаркетингПлан[],,1),0),MATCH(МаркетингОтклонение[[#Headers],[Мар]],МаркетингПлан[#Headers],0))-INDEX(МаркетингФактические[],MATCH(INDEX(МаркетингОтклонение[],ROW()-ROW(МаркетингОтклонение[[#Headers],[Мар]]),1),INDEX(МаркетингПлан[],,1),0),MATCH(МаркетингОтклонение[[#Headers],[Мар]],МаркетингФактические[#Headers],0)) -> 0.00 ₽ | F22: =INDEX(МаркетингПлан[],MATCH(INDEX(МаркетингОтклонение[],ROW()-ROW(МаркетингОтклонение[[#Headers],[Апр]]),1),INDEX(МаркетингПлан[],,1),0),MATCH(МаркетингОтклонение[[#Headers],[Апр]],МаркетингПлан[#Headers],0))-INDEX(МаркетингФактические[],MATCH(INDEX(МаркетингОтклонение[],ROW()-ROW(МаркетингОтклонение[[#Headers],[Апр]]),1),INDEX(МаркетингПлан[],,1),0),MATCH(МаркетингОтклонение[[#Headers],[Апр]],МаркетингФактические[#Headers],0)) -> 0.00 ₽ | G22: =INDEX(МаркетингПлан[],MATCH(INDEX(МаркетингОтклонение[],ROW()-ROW(МаркетингОтклонение[[#Headers],[Май]]),1),INDEX(МаркетингПлан[],,1),0),MATCH(МаркетингОтклонение[[#Headers],[Май]],МаркетингПлан[#Headers],0))-INDEX(МаркетингФактические[],MATCH(INDEX(МаркетингОтклонение[],ROW()-ROW(МаркетингОтклонение[[#Headers],[Май]]),1),INDEX(МаркетингПлан[],,1),0),MATCH(МаркетингОтклонение[[#Headers],[Май]],МаркетингФактические[#Headers],0)) -> 0.00 ₽ | H22: =INDEX(МаркетингПлан[],MATCH(INDEX(МаркетингОтклонение[],ROW()-ROW(МаркетингОтклонение[[#Headers],[Июн]]),1),INDEX(МаркетингПлан[],,1),0),MATCH(МаркетингОтклонение[[#Headers],[Июн]],МаркетингПлан[#Headers],0))-INDEX(МаркетингФактические[],MATCH(INDEX(МаркетингОтклонение[],ROW()-ROW(МаркетингОтклонение[[#Headers],[Июн]]),1),INDEX(МаркетингПлан[],,1),0),MATCH(МаркетингОтклонение[[#Headers],[Июн]],МаркетингФактические[#Headers],0)) -> 0.00 ₽ | I22: =INDEX(МаркетингПлан[],MATCH(INDEX(МаркетингОтклонение[],ROW()-ROW(МаркетингОтклонение[[#Headers],[Июл]]),1),INDEX(МаркетингПлан[],,1),0),MATCH(МаркетингОтклонение[[#Headers],[Июл]],МаркетингПлан[#Headers],0))-INDEX(МаркетингФактические[],MATCH(INDEX(МаркетингОтклонение[],ROW()-ROW(МаркетингОтклонение[[#Headers],[Июл]]),1),INDEX(МаркетингПлан[],,1),0),MATCH(МаркетингОтклонение[[#Headers],[Июл]],МаркетингФактические[#Headers],0)) -> 500.00 ₽ | J22: =INDEX(МаркетингПлан[],MATCH(INDEX(МаркетингОтклонение[],ROW()-ROW(МаркетингОтклонение[[#Headers],[Авг]]),1),INDEX(МаркетингПлан[],,1),0),MATCH(МаркетингОтклонение[[#Headers],[Авг]],МаркетингПлан[#Headers],0))-INDEX(МаркетингФактические[],MATCH(INDEX(МаркетингОтклонение[],ROW()-ROW(МаркетингОтклонение[[#Headers],[Авг]]),1),INDEX(МаркетингПлан[],,1),0),MATCH(МаркетингОтклонение[[#Headers],[Авг]],МаркетингФактические[#Headers],0)) -> 500.00 ₽ | K22: =INDEX(МаркетингПлан[],MATCH(INDEX(МаркетингОтклонение[],ROW()-ROW(МаркетингОтклонение[[#Headers],[Сен]]),1),INDEX(МаркетингПлан[],,1),0),MATCH(МаркетингОтклонение[[#Headers],[Сен]],МаркетингПлан[#Headers],0))-INDEX(МаркетингФактические[],MATCH(INDEX(МаркетингОтклонение[],ROW()-ROW(МаркетингОтклонение[[#Headers],[Сен]]),1),INDEX(МаркетингПлан[],,1),0),MATCH(МаркетингОтклонение[[#Headers],[Сен]],МаркетингФактические[#Headers],0)) -> 500.00 ₽ | L22: =INDEX(МаркетингПлан[],MATCH(INDEX(МаркетингОтклонение[],ROW()-ROW(МаркетингОтклонение[[#Headers],[Окт]]),1),INDEX(МаркетингПлан[],,1),0),MATCH(МаркетингОтклонение[[#Headers],[Окт]],МаркетингПлан[#Headers],0))-INDEX(МаркетингФактические[],MATCH(INDEX(МаркетингОтклонение[],ROW()-ROW(МаркетингОтклонение[[#Headers],[Окт]]),1),INDEX(МаркетингПлан[],,1),0),MATCH(МаркетингОтклонение[[#Headers],[Окт]],МаркетингФактические[#Headers],0)) -> 500.00 ₽ | M22: =INDEX(МаркетингПлан[],MATCH(INDEX(МаркетингОтклонение[],ROW()-ROW(МаркетингОтклонение[[#Headers],[Ноя]]),1),INDEX(МаркетингПлан[],,1),0),MATCH(МаркетингОтклонение[[#Headers],[Ноя]],МаркетингПлан[#Headers],0))-INDEX(МаркетингФактические[],MATCH(INDEX(МаркетингОтклонение[],ROW()-ROW(МаркетингОтклонение[[#Headers],[Ноя]]),1),INDEX(МаркетингПлан[],,1),0),MATCH(МаркетингОтклонение[[#Headers],[Ноя]],МаркетингФактические[#Headers],0)) -> 500.00 ₽ | N22: =INDEX(МаркетингПлан[],MATCH(INDEX(МаркетингОтклонение[],ROW()-ROW(МаркетингОтклонение[[#Headers],[Дек]]),1),INDEX(МаркетингПлан[],,1),0),MATCH(МаркетингОтклонение[[#Headers],[Дек]],МаркетингПлан[#Headers],0))-INDEX(МаркетингФактические[],MATCH(INDEX(МаркетингОтклонение[],ROW()-ROW(МаркетингОтклонение[[#Headers],[Дек]]),1),INDEX(МаркетингПлан[],,1),0),MATCH(МаркетингОтклонение[[#Headers],[Дек]],МаркетингФактические[#Headers],0)) -> 500.00 ₽ | O22: =SUM(МаркетингОтклонение[[#This Row],[Янв]:[Дек]]) -> 3,000.00 ₽
B23: Обновление веб-сайта | C23: =INDEX(МаркетингПлан[],MATCH(INDEX(МаркетингОтклонение[],ROW()-ROW(МаркетингОтклонение[[#Headers],[Янв]]),1),INDEX(МаркетингПлан[],,1),0),MATCH(МаркетингОтклонение[[#Headers],[Янв]],МаркетингПлан[#Headers],0))-INDEX(МаркетингФактические[],MATCH(INDEX(МаркетингОтклонение[],ROW()-ROW(МаркетингОтклонение[[#Headers],[Янв]]),1),INDEX(МаркетингПлан[],,1),0),MATCH(МаркетингОтклонение[[#Headers],[Янв]],МаркетингФактические[#Headers],0)) -> 0.00 ₽ | D23: =INDEX(МаркетингПлан[],MATCH(INDEX(МаркетингОтклонение[],ROW()-ROW(МаркетингОтклонение[[#Headers],[Фев]]),1),INDEX(МаркетингПлан[],,1),0),MATCH(МаркетингОтклонение[[#Headers],[Фев]],МаркетингПлан[#Headers],0))-INDEX(МаркетингФактические[],MATCH(INDEX(МаркетингОтклонение[],ROW()-ROW(МаркетингОтклонение[[#Headers],[Фев]]),1),INDEX(МаркетингПлан[],,1),0),MATCH(МаркетингОтклонение[[#Headers],[Фев]],МаркетингФактические[#Headers],0)) -> 0.00 ₽ | E23: =INDEX(МаркетингПлан[],MATCH(INDEX(МаркетингОтклонение[],ROW()-ROW(МаркетингОтклонение[[#Headers],[Мар]]),1),INDEX(МаркетингПлан[],,1),0),MATCH(МаркетингОтклонение[[#Headers],[Мар]],МаркетингПлан[#Headers],0))-INDEX(МаркетингФактические[],MATCH(INDEX(МаркетингОтклонение[],ROW()-ROW(МаркетингОтклонение[[#Headers],[Мар]]),1),INDEX(МаркетингПлан[],,1),0),MATCH(МаркетингОтклонение[[#Headers],[Мар]],МаркетингФактические[#Headers],0)) -> 0.00 ₽ | F23: =INDEX(МаркетингПлан[],MATCH(INDEX(МаркетингОтклонение[],ROW()-ROW(МаркетингОтклонение[[#Headers],[Апр]]),1),INDEX(МаркетингПлан[],,1),0),MATCH(МаркетингОтклонение[[#Headers],[Апр]],МаркетингПлан[#Headers],0))-INDEX(МаркетингФактические[],MATCH(INDEX(МаркетингОтклонение[],ROW()-ROW(МаркетингОтклонение[[#Headers],[Апр]]),1),INDEX(МаркетингПлан[],,1),0),MATCH(МаркетингОтклонение[[#Headers],[Апр]],МаркетингФактические[#Headers],0)) -> 0.00 ₽ | G23: =INDEX(МаркетингПлан[],MATCH(INDEX(МаркетингОтклонение[],ROW()-ROW(МаркетингОтклонение[[#Headers],[Май]]),1),INDEX(МаркетингПлан[],,1),0),MATCH(МаркетингОтклонение[[#Headers],[Май]],МаркетингПлан[#Headers],0))-INDEX(МаркетингФактические[],MATCH(INDEX(МаркетингОтклонение[],ROW()-ROW(МаркетингОтклонение[[#Headers],[Май]]),1),INDEX(МаркетингПлан[],,1),0),MATCH(МаркетингОтклонение[[#Headers],[Май]],МаркетингФактические[#Headers],0)) -> 0.00 ₽ | H23: =INDEX(МаркетингПлан[],MATCH(INDEX(МаркетингОтклонение[],ROW()-ROW(МаркетингОтклонение[[#Headers],[Июн]]),1),INDEX(МаркетингПлан[],,1),0),MATCH(МаркетингОтклонение[[#Headers],[Июн]],МаркетингПлан[#Headers],0))-INDEX(МаркетингФактические[],MATCH(INDEX(МаркетингОтклонение[],ROW()-ROW(МаркетингОтклонение[[#Headers],[Июн]]),1),INDEX(МаркетингПлан[],,1),0),MATCH(МаркетингОтклонение[[#Headers],[Июн]],МаркетингФактические[#Headers],0)) -> -500.00 ₽ | I23: =INDEX(МаркетингПлан[],MATCH(INDEX(МаркетингОтклонение[],ROW()-ROW(МаркетингОтклонение[[#Headers],[Июл]]),1),INDEX(МаркетингПлан[],,1),0),MATCH(МаркетингОтклонение[[#Headers],[Июл]],МаркетингПлан[#Headers],0))-INDEX(МаркетингФактические[],MATCH(INDEX(МаркетингОтклонение[],ROW()-ROW(МаркетингОтклонение[[#Headers],[Июл]]),1),INDEX(МаркетингПлан[],,1),0),MATCH(МаркетингОтклонение[[#Headers],[Июл]],МаркетингФактические[#Headers],0)) -> 200.00 ₽ | J23: =INDEX(МаркетингПлан[],MATCH(INDEX(МаркетингОтклонение[],ROW()-ROW(МаркетингОтклонение[[#Headers],[Авг]]),1),INDEX(МаркетингПлан[],,1),0),MATCH(МаркетингОтклонение[[#Headers],[Авг]],МаркетингПлан[#Headers],0))-INDEX(МаркетингФактические[],MATCH(INDEX(МаркетингОтклонение[],ROW()-ROW(МаркетингОтклонение[[#Headers],[Авг]]),1),INDEX(МаркетингПлан[],,1),0),MATCH(МаркетингОтклонение[[#Headers],[Авг]],МаркетингФактические[#Headers],0)) -> 200.00 ₽ | K23: =INDEX(МаркетингПлан[],MATCH(INDEX(МаркетингОтклонение[],ROW()-ROW(МаркетингОтклонение[[#Headers],[Сен]]),1),INDEX(МаркетингПлан[],,1),0),MATCH(МаркетингОтклонение[[#Headers],[Сен]],МаркетингПлан[#Headers],0))-INDEX(МаркетингФактические[],MATCH(INDEX(МаркетингОтклонение[],ROW()-ROW(МаркетингОтклонение[[#Headers],[Сен]]),1),INDEX(МаркетингПлан[],,1),0),MATCH(МаркетингОтклонение[[#Headers],[Сен]],МаркетингФактические[#Headers],0)) -> 200.00 ₽ | L23: =INDEX(МаркетингПлан[],MATCH(INDEX(МаркетингОтклонение[],ROW()-ROW(МаркетингОтклонение[[#Headers],[Окт]]),1),INDEX(МаркетингПлан[],,1),0),MATCH(МаркетингОтклонение[[#Headers],[Окт]],МаркетингПлан[#Headers],0))-INDEX(МаркетингФактические[],MATCH(INDEX(МаркетингОтклонение[],ROW()-ROW(МаркетингОтклонение[[#Headers],[Окт]]),1),INDEX(МаркетингПлан[],,1),0),MATCH(МаркетингОтклонение[[#Headers],[Окт]],МаркетингФактические[#Headers],0)) -> 200.00 ₽ | M23: =INDEX(МаркетингПлан[],MATCH(INDEX(МаркетингОтклонение[],ROW()-ROW(МаркетингОтклонение[[#Headers],[Ноя]]),1),INDEX(МаркетингПлан[],,1),0),MATCH(МаркетингОтклонение[[#Headers],[Ноя]],МаркетингПлан[#Headers],0))-INDEX(МаркетингФактические[],MATCH(INDEX(МаркетингОтклонение[],ROW()-ROW(МаркетингОтклонение[[#Headers],[Ноя]]),1),INDEX(МаркетингПлан[],,1),0),MATCH(МаркетингОтклонение[[#Headers],[Ноя]],МаркетингФактические[#Headers],0)) -> 200.00 ₽ | N23: =INDEX(МаркетингПлан[],MATCH(INDEX(МаркетингОтклонение[],ROW()-ROW(МаркетингОтклонение[[#Headers],[Дек]]),1),INDEX(МаркетингПлан[],,1),0),MATCH(МаркетингОтклонение[[#Headers],[Дек]],МаркетингПлан[#Headers],0))-INDEX(МаркетингФактические[],MATCH(INDEX(МаркетингОтклонение[],ROW()-ROW(МаркетингОтклонение[[#Headers],[Дек]]),1),INDEX(МаркетингПлан[],,1),0),MATCH(МаркетингОтклонение[[#Headers],[Дек]],МаркетингФактические[#Headers],0)) -> 1,000.00 ₽ | O23: =SUM(МаркетингОтклонение[[#This Row],[Янв]:[Дек]]) -> 1,500.00 ₽
B24: Подготовка рекламных материалов | C24: =INDEX(МаркетингПлан[],MATCH(INDEX(МаркетингОтклонение[],ROW()-ROW(МаркетингОтклонение[[#Headers],[Янв]]),1),INDEX(МаркетингПлан[],,1),0),MATCH(МаркетингОтклонение[[#Headers],[Янв]],МаркетингПлан[#Headers],0))-INDEX(МаркетингФактические[],MATCH(INDEX(МаркетингОтклонение[],ROW()-ROW(МаркетингОтклонение[[#Headers],[Янв]]),1),INDEX(МаркетингПлан[],,1),0),MATCH(МаркетингОтклонение[[#Headers],[Янв]],МаркетингФактические[#Headers],0)) -> 200.00 ₽ | D24: =INDEX(МаркетингПлан[],MATCH(INDEX(МаркетингОтклонение[],ROW()-ROW(МаркетингОтклонение[[#Headers],[Фев]]),1),INDEX(МаркетингПлан[],,1),0),MATCH(МаркетингОтклонение[[#Headers],[Фев]],МаркетингПлан[#Headers],0))-INDEX(МаркетингФактические[],MATCH(INDEX(МаркетингОтклонение[],ROW()-ROW(МаркетингОтклонение[[#Headers],[Фев]]),1),INDEX(МаркетингПлан[],,1),0),MATCH(МаркетингОтклонение[[#Headers],[Фев]],МаркетингФактические[#Headers],0)) -> 0.00 ₽ | E24: =INDEX(МаркетингПлан[],MATCH(INDEX(МаркетингОтклонение[],ROW()-ROW(МаркетингОтклонение[[#Headers],[Мар]]),1),INDEX(МаркетингПлан[],,1),0),MATCH(МаркетингОтклонение[[#Headers],[Мар]],МаркетингПлан[#Headers],0))-INDEX(МаркетингФактические[],MATCH(INDEX(МаркетингОтклонение[],ROW()-ROW(МаркетингОтклонение[[#Headers],[Мар]]),1),INDEX(МаркетингПлан[],,1),0),MATCH(МаркетингОтклонение[[#Headers],[Мар]],МаркетингФактические[#Headers],0)) -> 0.00 ₽ | F24: =INDEX(МаркетингПлан[],MATCH(INDEX(МаркетингОтклонение[],ROW()-ROW(МаркетингОтклонение[[#Headers],[Апр]]),1),INDEX(МаркетингПлан[],,1),0),MATCH(МаркетингОтклонение[[#Headers],[Апр]],МаркетингПлан[#Headers],0))-INDEX(МаркетингФактические[],MATCH(INDEX(МаркетингОтклонение[],ROW()-ROW(МаркетингОтклонение[[#Headers],[Апр]]),1),INDEX(МаркетингПлан[],,1),0),MATCH(МаркетингОтклонение[[#Headers],[Апр]],МаркетингФактические[#Headers],0)) -> -500.00 ₽ | G24: =INDEX(МаркетингПлан[],MATCH(INDEX(МаркетингОтклонение[],ROW()-ROW(МаркетингОтклонение[[#Headers],[Май]]),1),INDEX(МаркетингПлан[],,1),0),MATCH(МаркетингОтклонение[[#Headers],[Май]],МаркетингПлан[#Headers],0))-INDEX(МаркетингФактические[],MATCH(INDEX(МаркетингОтклонение[],ROW()-ROW(МаркетингОтклонение[[#Headers],[Май]]),1),INDEX(МаркетингПлан[],,1),0),MATCH(МаркетингОтклонение[[#Headers],[Май]],МаркетингФактические[#Headers],0)) -> 0.00 ₽ | H24: =INDEX(МаркетингПлан[],MATCH(INDEX(МаркетингОтклонение[],ROW()-ROW(МаркетингОтклонение[[#Headers],[Июн]]),1),INDEX(МаркетингПлан[],,1),0),MATCH(МаркетингОтклонение[[#Headers],[Июн]],МаркетингПлан[#Headers],0))-INDEX(МаркетингФактические[],MATCH(INDEX(МаркетингОтклонение[],ROW()-ROW(МаркетингОтклонение[[#Headers],[Июн]]),1),INDEX(МаркетингПлан[],,1),0),MATCH(МаркетингОтклонение[[#Headers],[Июн]],МаркетингФактические[#Headers],0)) -> 0.00 ₽ | I24: =INDEX(МаркетингПлан[],MATCH(INDEX(МаркетингОтклонение[],ROW()-ROW(МаркетингОтклонение[[#Headers],[Июл]]),1),INDEX(МаркетингПлан[],,1),0),MATCH(МаркетингОтклонение[[#Headers],[Июл]],МаркетингПлан[#Headers],0))-INDEX(МаркетингФактические[],MATCH(INDEX(МаркетингОтклонение[],ROW()-ROW(МаркетингОтклонение[[#Headers],[Июл]]),1),INDEX(МаркетингПлан[],,1),0),MATCH(МаркетингОтклонение[[#Headers],[Июл]],МаркетингФактические[#Headers],0)) -> 5,000.00 ₽ | J24: =INDEX(МаркетингПлан[],MATCH(INDEX(МаркетингОтклонение[],ROW()-ROW(МаркетингОтклонение[[#Headers],[Авг]]),1),INDEX(МаркетингПлан[],,1),0),MATCH(МаркетингОтклонение[[#Headers],[Авг]],МаркетингПлан[#Headers],0))-INDEX(МаркетингФактические[],MATCH(INDEX(МаркетингОтклонение[],ROW()-ROW(МаркетингОтклонение[[#Headers],[Авг]]),1),INDEX(МаркетингПлан[],,1),0),MATCH(МаркетингОтклонение[[#Headers],[Авг]],МаркетингФактические[#Headers],0)) -> 0.00 ₽ | K24: =INDEX(МаркетингПлан[],MATCH(INDEX(МаркетингОтклонение[],ROW()-ROW(МаркетингОтклонение[[#Headers],[Сен]]),1),INDEX(МаркетингПлан[],,1),0),MATCH(МаркетингОтклонение[[#Headers],[Сен]],МаркетингПлан[#Headers],0))-INDEX(МаркетингФактические[],MATCH(INDEX(МаркетингОтклонение[],ROW()-ROW(МаркетингОтклонение[[#Headers],[Сен]]),1),INDEX(МаркетингПлан[],,1),0),MATCH(МаркетингОтклонение[[#Headers],[Сен]],МаркетингФактические[#Headers],0)) -> 0.00 ₽ | L24: =INDEX(МаркетингПлан[],MATCH(INDEX(МаркетингОтклонение[],ROW()-ROW(МаркетингОтклонение[[#Headers],[Окт]]),1),INDEX(МаркетингПлан[],,1),0),MATCH(МаркетингОтклонение[[#Headers],[Окт]],МаркетингПлан[#Headers],0))-INDEX(МаркетингФактические[],MATCH(INDEX(МаркетингОтклонение[],ROW()-ROW(МаркетингОтклонение[[#Headers],[Окт]]),1),INDEX(МаркетингПлан[],,1),0),MATCH(МаркетингОтклонение[[#Headers],[Окт]],МаркетингФактические[#Headers],0)) -> 5,000.00 ₽ | M24: =INDEX(МаркетингПлан[],MATCH(INDEX(МаркетингОтклонение[],ROW()-ROW(МаркетингОтклонение[[#Headers],[Ноя]]),1),INDEX(МаркетингПлан[],,1),0),MATCH(МаркетингОтклонение[[#Headers],[Ноя]],МаркетингПлан[#Headers],0))-INDEX(МаркетингФактические[],MATCH(INDEX(МаркетингОтклонение[],ROW()-ROW(МаркетингОтклонение[[#Headers],[Ноя]]),1),INDEX(МаркетингПлан[],,1),0),MATCH(МаркетингОтклонение[[#Headers],[Ноя]],МаркетингФактические[#Headers],0)) -> 0.00 ₽ | N24: =INDEX(МаркетингПлан[],MATCH(INDEX(МаркетингОтклонение[],ROW()-ROW(МаркетингОтклонение[[#Headers],[Дек]]),1),INDEX(МаркетингПлан[],,1),0),MATCH(МаркетингОтклонение[[#Headers],[Дек]],МаркетингПлан[#Headers],0))-INDEX(МаркетингФактические[],MATCH(INDEX(МаркетингОтклонение[],ROW()-ROW(МаркетингОтклонение[[#Headers],[Дек]]),1),INDEX(МаркетингПлан[],,1),0),MATCH(МаркетингОтклонение[[#Headers],[Дек]],МаркетингФактические[#Headers],0)) -> 0.00 ₽ | O24: =SUM(МаркетингОтклонение[[#This Row],[Янв]:[Дек]]) -> 9,700.00 ₽
B25: Печать рекламных материалов | C25: =INDEX(МаркетингПлан[],MATCH(INDEX(МаркетингОтклонение[],ROW()-ROW(МаркетингОтклонение[[#Headers],[Янв]]),1),INDEX(МаркетингПлан[],,1),0),MATCH(МаркетингОтклонение[[#Headers],[Янв]],МаркетингПлан[#Headers],0))-INDEX(МаркетингФактические[],MATCH(INDEX(МаркетингОтклонение[],ROW()-ROW(МаркетингОтклонение[[#Headers],[Янв]]),1),INDEX(МаркетингПлан[],,1),0),MATCH(МаркетингОтклонение[[#Headers],[Янв]],МаркетингФактические[#Headers],0)) -> 100.00 ₽ | D25: =INDEX(МаркетингПлан[],MATCH(INDEX(МаркетингОтклонение[],ROW()-ROW(МаркетингОтклонение[[#Headers],[Фев]]),1),INDEX(МаркетингПлан[],,1),0),MATCH(МаркетингОтклонение[[#Headers],[Фев]],МаркетингПлан[#Headers],0))-INDEX(МаркетингФактические[],MATCH(INDEX(МаркетингОтклонение[],ROW()-ROW(МаркетингОтклонение[[#Headers],[Фев]]),1),INDEX(МаркетингПлан[],,1),0),MATCH(МаркетингОтклонение[[#Headers],[Фев]],МаркетингФактические[#Headers],0)) -> -300.00 ₽ | E25: =INDEX(МаркетингПлан[],MATCH(INDEX(МаркетингОтклонение[],ROW()-ROW(МаркетингОтклонение[[#Headers],[Мар]]),1),INDEX(МаркетингПлан[],,1),0),MATCH(МаркетингОтклонение[[#Headers],[Мар]],МаркетингПлан[#Headers],0))-INDEX(МаркетингФактические[],MATCH(INDEX(МаркетингОтклонение[],ROW()-ROW(МаркетингОтклонение[[#Headers],[Мар]]),1),INDEX(МаркетингПлан[],,1),0),MATCH(МаркетингОтклонение[[#Headers],[Мар]],МаркетингФактические[#Headers],0)) -> 100.00 ₽ | F25: =INDEX(МаркетингПлан[],MATCH(INDEX(МаркетингОтклонение[],ROW()-ROW(МаркетингОтклонение[[#Headers],[Апр]]),1),INDEX(МаркетингПлан[],,1),0),MATCH(МаркетингОтклонение[[#Headers],[Апр]],МаркетингПлан[#Headers],0))-INDEX(МаркетингФактические[],MATCH(INDEX(МаркетингОтклонение[],ROW()-ROW(МаркетингОтклонение[[#Headers],[Апр]]),1),INDEX(МаркетингПлан[],,1),0),MATCH(МаркетингОтклонение[[#Headers],[Апр]],МаркетингФактические[#Headers],0)) -> 100.00 ₽ | G25: =INDEX(МаркетингПлан[],MATCH(INDEX(МаркетингОтклонение[],ROW()-ROW(МаркетингОтклонение[[#Headers],[Май]]),1),INDEX(МаркетингПлан[],,1),0),MATCH(МаркетингОтклонение[[#Headers],[Май]],МаркетингПлан[#Headers],0))-INDEX(МаркетингФактические[],MATCH(INDEX(МаркетингОтклонение[],ROW()-ROW(МаркетингОтклонение[[#Headers],[Май]]),1),INDEX(МаркетингПлан[],,1),0),MATCH(МаркетингОтклонение[[#Headers],[Май]],МаркетингФактические[#Headers],0)) -> -400.00 ₽ | H25: =INDEX(МаркетингПлан[],MATCH(INDEX(МаркетингОтклонение[],ROW()-ROW(МаркетингОтклонение[[#Headers],[Июн]]),1),INDEX(МаркетингПлан[],,1),0),MATCH(МаркетингОтклонение[[#Headers],[Июн]],МаркетингПлан[#Headers],0))-INDEX(МаркетингФактические[],MATCH(INDEX(МаркетингОтклонение[],ROW()-ROW(МаркетингОтклонение[[#Headers],[Июн]]),1),INDEX(МаркетингПлан[],,1),0),MATCH(МаркетингОтклонение[[#Headers],[Июн]],МаркетингФактические[#Headers],0)) -> 20.00 ₽ | I25: =INDEX(МаркетингПлан[],MATCH(INDEX(МаркетингОтклонение[],ROW()-ROW(МаркетингОтклонение[[#Headers],[Июл]]),1),INDEX(МаркетингПлан[],,1),0),MATCH(МаркетингОтклонение[[#Headers],[Июл]],МаркетингПлан[#Headers],0))-INDEX(МаркетингФактические[],MATCH(INDEX(МаркетингОтклонение[],ROW()-ROW(МаркетингОтклонение[[#Headers],[Июл]]),1),INDEX(МаркетингПлан[],,1),0),MATCH(МаркетингОтклонение[[#Headers],[Июл]],МаркетингФактические[#Headers],0)) -> 200.00 ₽ | J25: =INDEX(МаркетингПлан[],MATCH(INDEX(МаркетингОтклонение[],ROW()-ROW(МаркетингОтклонение[[#Headers],[Авг]]),1),INDEX(МаркетингПлан[],,1),0),MATCH(МаркетингОтклонение[[#Headers],[Авг]],МаркетингПлан[#Headers],0))-INDEX(МаркетингФактические[],MATCH(INDEX(МаркетингОтклонение[],ROW()-ROW(МаркетингОтклонение[[#Headers],[Авг]]),1),INDEX(МаркетингПлан[],,1),0),MATCH(МаркетингОтклонение[[#Headers],[Авг]],МаркетингФактические[#Headers],0)) -> 200.00 ₽ | K25: =INDEX(МаркетингПлан[],MATCH(INDEX(МаркетингОтклонение[],ROW()-ROW(МаркетингОтклонение[[#Headers],[Сен]]),1),INDEX(МаркетингПлан[],,1),0),MATCH(МаркетингОтклонение[[#Headers],[Сен]],МаркетингПлан[#Headers],0))-INDEX(МаркетингФактические[],MATCH(INDEX(МаркетингОтклонение[],ROW()-ROW(МаркетингОтклонение[[#Headers],[Сен]]),1),INDEX(МаркетингПлан[],,1),0),MATCH(МаркетингОтклонение[[#Headers],[Сен]],МаркетингФактические[#Headers],0)) -> 200.00 ₽ | L25: =INDEX(МаркетингПлан[],MATCH(INDEX(МаркетингОтклонение[],ROW()-ROW(МаркетингОтклонение[[#Headers],[Окт]]),1),INDEX(МаркетингПлан[],,1),0),MATCH(МаркетингОтклонение[[#Headers],[Окт]],МаркетингПлан[#Headers],0))-INDEX(МаркетингФактические[],MATCH(INDEX(МаркетингОтклонение[],ROW()-ROW(МаркетингОтклонение[[#Headers],[Окт]]),1),INDEX(МаркетингПлан[],,1),0),MATCH(МаркетингОтклонение[[#Headers],[Окт]],МаркетингФактические[#Headers],0)) -> 200.00 ₽ | M25: =INDEX(МаркетингПлан[],MATCH(INDEX(МаркетингОтклонение[],ROW()-ROW(МаркетингОтклонение[[#Headers],[Ноя]]),1),INDEX(МаркетингПлан[],,1),0),MATCH(МаркетингОтклонение[[#Headers],[Ноя]],МаркетингПлан[#Headers],0))-INDEX(МаркетингФактические[],MATCH(INDEX(МаркетингОтклонение[],ROW()-ROW(МаркетингОтклонение[[#Headers],[Ноя]]),1),INDEX(МаркетингПлан[],,1),0),MATCH(МаркетингОтклонение[[#Headers],[Ноя]],МаркетингФактические[#Headers],0)) -> 200.00 ₽ | N25: =INDEX(МаркетингПлан[],MATCH(INDEX(МаркетингОтклонение[],ROW()-ROW(МаркетингОтклонение[[#Headers],[Дек]]),1),INDEX(МаркетингПлан[],,1),0),MATCH(МаркетингОтклонение[[#Headers],[Дек]],МаркетингПлан[#Headers],0))-INDEX(МаркетингФактические[],MATCH(INDEX(МаркетингОтклонение[],ROW()-ROW(МаркетингОтклонение[[#Headers],[Дек]]),1),INDEX(МаркетингПлан[],,1),0),MATCH(МаркетингОтклонение[[#Headers],[Дек]],МаркетингФактические[#Headers],0)) -> 200.00 ₽ | O25: =SUM(МаркетингОтклонение[[#This Row],[Янв]:[Дек]]) -> 820.00 ₽
B26: Маркетинговые мероприятия | C26: =INDEX(МаркетингПлан[],MATCH(INDEX(МаркетингОтклонение[],ROW()-ROW(МаркетингОтклонение[[#Headers],[Янв]]),1),INDEX(МаркетингПлан[],,1),0),MATCH(МаркетингОтклонение[[#Headers],[Янв]],МаркетингПлан[#Headers],0))-INDEX(МаркетингФактические[],MATCH(INDEX(МаркетингОтклонение[],ROW()-ROW(МаркетингОтклонение[[#Headers],[Янв]]),1),INDEX(МаркетингПлан[],,1),0),MATCH(МаркетингОтклонение[[#Headers],[Янв]],МаркетингФактические[#Headers],0)) -> 200.00 ₽ | D26: =INDEX(МаркетингПлан[],MATCH(INDEX(МаркетингОтклонение[],ROW()-ROW(МаркетингОтклонение[[#Headers],[Фев]]),1),INDEX(МаркетингПлан[],,1),0),MATCH(МаркетингОтклонение[[#Headers],[Фев]],МаркетингПлан[#Headers],0))-INDEX(МаркетингФактические[],MATCH(INDEX(МаркетингОтклонение[],ROW()-ROW(МаркетингОтклонение[[#Headers],[Фев]]),1),INDEX(МаркетингПлан[],,1),0),MATCH(МаркетингОтклонение[[#Headers],[Фев]],МаркетингФактические[#Headers],0)) -> -200.00 ₽ | E26: =INDEX(МаркетингПлан[],MATCH(INDEX(МаркетингОтклонение[],ROW()-ROW(МаркетингОтклонение[[#Headers],[Мар]]),1),INDEX(МаркетингПлан[],,1),0),MATCH(МаркетингОтклонение[[#Headers],[Мар]],МаркетингПлан[#Headers],0))-INDEX(МаркетингФактические[],MATCH(INDEX(МаркетингОтклонение[],ROW()-ROW(МаркетингОтклонение[[#Headers],[Мар]]),1),INDEX(МаркетингПлан[],,1),0),MATCH(МаркетингОтклонение[[#Headers],[Мар]],МаркетингФактические[#Headers],0)) -> -200.00 ₽ | F26: =INDEX(МаркетингПлан[],MATCH(INDEX(МаркетингОтклонение[],ROW()-ROW(МаркетингОтклонение[[#Headers],[Апр]]),1),INDEX(МаркетингПлан[],,1),0),MATCH(МаркетингОтклонение[[#Headers],[Апр]],МаркетингПлан[#Headers],0))-INDEX(МаркетингФактические[],MATCH(INDEX(МаркетингОтклонение[],ROW()-ROW(МаркетингОтклонение[[#Headers],[Апр]]),1),INDEX(МаркетингПлан[],,1),0),MATCH(МаркетингОтклонение[[#Headers],[Апр]],МаркетингФактические[#Headers],0)) -> 300.00 ₽ | G26: =INDEX(МаркетингПлан[],MATCH(INDEX(МаркетингОтклонение[],ROW()-ROW(МаркетингОтклонение[[#Headers],[Май]]),1),INDEX(МаркетингПлан[],,1),0),MATCH(МаркетингОтклонение[[#Headers],[Май]],МаркетингПлан[#Headers],0))-INDEX(МаркетингФактические[],MATCH(INDEX(МаркетингОтклонение[],ROW()-ROW(МаркетингОтклонение[[#Headers],[Май]]),1),INDEX(МаркетингПлан[],,1),0),MATCH(МаркетингОтклонение[[#Headers],[Май]],МаркетингФактические[#Headers],0)) -> 500.00 ₽ | H26: =INDEX(МаркетингПлан[],MATCH(INDEX(МаркетингОтклонение[],ROW()-ROW(МаркетингОтклонение[[#Headers],[Июн]]),1),INDEX(МаркетингПлан[],,1),0),MATCH(МаркетингОтклонение[[#Headers],[Июн]],МаркетингПлан[#Headers],0))-INDEX(МаркетингФактические[],MATCH(INDEX(МаркетингОтклонение[],ROW()-ROW(МаркетингОтклонение[[#Headers],[Июн]]),1),INDEX(МаркетингПлан[],,1),0),MATCH(МаркетингОтклонение[[#Headers],[Июн]],МаркетингФактические[#Headers],0)) -> -300.00 ₽ | I26: =INDEX(МаркетингПлан[],MATCH(INDEX(МаркетингОтклонение[],ROW()-ROW(МаркетингОтклонение[[#Headers],[Июл]]),1),INDEX(МаркетингПлан[],,1),0),MATCH(МаркетингОтклонение[[#Headers],[Июл]],МаркетингПлан[#Headers],0))-INDEX(МаркетингФактические[],MATCH(INDEX(МаркетингОтклонение[],ROW()-ROW(МаркетингОтклонение[[#Headers],[Июл]]),1),INDEX(МаркетингПлан[],,1),0),MATCH(МаркетингОтклонение[[#Headers],[Июл]],МаркетингФактические[#Headers],0)) -> 2,000.00 ₽ | J26: =INDEX(МаркетингПлан[],MATCH(INDEX(МаркетингОтклонение[],ROW()-ROW(МаркетингОтклонение[[#Headers],[Авг]]),1),INDEX(МаркетингПлан[],,1),0),MATCH(МаркетингОтклонение[[#Headers],[Авг]],МаркетингПлан[#Headers],0))-INDEX(МаркетингФактические[],MATCH(INDEX(МаркетингОтклонение[],ROW()-ROW(МаркетингОтклонение[[#Headers],[Авг]]),1),INDEX(МаркетингПлан[],,1),0),MATCH(МаркетингОтклонение[[#Headers],[Авг]],МаркетингФактические[#Headers],0)) -> 5,000.00 ₽ | K26: =INDEX(МаркетингПлан[],MATCH(INDEX(МаркетингОтклонение[],ROW()-ROW(МаркетингОтклонение[[#Headers],[Сен]]),1),INDEX(МаркетингПлан[],,1),0),MATCH(МаркетингОтклонение[[#Headers],[Сен]],МаркетингПлан[#Headers],0))-INDEX(МаркетингФактические[],MATCH(INDEX(МаркетингОтклонение[],ROW()-ROW(МаркетингОтклонение[[#Headers],[Сен]]),1),INDEX(МаркетингПлан[],,1),0),MATCH(МаркетингОтклонение[[#Headers],[Сен]],МаркетингФактические[#Headers],0)) -> 2,000.00 ₽ | L26: =INDEX(МаркетингПлан[],MATCH(INDEX(МаркетингОтклонение[],ROW()-ROW(МаркетингОтклонение[[#Headers],[Окт]]),1),INDEX(МаркетингПлан[],,1),0),MATCH(МаркетингОтклонение[[#Headers],[Окт]],МаркетингПлан[#Headers],0))-INDEX(МаркетингФактические[],MATCH(INDEX(МаркетингОтклонение[],ROW()-ROW(МаркетингОтклонение[[#Headers],[Окт]]),1),INDEX(МаркетингПлан[],,1),0),MATCH(МаркетингОтклонение[[#Headers],[Окт]],МаркетингФактические[#Headers],0)) -> 2,000.00 ₽ | M26: =INDEX(МаркетингПлан[],MATCH(INDEX(МаркетингОтклонение[],ROW()-ROW(МаркетингОтклонение[[#Headers],[Ноя]]),1),INDEX(МаркетингПлан[],,1),0),MATCH(МаркетингОтклонение[[#Headers],[Ноя]],МаркетингПлан[#Headers],0))-INDEX(МаркетингФактические[],MATCH(INDEX(МаркетингОтклонение[],ROW()-ROW(МаркетингОтклонение[[#Headers],[Ноя]]),1),INDEX(МаркетингПлан[],,1),0),MATCH(МаркетингОтклонение[[#Headers],[Ноя]],МаркетингФактические[#Headers],0)) -> 2,000.00 ₽ | N26: =INDEX(МаркетингПлан[],MATCH(INDEX(МаркетингОтклонение[],ROW()-ROW(МаркетингОтклонение[[#Headers],[Дек]]),1),INDEX(МаркетингПлан[],,1),0),MATCH(МаркетингОтклонение[[#Headers],[Дек]],МаркетингПлан[#Headers],0))-INDEX(МаркетингФактические[],MATCH(INDEX(МаркетингОтклонение[],ROW()-ROW(МаркетингОтклонение[[#Headers],[Дек]]),1),INDEX(МаркетингПлан[],,1),0),MATCH(МаркетингОтклонение[[#Headers],[Дек]],МаркетингФактические[#Headers],0)) -> 5,000.00 ₽ | O26: =SUM(МаркетингОтклонение[[#This Row],[Янв]:[Дек]]) -> 18,300.00 ₽
B27: Прочие расходы | C27: =INDEX(МаркетингПлан[],MATCH(INDEX(МаркетингОтклонение[],ROW()-ROW(МаркетингОтклонение[[#Headers],[Янв]]),1),INDEX(МаркетингПлан[],,1),0),MATCH(МаркетингОтклонение[[#Headers],[Янв]],МаркетингПлан[#Headers],0))-INDEX(МаркетингФактические[],MATCH(INDEX(МаркетингОтклонение[],ROW()-ROW(МаркетингОтклонение[[#Headers],[Янв]]),1),INDEX(МаркетингПлан[],,1),0),MATCH(МаркетингОтклонение[[#Headers],[Янв]],МаркетингФактические[#Headers],0)) -> 55.00 ₽ | D27: =INDEX(МаркетингПлан[],MATCH(INDEX(МаркетингОтклонение[],ROW()-ROW(МаркетингОтклонение[[#Headers],[Фев]]),1),INDEX(МаркетингПлан[],,1),0),MATCH(МаркетингОтклонение[[#Headers],[Фев]],МаркетингПлан[#Headers],0))-INDEX(МаркетингФактические[],MATCH(INDEX(МаркетингОтклонение[],ROW()-ROW(МаркетингОтклонение[[#Headers],[Фев]]),1),INDEX(МаркетингПлан[],,1),0),MATCH(МаркетингОтклонение[[#Headers],[Фев]],МаркетингФактические[#Headers],0)) -> 44.00 ₽ | E27: =INDEX(МаркетингПлан[],MATCH(INDEX(МаркетингОтклонение[],ROW()-ROW(МаркетингОтклонение[[#Headers],[Мар]]),1),INDEX(МаркетингПлан[],,1),0),MATCH(МаркетингОтклонение[[#Headers],[Мар]],МаркетингПлан[#Headers],0))-INDEX(МаркетингФактические[],MATCH(INDEX(МаркетингОтклонение[],ROW()-ROW(МаркетингОтклонение[[#Headers],[Мар]]),1),INDEX(МаркетингПлан[],,1),0),MATCH(МаркетингОтклонение[[#Headers],[Мар]],МаркетингФактические[#Headers],0)) -> 77.00 ₽ | F27: =INDEX(МаркетингПлан[],MATCH(INDEX(МаркетингОтклонение[],ROW()-ROW(МаркетингОтклонение[[#Headers],[Апр]]),1),INDEX(МаркетингПлан[],,1),0),MATCH(МаркетингОтклонение[[#Headers],[Апр]],МаркетингПлан[#Headers],0))-INDEX(МаркетингФактические[],MATCH(INDEX(МаркетингОтклонение[],ROW()-ROW(МаркетингОтклонение[[#Headers],[Апр]]),1),INDEX(МаркетингПлан[],,1),0),MATCH(МаркетингОтклонение[[#Headers],[Апр]],МаркетингФактические[#Headers],0)) -> -23.00 ₽ | G27: =INDEX(МаркетингПлан[],MATCH(INDEX(МаркетингОтклонение[],ROW()-ROW(МаркетингОтклонение[[#Headers],[Май]]),1),INDEX(МаркетингПлан[],,1),0),MATCH(МаркетингОтклонение[[#Headers],[Май]],МаркетингПлан[#Headers],0))-INDEX(МаркетингФактические[],MATCH(INDEX(МаркетингОтклонение[],ROW()-ROW(МаркетингОтклонение[[#Headers],[Май]]),1),INDEX(МаркетингПлан[],,1),0),MATCH(МаркетингОтклонение[[#Headers],[Май]],МаркетингФактические[#Headers],0)) -> 13.00 ₽ | H27: =INDEX(МаркетингПлан[],MATCH(INDEX(МаркетингОтклонение[],ROW()-ROW(МаркетингОтклонение[[#Headers],[Июн]]),1),INDEX(МаркетингПлан[],,1),0),MATCH(МаркетингОтклонение[[#Headers],[Июн]],МаркетингПлан[#Headers],0))-INDEX(МаркетингФактические[],MATCH(INDEX(МаркетингОтклонение[],ROW()-ROW(МаркетингОтклонение[[#Headers],[Июн]]),1),INDEX(МаркетингПлан[],,1),0),MATCH(МаркетингОтклонение[[#Headers],[Июн]],МаркетингФактические[#Headers],0)) -> -45.00 ₽ | I27: =INDEX(МаркетингПлан[],MATCH(INDEX(МаркетингОтклонение[],ROW()-ROW(МаркетингОтклонение[[#Headers],[Июл]]),1),INDEX(МаркетингПлан[],,1),0),MATCH(МаркетингОтклонение[[#Headers],[Июл]],МаркетингПлан[#Headers],0))-INDEX(МаркетингФактические[],MATCH(INDEX(МаркетингОтклонение[],ROW()-ROW(МаркетингОтклонение[[#Headers],[Июл]]),1),INDEX(МаркетингПлан[],,1),0),MATCH(МаркетингОтклонение[[#Headers],[Июл]],МаркетингФактические[#Headers],0)) -> 200.00 ₽ | J27: =INDEX(МаркетингПлан[],MATCH(INDEX(МаркетингОтклонение[],ROW()-ROW(МаркетингОтклонение[[#Headers],[Авг]]),1),INDEX(МаркетингПлан[],,1),0),MATCH(МаркетингОтклонение[[#Headers],[Авг]],МаркетингПлан[#Headers],0))-INDEX(МаркетингФактические[],MATCH(INDEX(МаркетингОтклонение[],ROW()-ROW(МаркетингОтклонение[[#Headers],[Авг]]),1),INDEX(МаркетингПлан[],,1),0),MATCH(МаркетингОтклонение[[#Headers],[Авг]],МаркетингФактические[#Headers],0)) -> 200.00 ₽ | K27: =INDEX(МаркетингПлан[],MATCH(INDEX(МаркетингОтклонение[],ROW()-ROW(МаркетингОтклонение[[#Headers],[Сен]]),1),INDEX(МаркетингПлан[],,1),0),MATCH(МаркетингОтклонение[[#Headers],[Сен]],МаркетингПлан[#Headers],0))-INDEX(МаркетингФактические[],MATCH(INDEX(МаркетингОтклонение[],ROW()-ROW(МаркетингОтклонение[[#Headers],[Сен]]),1),INDEX(МаркетингПлан[],,1),0),MATCH(МаркетингОтклонение[[#Headers],[Сен]],МаркетингФактические[#Headers],0)) -> 200.00 ₽ | L27: =INDEX(МаркетингПлан[],MATCH(INDEX(МаркетингОтклонение[],ROW()-ROW(МаркетингОтклонение[[#Headers],[Окт]]),1),INDEX(МаркетингПлан[],,1),0),MATCH(МаркетингОтклонение[[#Headers],[Окт]],МаркетингПлан[#Headers],0))-INDEX(МаркетингФактические[],MATCH(INDEX(МаркетингОтклонение[],ROW()-ROW(МаркетингОтклонение[[#Headers],[Окт]]),1),INDEX(МаркетингПлан[],,1),0),MATCH(МаркетингОтклонение[[#Headers],[Окт]],МаркетингФактические[#Headers],0)) -> 200.00 ₽ | M27: =INDEX(МаркетингПлан[],MATCH(INDEX(МаркетингОтклонение[],ROW()-ROW(МаркетингОтклонение[[#Headers],[Ноя]]),1),INDEX(МаркетингПлан[],,1),0),MATCH(МаркетингОтклонение[[#Headers],[Ноя]],МаркетингПлан[#Headers],0))-INDEX(МаркетингФактические[],MATCH(INDEX(МаркетингОтклонение[],ROW()-ROW(МаркетингОтклонение[[#Headers],[Ноя]]),1),INDEX(МаркетингПлан[],,1),0),MATCH(МаркетингОтклонение[[#Headers],[Ноя]],МаркетингФактические[#Headers],0)) -> 200.00 ₽ | N27: =INDEX(МаркетингПлан[],MATCH(INDEX(МаркетингОтклонение[],ROW()-ROW(МаркетингОтклонение[[#Headers],[Дек]]),1),INDEX(МаркетингПлан[],,1),0),MATCH(МаркетингОтклонение[[#Headers],[Дек]],МаркетингПлан[#Headers],0))-INDEX(МаркетингФактические[],MATCH(INDEX(МаркетингОтклонение[],ROW()-ROW(МаркетингОтклонение[[#Headers],[Дек]]),1),INDEX(МаркетингПлан[],,1),0),MATCH(МаркетингОтклонение[[#Headers],[Дек]],МаркетингФактические[#Headers],0)) -> 200.00 ₽ | O27: =SUM(МаркетингОтклонение[[#This Row],[Янв]:[Дек]]) -> 1,321.00 ₽
B28: Промежуточный итог | C28: =SUBTOTAL(109,МаркетингОтклонение[Янв]) -> 555.00 ₽ | D28: =SUBTOTAL(109,МаркетингОтклонение[Фев]) -> -456.00 ₽ | E28: =SUBTOTAL(109,МаркетингОтклонение[Мар]) -> -23.00 ₽ | F28: =SUBTOTAL(109,МаркетингОтклонение[Апр]) -> -123.00 ₽ | G28: =SUBTOTAL(109,МаркетингОтклонение[Май]) -> 113.00 ₽ | H28: =SUBTOTAL(109,МаркетингОтклонение[Июн]) -> -825.00 ₽ | I28: =SUBTOTAL(109,МаркетингОтклонение[Июл]) -> 8,100.00 ₽ | J28: =SUBTOTAL(109,МаркетингОтклонение[Авг]) -> 6,100.00 ₽ | K28: =SUBTOTAL(109,МаркетингОтклонение[Сен]) -> 3,100.00 ₽ | L28: =SUBTOTAL(109,МаркетингОтклонение[Окт]) -> 8,100.00 ₽ | M28: =SUBTOTAL(109,МаркетингОтклонение[Ноя]) -> 3,100.00 ₽ | N28: =SUBTOTAL(109,МаркетингОтклонение[Дек]) -> 6,900.00 ₽ | O28: =SUBTOTAL(109,МаркетингОтклонение[ГОД]) -> 34,641.00 ₽
B30: Обучение/командировки | C30: Янв | D30: Фев | E30: Мар | F30: Апр | G30: Май | H30: Июн | I30: Июл | J30: Авг | K30: Сен | L30: Окт | M30: Ноя | N30: Дек | O30: ГОД
B31: Учебные занятия | C31: =INDEX(ОбучениеИКомандировкиПлан[],MATCH(INDEX(ОбучениеИКомандировкиОтклонение[],ROW()-ROW(ОбучениеИКомандировкиОтклонение[[#Headers],[Янв]]),1),INDEX(ОбучениеИКомандировкиПлан[],,1),0),MATCH(ОбучениеИКомандировкиОтклонение[[#Headers],[Янв]],ОбучениеИКомандировкиПлан[#Headers],0))-INDEX(ОбучениеИКомандировкиФактические[],MATCH(INDEX(ОбучениеИКомандировкиОтклонение[],ROW()-ROW(ОбучениеИКомандировкиОтклонение[[#Headers],[Янв]]),1),INDEX(ОбучениеИКомандировкиПлан[],,1),0),MATCH(ОбучениеИКомандировкиОтклонение[[#Headers],[Янв]],ОбучениеИКомандировкиФактические[#Headers],0)) -> 400.00 ₽ | D31: =INDEX(ОбучениеИКомандировкиПлан[],MATCH(INDEX(ОбучениеИКомандировкиОтклонение[],ROW()-ROW(ОбучениеИКомандировкиОтклонение[[#Headers],[Фев]]),1),INDEX(ОбучениеИКомандировкиПлан[],,1),0),MATCH(ОбучениеИКомандировкиОтклонение[[#Headers],[Фев]],ОбучениеИКомандировкиПлан[#Headers],0))-INDEX(ОбучениеИКомандировкиФактические[],MATCH(INDEX(ОбучениеИКомандировкиОтклонение[],ROW()-ROW(ОбучениеИКомандировкиОтклонение[[#Headers],[Фев]]),1),INDEX(ОбучениеИКомандировкиПлан[],,1),0),MATCH(ОбучениеИКомандировкиОтклонение[[#Headers],[Фев]],ОбучениеИКомандировкиФактические[#Headers],0)) -> -400.00 ₽ | E31: =INDEX(ОбучениеИКомандировкиПлан[],MATCH(INDEX(ОбучениеИКомандировкиОтклонение[],ROW()-ROW(ОбучениеИКомандировкиОтклонение[[#Headers],[Мар]]),1),INDEX(ОбучениеИКомандировкиПлан[],,1),0),MATCH(ОбучениеИКомандировкиОтклонение[[#Headers],[Мар]],ОбучениеИКомандировкиПлан[#Headers],0))-INDEX(ОбучениеИКомандировкиФактические[],MATCH(INDEX(ОбучениеИКомандировкиОтклонение[],ROW()-ROW(ОбучениеИКомандировкиОтклонение[[#Headers],[Мар]]),1),INDEX(ОбучениеИКомандировкиПлан[],,1),0),MATCH(ОбучениеИКомандировкиОтклонение[[#Headers],[Мар]],ОбучениеИКомандировкиФактические[#Headers],0)) -> 600.00 ₽ | F31: =INDEX(ОбучениеИКомандировкиПлан[],MATCH(INDEX(ОбучениеИКомандировкиОтклонение[],ROW()-ROW(ОбучениеИКомандировкиОтклонение[[#Headers],[Апр]]),1),INDEX(ОбучениеИКомандировкиПлан[],,1),0),MATCH(ОбучениеИКомандировкиОтклонение[[#Headers],[Апр]],ОбучениеИКомандировкиПлан[#Headers],0))-INDEX(ОбучениеИКомандировкиФактические[],MATCH(INDEX(ОбучениеИКомандировкиОтклонение[],ROW()-ROW(ОбучениеИКомандировкиОтклонение[[#Headers],[Апр]]),1),INDEX(ОбучениеИКомандировкиПлан[],,1),0),MATCH(ОбучениеИКомандировкиОтклонение[[#Headers],[Апр]],ОбучениеИКомандировкиФактические[#Headers],0)) -> 400.00 ₽ | G31: =INDEX(ОбучениеИКомандировкиПлан[],MATCH(INDEX(ОбучениеИКомандировкиОтклонение[],ROW()-ROW(ОбучениеИКомандировкиОтклонение[[#Headers],[Май]]),1),INDEX(ОбучениеИКомандировкиПлан[],,1),0),MATCH(ОбучениеИКомандировкиОтклонение[[#Headers],[Май]],ОбучениеИКомандировкиПлан[#Headers],0))-INDEX(ОбучениеИКомандировкиФактические[],MATCH(INDEX(ОбучениеИКомандировкиОтклонение[],ROW()-ROW(ОбучениеИКомандировкиОтклонение[[#Headers],[Май]]),1),INDEX(ОбучениеИКомандировкиПлан[],,1),0),MATCH(ОбучениеИКомандировкиОтклонение[[#Headers],[Май]],ОбучениеИКомандировкиФактические[#Headers],0)) -> 800.00 ₽ | H31: =INDEX(ОбучениеИКомандировкиПлан[],MATCH(INDEX(ОбучениеИКомандировкиОтклонение[],ROW()-ROW(ОбучениеИКомандировкиОтклонение[[#Headers],[Июн]]),1),INDEX(ОбучениеИКомандировкиПлан[],,1),0),MATCH(ОбучениеИКомандировкиОтклонение[[#Headers],[Июн]],ОбучениеИКомандировкиПлан[#Headers],0))-INDEX(ОбучениеИКомандировкиФактические[],MATCH(INDEX(ОбучениеИКомандировкиОтклонение[],ROW()-ROW(ОбучениеИКомандировкиОтклонение[[#Headers],[Июн]]),1),INDEX(ОбучениеИКомандировкиПлан[],,1),0),MATCH(ОбучениеИКомандировкиОтклонение[[#Headers],[Июн]],ОбучениеИКомандировкиФактические[#Headers],0)) -> -800.00 ₽ | I31: =INDEX(ОбучениеИКомандировкиПлан[],MATCH(INDEX(ОбучениеИКомандировкиОтклонение[],ROW()-ROW(ОбучениеИКомандировкиОтклонение[[#Headers],[Июл]]),1),INDEX(ОбучениеИКомандировкиПлан[],,1),0),MATCH(ОбучениеИКомандировкиОтклонение[[#Headers],[Июл]],ОбучениеИКомандировкиПлан[#Headers],0))-INDEX(ОбучениеИКомандировкиФактические[],MATCH(INDEX(ОбучениеИКомандировкиОтклонение[],ROW()-ROW(ОбучениеИКомандировкиОтклонение[[#Headers],[Июл]]),1),INDEX(ОбучениеИКомандировкиПлан[],,1),0),MATCH(ОбучениеИКомандировкиОтклонение[[#Headers],[Июл]],ОбучениеИКомандировкиФактические[#Headers],0)) -> 2,000.00 ₽ | J31: =INDEX(ОбучениеИКомандировкиПлан[],MATCH(INDEX(ОбучениеИКомандировкиОтклонение[],ROW()-ROW(ОбучениеИКомандировкиОтклонение[[#Headers],[Авг]]),1),INDEX(ОбучениеИКомандировкиПлан[],,1),0),MATCH(ОбучениеИКомандировкиОтклонение[[#Headers],[Авг]],ОбучениеИКомандировкиПлан[#Headers],0))-INDEX(ОбучениеИКомандировкиФактические[],MATCH(INDEX(ОбучениеИКомандировкиОтклонение[],ROW()-ROW(ОбучениеИКомандировкиОтклонение[[#Headers],[Авг]]),1),INDEX(ОбучениеИКомандировкиПлан[],,1),0),MATCH(ОбучениеИКомандировкиОтклонение[[#Headers],[Авг]],ОбучениеИКомандировкиФактические[#Headers],0)) -> 2,000.00 ₽ | K31: =INDEX(ОбучениеИКомандировкиПлан[],MATCH(INDEX(ОбучениеИКомандировкиОтклонение[],ROW()-ROW(ОбучениеИКомандировкиОтклонение[[#Headers],[Сен]]),1),INDEX(ОбучениеИКомандировкиПлан[],,1),0),MATCH(ОбучениеИКомандировкиОтклонение[[#Headers],[Сен]],ОбучениеИКомандировкиПлан[#Headers],0))-INDEX(ОбучениеИКомандировкиФактические[],MATCH(INDEX(ОбучениеИКомандировкиОтклонение[],ROW()-ROW(ОбучениеИКомандировкиОтклонение[[#Headers],[Сен]]),1),INDEX(ОбучениеИКомандировкиПлан[],,1),0),MATCH(ОбучениеИКомандировкиОтклонение[[#Headers],[Сен]],ОбучениеИКомандировкиФактические[#Headers],0)) -> 2,000.00 ₽ | L31: =INDEX(ОбучениеИКомандировкиПлан[],MATCH(INDEX(ОбучениеИКомандировкиОтклонение[],ROW()-ROW(ОбучениеИКомандировкиОтклонение[[#Headers],[Окт]]),1),INDEX(ОбучениеИКомандировкиПлан[],,1),0),MATCH(ОбучениеИКомандировкиОтклонение[[#Headers],[Окт]],ОбучениеИКомандировкиПлан[#Headers],0))-INDEX(ОбучениеИКомандировкиФактические[],MATCH(INDEX(ОбучениеИКомандировкиОтклонение[],ROW()-ROW(ОбучениеИКомандировкиОтклонение[[#Headers],[Окт]]),1),INDEX(ОбучениеИКомандировкиПлан[],,1),0),MATCH(ОбучениеИКомандировкиОтклонение[[#Headers],[Окт]],ОбучениеИКомандировкиФактические[#Headers],0)) -> 2,000.00 ₽ | M31: =INDEX(ОбучениеИКомандировкиПлан[],MATCH(INDEX(ОбучениеИКомандировкиОтклонение[],ROW()-ROW(ОбучениеИКомандировкиОтклонение[[#Headers],[Ноя]]),1),INDEX(ОбучениеИКомандировкиПлан[],,1),0),MATCH(ОбучениеИКомандировкиОтклонение[[#Headers],[Ноя]],ОбучениеИКомандировкиПлан[#Headers],0))-INDEX(ОбучениеИКомандировкиФактические[],MATCH(INDEX(ОбучениеИКомандировкиОтклонение[],ROW()-ROW(ОбучениеИКомандировкиОтклонение[[#Headers],[Ноя]]),1),INDEX(ОбучениеИКомандировкиПлан[],,1),0),MATCH(ОбучениеИКомандировкиОтклонение[[#Headers],[Ноя]],ОбучениеИКомандировкиФактические[#Headers],0)) -> 2,000.00 ₽ | N31: =INDEX(ОбучениеИКомандировкиПлан[],MATCH(INDEX(ОбучениеИКомандировкиОтклонение[],ROW()-ROW(ОбучениеИКомандировкиОтклонение[[#Headers],[Дек]]),1),INDEX(ОбучениеИКомандировкиПлан[],,1),0),MATCH(ОбучениеИКомандировкиОтклонение[[#Headers],[Дек]],ОбучениеИКомандировкиПлан[#Headers],0))-INDEX(ОбучениеИКомандировкиФактические[],MATCH(INDEX(ОбучениеИКомандировкиОтклонение[],ROW()-ROW(ОбучениеИКомандировкиОтклонение[[#Headers],[Дек]]),1),INDEX(ОбучениеИКомандировкиПлан[],,1),0),MATCH(ОбучениеИКомандировкиОтклонение[[#Headers],[Дек]],ОбучениеИКомандировкиФактические[#Headers],0)) -> 2,000.00 ₽ | O31: =SUM(ОбучениеИКомандировкиОтклонение[[#This Row],[Янв]:[Дек]]) -> 13,000.00 ₽
B32: Командировочные расходы, связанные с обучением | C32: =INDEX(ОбучениеИКомандировкиПлан[],MATCH(INDEX(ОбучениеИКомандировкиОтклонение[],ROW()-ROW(ОбучениеИКомандировкиОтклонение[[#Headers],[Янв]]),1),INDEX(ОбучениеИКомандировкиПлан[],,1),0),MATCH(ОбучениеИКомандировкиОтклонение[[#Headers],[Янв]],ОбучениеИКомандировкиПлан[#Headers],0))-INDEX(ОбучениеИКомандировкиФактические[],MATCH(INDEX(ОбучениеИКомандировкиОтклонение[],ROW()-ROW(ОбучениеИКомандировкиОтклонение[[#Headers],[Янв]]),1),INDEX(ОбучениеИКомандировкиПлан[],,1),0),MATCH(ОбучениеИКомандировкиОтклонение[[#Headers],[Янв]],ОбучениеИКомандировкиФактические[#Headers],0)) -> 800.00 ₽ | D32: =INDEX(ОбучениеИКомандировкиПлан[],MATCH(INDEX(ОбучениеИКомандировкиОтклонение[],ROW()-ROW(ОбучениеИКомандировкиОтклонение[[#Headers],[Фев]]),1),INDEX(ОбучениеИКомандировкиПлан[],,1),0),MATCH(ОбучениеИКомандировкиОтклонение[[#Headers],[Фев]],ОбучениеИКомандировкиПлан[#Headers],0))-INDEX(ОбучениеИКомандировкиФактические[],MATCH(INDEX(ОбучениеИКомандировкиОтклонение[],ROW()-ROW(ОбучениеИКомандировкиОтклонение[[#Headers],[Фев]]),1),INDEX(ОбучениеИКомандировкиПлан[],,1),0),MATCH(ОбучениеИКомандировкиОтклонение[[#Headers],[Фев]],ОбучениеИКомандировкиФактические[#Headers],0)) -> -200.00 ₽ | E32: =INDEX(ОбучениеИКомандировкиПлан[],MATCH(INDEX(ОбучениеИКомандировкиОтклонение[],ROW()-ROW(ОбучениеИКомандировкиОтклонение[[#Headers],[Мар]]),1),INDEX(ОбучениеИКомандировкиПлан[],,1),0),MATCH(ОбучениеИКомандировкиОтклонение[[#Headers],[Мар]],ОбучениеИКомандировкиПлан[#Headers],0))-INDEX(ОбучениеИКомандировкиФактические[],MATCH(INDEX(ОбучениеИКомандировкиОтклонение[],ROW()-ROW(ОбучениеИКомандировкиОтклонение[[#Headers],[Мар]]),1),INDEX(ОбучениеИКомандировкиПлан[],,1),0),MATCH(ОбучениеИКомандировкиОтклонение[[#Headers],[Мар]],ОбучениеИКомандировкиФактические[#Headers],0)) -> 600.00 ₽ | F32: =INDEX(ОбучениеИКомандировкиПлан[],MATCH(INDEX(ОбучениеИКомандировкиОтклонение[],ROW()-ROW(ОбучениеИКомандировкиОтклонение[[#Headers],[Апр]]),1),INDEX(ОбучениеИКомандировкиПлан[],,1),0),MATCH(ОбучениеИКомандировкиОтклонение[[#Headers],[Апр]],ОбучениеИКомандировкиПлан[#Headers],0))-INDEX(ОбучениеИКомандировкиФактические[],MATCH(INDEX(ОбучениеИКомандировкиОтклонение[],ROW()-ROW(ОбучениеИКомандировкиОтклонение[[#Headers],[Апр]]),1),INDEX(ОбучениеИКомандировкиПлан[],,1),0),MATCH(ОбучениеИКомандировкиОтклонение[[#Headers],[Апр]],ОбучениеИКомандировкиФактические[#Headers],0)) -> 800.00 ₽ | G32: =INDEX(ОбучениеИКомандировкиПлан[],MATCH(INDEX(ОбучениеИКомандировкиОтклонение[],ROW()-ROW(ОбучениеИКомандировкиОтклонение[[#Headers],[Май]]),1),INDEX(ОбучениеИКомандировкиПлан[],,1),0),MATCH(ОбучениеИКомандировкиОтклонение[[#Headers],[Май]],ОбучениеИКомандировкиПлан[#Headers],0))-INDEX(ОбучениеИКомандировкиФактические[],MATCH(INDEX(ОбучениеИКомандировкиОтклонение[],ROW()-ROW(ОбучениеИКомандировкиОтклонение[[#Headers],[Май]]),1),INDEX(ОбучениеИКомандировкиПлан[],,1),0),MATCH(ОбучениеИКомандировкиОтклонение[[#Headers],[Май]],ОбучениеИКомандировкиФактические[#Headers],0)) -> 1,200.00 ₽ | H32: =INDEX(ОбучениеИКомандировкиПлан[],MATCH(INDEX(ОбучениеИКомандировкиОтклонение[],ROW()-ROW(ОбучениеИКомандировкиОтклонение[[#Headers],[Июн]]),1),INDEX(ОбучениеИКомандировкиПлан[],,1),0),MATCH(ОбучениеИКомандировкиОтклонение[[#Headers],[Июн]],ОбучениеИКомандировкиПлан[#Headers],0))-INDEX(ОбучениеИКомандировкиФактические[],MATCH(INDEX(ОбучениеИКомандировкиОтклонение[],ROW()-ROW(ОбучениеИКомандировкиОтклонение[[#Headers],[Июн]]),1),INDEX(ОбучениеИКомандировкиПлан[],,1),0),MATCH(ОбучениеИКомандировкиОтклонение[[#Headers],[Июн]],ОбучениеИКомандировкиФактические[#Headers],0)) -> -1,500.00 ₽ | I32: =INDEX(ОбучениеИКомандировкиПлан[],MATCH(INDEX(ОбучениеИКомандировкиОтклонение[],ROW()-ROW(ОбучениеИКомандировкиОтклонение[[#Headers],[Июл]]),1),INDEX(ОбучениеИКомандировкиПлан[],,1),0),MATCH(ОбучениеИКомандировкиОтклонение[[#Headers],[Июл]],ОбучениеИКомандировкиПлан[#Headers],0))-INDEX(ОбучениеИКомандировкиФактические[],MATCH(INDEX(ОбучениеИКомандировкиОтклонение[],ROW()-ROW(ОбучениеИКомандировкиОтклонение[[#Headers],[Июл]]),1),INDEX(ОбучениеИКомандировкиПлан[],,1),0),MATCH(ОбучениеИКомандировкиОтклонение[[#Headers],[Июл]],ОбучениеИКомандировкиФактические[#Headers],0)) -> 2,000.00 ₽ | J32: =INDEX(ОбучениеИКомандировкиПлан[],MATCH(INDEX(ОбучениеИКомандировкиОтклонение[],ROW()-ROW(ОбучениеИКомандировкиОтклонение[[#Headers],[Авг]]),1),INDEX(ОбучениеИКомандировкиПлан[],,1),0),MATCH(ОбучениеИКомандировкиОтклонение[[#Headers],[Авг]],ОбучениеИКомандировкиПлан[#Headers],0))-INDEX(ОбучениеИКомандировкиФактические[],MATCH(INDEX(ОбучениеИКомандировкиОтклонение[],ROW()-ROW(ОбучениеИКомандировкиОтклонение[[#Headers],[Авг]]),1),INDEX(ОбучениеИКомандировкиПлан[],,1),0),MATCH(ОбучениеИКомандировкиОтклонение[[#Headers],[Авг]],ОбучениеИКомандировкиФактические[#Headers],0)) -> 2,000.00 ₽ | K32: =INDEX(ОбучениеИКомандировкиПлан[],MATCH(INDEX(ОбучениеИКомандировкиОтклонение[],ROW()-ROW(ОбучениеИКомандировкиОтклонение[[#Headers],[Сен]]),1),INDEX(ОбучениеИКомандировкиПлан[],,1),0),MATCH(ОбучениеИКомандировкиОтклонение[[#Headers],[Сен]],ОбучениеИКомандировкиПлан[#Headers],0))-INDEX(ОбучениеИКомандировкиФактические[],MATCH(INDEX(ОбучениеИКомандировкиОтклонение[],ROW()-ROW(ОбучениеИКомандировкиОтклонение[[#Headers],[Сен]]),1),INDEX(ОбучениеИКомандировкиПлан[],,1),0),MATCH(ОбучениеИКомандировкиОтклонение[[#Headers],[Сен]],ОбучениеИКомандировкиФактические[#Headers],0)) -> 2,000.00 ₽ | L32: =INDEX(ОбучениеИКомандировкиПлан[],MATCH(INDEX(ОбучениеИКомандировкиОтклонение[],ROW()-ROW(ОбучениеИКомандировкиОтклонение[[#Headers],[Окт]]),1),INDEX(ОбучениеИКомандировкиПлан[],,1),0),MATCH(ОбучениеИКомандировкиОтклонение[[#Headers],[Окт]],ОбучениеИКомандировкиПлан[#Headers],0))-INDEX(ОбучениеИКомандировкиФактические[],MATCH(INDEX(ОбучениеИКомандировкиОтклонение[],ROW()-ROW(ОбучениеИКомандировкиОтклонение[[#Headers],[Окт]]),1),INDEX(ОбучениеИКомандировкиПлан[],,1),0),MATCH(ОбучениеИКомандировкиОтклонение[[#Headers],[Окт]],ОбучениеИКомандировкиФактические[#Headers],0)) -> 2,000.00 ₽ | M32: =INDEX(ОбучениеИКомандировкиПлан[],MATCH(INDEX(ОбучениеИКомандировкиОтклонение[],ROW()-ROW(ОбучениеИКомандировкиОтклонение[[#Headers],[Ноя]]),1),INDEX(ОбучениеИКомандировкиПлан[],,1),0),MATCH(ОбучениеИКомандировкиОтклонение[[#Headers],[Ноя]],ОбучениеИКомандировкиПлан[#Headers],0))-INDEX(ОбучениеИКомандировкиФактические[],MATCH(INDEX(ОбучениеИКомандировкиОтклонение[],ROW()-ROW(ОбучениеИКомандировкиОтклонение[[#Headers],[Ноя]]),1),INDEX(ОбучениеИКомандировкиПлан[],,1),0),MATCH(ОбучениеИКомандировкиОтклонение[[#Headers],[Ноя]],ОбучениеИКомандировкиФактические[#Headers],0)) -> 2,000.00 ₽ | N32: =INDEX(ОбучениеИКомандировкиПлан[],MATCH(INDEX(ОбучениеИКомандировкиОтклонение[],ROW()-ROW(ОбучениеИКомандировкиОтклонение[[#Headers],[Дек]]),1),INDEX(ОбучениеИКомандировкиПлан[],,1),0),MATCH(ОбучениеИКомандировкиОтклонение[[#Headers],[Дек]],ОбучениеИКомандировкиПлан[#Headers],0))-INDEX(ОбучениеИКомандировкиФактические[],MATCH(INDEX(ОбучениеИКомандировкиОтклонение[],ROW()-ROW(ОбучениеИКомандировкиОтклонение[[#Headers],[Дек]]),1),INDEX(ОбучениеИКомандировкиПлан[],,1),0),MATCH(ОбучениеИКомандировкиОтклонение[[#Headers],[Дек]],ОбучениеИКомандировкиФактические[#Headers],0)) -> 2,000.00 ₽ | O32: =SUM(ОбучениеИКомандировкиОтклонение[[#This Row],[Янв]:[Дек]]) -> 13,700.00 ₽
B33: Промежуточный итог | C33: =SUBTOTAL(109,ОбучениеИКомандировкиОтклонение[Янв]) -> 1,200.00 ₽ | D33: =SUBTOTAL(109,ОбучениеИКомандировкиОтклонение[Фев]) -> -600.00 ₽ | E33: =SUBTOTAL(109,ОбучениеИКомандировкиОтклонение[Мар]) -> 1,200.00 ₽ | F33: =SUBTOTAL(109,ОбучениеИКомандировкиОтклонение[Апр]) -> 1,200.00 ₽ | G33: =SUBTOTAL(109,ОбучениеИКомандировкиОтклонение[Май]) -> 2,000.00 ₽ | H33: =SUBTOTAL(109,ОбучениеИКомандировкиОтклонение[Июн]) -> -2,300.00 ₽ | I33: =SUBTOTAL(109,ОбучениеИКомандировкиОтклонение[Июл]) -> 4,000.00 ₽ | J33: =SUBTOTAL(109,ОбучениеИКомандировкиОтклонение[Авг]) -> 4,000.00 ₽ | K33: =SUBTOTAL(109,ОбучениеИКомандировкиОтклонение[Сен]) -> 4,000.00 ₽ | L33: =SUBTOTAL(109,ОбучениеИКомандировкиОтклонение[Окт]) -> 4,000.00 ₽ | M33: =SUBTOTAL(109,ОбучениеИКомандировкиОтклонение[Ноя]) -> 4,000.00 ₽ | N33: =SUBTOTAL(109,ОбучениеИКомандировкиОтклонение[Дек]) -> 4,000.00 ₽ | O33: =SUBTOTAL(109,ОбучениеИКомандировкиОтклонение[ГОД]) -> 26,700.00 ₽
B35: ИТОГИ | C35: Янв | D35: Фев | E35: Мар | F35: Апр | G35: Май | H35: Июн | I35: Июл | J35: Авг | K35: Сен | L35: Окт | M35: Ноя | N35: Дек | O35: Год
B36: Фактические расходы за месяц | C36: =ОбучениеИКомандировкиОтклонение[[#Totals],[Янв]]+МаркетингОтклонение[[#Totals],[Янв]]+ОфисОтклонение[[#Totals],[Янв]]+СотрудникиОтклонение[[#Totals],[Янв]] -> 1,738.00 ₽ | D36: =ОбучениеИКомандировкиОтклонение[[#Totals],[Фев]]+МаркетингОтклонение[[#Totals],[Фев]]+ОфисОтклонение[[#Totals],[Фев]]+СотрудникиОтклонение[[#Totals],[Фев]] -> -984.00 ₽ | E36: =ОбучениеИКомандировкиОтклонение[[#Totals],[Мар]]+МаркетингОтклонение[[#Totals],[Мар]]+ОфисОтклонение[[#Totals],[Мар]]+СотрудникиОтклонение[[#Totals],[Мар]] -> 1,255.00 ₽ | F36: =ОбучениеИКомандировкиОтклонение[[#Totals],[Апр]]+МаркетингОтклонение[[#Totals],[Апр]]+ОфисОтклонение[[#Totals],[Апр]]+СотрудникиОтклонение[[#Totals],[Апр]] -> 301.00 ₽ | G36: =ОбучениеИКомандировкиОтклонение[[#Totals],[Май]]+МаркетингОтклонение[[#Totals],[Май]]+ОфисОтклонение[[#Totals],[Май]]+СотрудникиОтклонение[[#Totals],[Май]] -> 1,440.00 ₽ | H36: =ОбучениеИКомандировкиОтклонение[[#Totals],[Июн]]+МаркетингОтклонение[[#Totals],[Июн]]+ОфисОтклонение[[#Totals],[Июн]]+СотрудникиОтклонение[[#Totals],[Июн]] -> -3,744.00 ₽ | I36: =ОбучениеИКомандировкиОтклонение[[#Totals],[Июл]]+МаркетингОтклонение[[#Totals],[Июл]]+ОфисОтклонение[[#Totals],[Июл]]+СотрудникиОтклонение[[#Totals],[Июл]] -> 134,695.00 ₽ | J36: =ОбучениеИКомандировкиОтклонение[[#Totals],[Авг]]+МаркетингОтклонение[[#Totals],[Авг]]+ОфисОтклонение[[#Totals],[Авг]]+СотрудникиОтклонение[[#Totals],[Авг]] -> 138,918.00 ₽ | K36: =ОбучениеИКомандировкиОтклонение[[#Totals],[Сен]]+МаркетингОтклонение[[#Totals],[Сен]]+ОфисОтклонение[[#Totals],[Сен]]+СотрудникиОтклонение[[#Totals],[Сен]] -> 135,918.00 ₽ | L36: =ОбучениеИКомандировкиОтклонение[[#Totals],[Окт]]+МаркетингОтклонение[[#Totals],[Окт]]+ОфисОтклонение[[#Totals],[Окт]]+СотрудникиОтклонение[[#Totals],[Окт]] -> 140,918.00 ₽ | M36: =ОбучениеИКомандировкиОтклонение[[#Totals],[Ноя]]+МаркетингОтклонение[[#Totals],[Ноя]]+ОфисОтклонение[[#Totals],[Ноя]]+СотрудникиОтклонение[[#Totals],[Ноя]] -> 136,218.00 ₽ | N36: =ОбучениеИКомандировкиОтклонение[[#Totals],[Дек]]+МаркетингОтклонение[[#Totals],[Дек]]+ОфисОтклонение[[#Totals],[Дек]]+СотрудникиОтклонение[[#Totals],[Дек]] -> 140,018.00 ₽ | O36: =ОбучениеИКомандировкиОтклонение[[#Totals],[ГОД]]+МаркетингОтклонение[[#Totals],[ГОД]]+ОфисОтклонение[[#Totals],[ГОД]]+СотрудникиОтклонение[[#Totals],[ГОД]] -> 826,691.00 ₽
B37: ОБЩИЕ фактические расходы | C37: =SUM($C$36:C36) -> 1,738.00 ₽ | D37: =SUM($C$36:D36) -> 754.00 ₽ | E37: =SUM($C$36:E36) -> 2,009.00 ₽ | F37: =SUM($C$36:F36) -> 2,310.00 ₽ | G37: =SUM($C$36:G36) -> 3,750.00 ₽ | H37: =SUM($C$36:H36) -> 6.00 ₽ | I37: =SUM($C$36:I36) -> 134,701.00 ₽ | J37: =SUM($C$36:J36) -> 273,619.00 ₽ | K37: =SUM($C$36:K36) -> 409,537.00 ₽ | L37: =SUM($C$36:L36) -> 550,455.00 ₽ | M37: =SUM($C$36:M36) -> 686,673.00 ₽ | N37: =SUM($C$36:N36) -> 826,691.00 ₽

Sheet АНАЛИЗ РАСХОДОВ
B2: ='ЗАПЛАНИРОВАННЫЕ РАСХОДЫ'!B2:D3 -> Название компании
E3: =заголовок_листа -> Подробные оценочные показатели расходов
B5: Категория расходов | C5: Запланированные расходы | D5: Фактические расходы | E5: Отклонения по расходам | F5: Процент отклонения
B6: Расходы на сотрудников | C6: =СотрудникиПлан[[#Totals],[ГОД]] -> 1,355,090.00 ₽ | D6: =СотрудникиФактические[[#Totals],[ГОД]] -> 659,130.00 ₽ | E6: =C6-D6 -> 695,960.00 ₽ | F6: =E6/C6 -> 51%
B7: ='ЗАПЛАНИРОВАННЫЕ РАСХОДЫ'!B10 -> Расходы на содержание офиса | C7: =ОфисПлан[[#Totals],[ГОД]] -> 138,740.00 ₽ | D7: =ОфисФактические[[#Totals],[ГОД]] -> 69,350.00 ₽ | E7: =C7-D7 -> 69,390.00 ₽ | F7: =E7/C7 -> 50%
B8: ='ЗАПЛАНИРОВАННЫЕ РАСХОДЫ'!B21 -> Расходы на маркетинг | C8: =МаркетингПлан[[#Totals],[ГОД]] -> 67,800.00 ₽ | D8: =МаркетингФактические[[#Totals],[ГОД]] -> 33,159.00 ₽ | E8: =C8-D8 -> 34,641.00 ₽ | F8: =E8/C8 -> 51%
B9: ='ЗАПЛАНИРОВАННЫЕ РАСХОДЫ'!B30 -> Обучение/командировки | C9: =ОбучениеИКомандировкиПлан[[#Totals],[ГОД]] -> 48,000.00 ₽ | D9: =ОбучениеИКомандировкиФактические[[#Totals],[ГОД]] -> 21,300.00 ₽ | E9: =C9-D9 -> 26,700.00 ₽ | F9: =E9/C9 -> 56%
B10: ='ЗАПЛАНИРОВАННЫЕ РАСХОДЫ'!B35 -> ИТОГИ | C10: ='ЗАПЛАНИРОВАННЫЕ РАСХОДЫ'!O36 -> 1,609,630.00 ₽ | D10: ='ФАКТИЧЕСКИЕ РАСХОДЫ'!O36 -> 782,939.00 ₽ | E10: =C10-D10 -> 826,691.00 ₽ | F10: =E10/C10 -> 51%
